Body,BodyName,InvoiceDate,ClearanceDate,UniqueReference,SupplierName,SupplierRefNo,Amount,DepartmentExpenseArea,ExpenseType,ExpenseCode,ExtendedDescription,AccountHolder,MerchantCategory
http://statistics.data.gov.uk/id/local-authority/43UM,WOKING BOROUGH COUNCIL,01/04/2019,01/04/2019,GPC/00006734,RINGGO,PROCUREMENT CARD,3.66,HOUSING SERVICES - HOMELINK,TRAVEL EXPENSES-OFFICERS,F600,PARKING AT ST PETERS HOSPITAL FOR HOMESAFE,GARY CORDERY,AUTO PARKING LOTS/GARAGES
http://statistics.data.gov.uk/id/local-authority/43UM,WOKING BOROUGH COUNCIL,01/04/2019,01/04/2019,GPC/00006738,SELFSERVE TICKET,PROCUREMENT CARD,39.50,ASSET MANAGEMENT - VALUATION SERVICES,TRAVEL EXPENSES-OFFICERS,F600,TRAIN TRAVEL FOR LONDON MEETING,IAN M TOMES,PASSENGER RAILWAYS
http://statistics.data.gov.uk/id/local-authority/43UM,WOKING BOROUGH COUNCIL,01/04/2019,01/04/2019,GPC/00006754,PAYPAL,PROCUREMENT CARD,14.95,INDEPENDENT LIVING SERVICES - FAMILY SUPPORT PROGRAMME,FAMILY ENABLING (FSP PROJECT),H137,CURTAIN FOR THE FAMILY HOME,PALLAVI SHARAN,DISCOUNT STORES
http://statistics.data.gov.uk/id/local-authority/43UM,WOKING BOROUGH COUNCIL,01/04/2019,01/04/2019,GPC/00006735,WWW.PMGLTD.CO.UK,PROCUREMENT CARD,395.00,CORPORATE MANAGEMENT GROUP - STAFF TRAINING/GENERAL COSTS,TRAINING - CORPORATE,A910,LONLINESS FORUM TRAINING,J A MEME,BUSINESS SERVICES - DEFAULT
http://statistics.data.gov.uk/id/local-authority/43UM,WOKING BOROUGH COUNCIL,01/04/2019,01/04/2019,GPC/00006756,PAYPAL,PROCUREMENT CARD,7.98,INDEPENDENT LIVING SERVICES - FAMILY SUPPORT PROGRAMME,FAMILY ENABLING (FSP PROJECT),H137,RUG FOR THE FAMILY HOME,PALLAVI SHARAN,MISC SPECIALITY RETAIL
http://statistics.data.gov.uk/id/local-authority/43UM,WOKING BOROUGH COUNCIL,01/04/2019,01/04/2019,GPC/00006739,SELFSERVE TICKET,PROCUREMENT CARD,10.20,CORPORATE STRATEGY - LEGAL,TRAVEL EXPENSES-OFFICERS,F600,TRAIN TICKETS TO COURT,MISS A J FRANCIS,PASSENGER RAILWAYS
http://statistics.data.gov.uk/id/local-authority/43UM,WOKING BOROUGH COUNCIL,01/04/2019,01/04/2019,GPC/00006762,TVLICENSING.CO.UK,PROCUREMENT CARD,154.50,HOUSING SERVICES - SYRIAN REFUGEE FAMILES,PURCHASE OF FURNITURE,Q500,TV LICENSE NEW FAMILY,EMAD HANAFY,MGMT/CONSULT/PUBLIC REL SER
http://statistics.data.gov.uk/id/local-authority/43UM,WOKING BOROUGH COUNCIL,01/04/2019,01/04/2019,GPC/00006736,W M MORRISON STORE,PROCUREMENT CARD,28.50,NEIGHBOURHOOD SERVICES - ARTS DEVELOPMENT,EQUIPMENT,G100,TEA DANCE TABLE DECS,ROSE E L BLACKLEY,GROCERY STORES
http://statistics.data.gov.uk/id/local-authority/43UM,WOKING BOROUGH COUNCIL,01/04/2019,01/04/2019,GPC/00006741,VALENTINOS,PROCUREMENT CARD,5.50,INDEPENDENT LIVING SERVICES - FAMILY SUPPORT PROGRAMME,FAMILY ENABLING (FSP PROJECT),H137,ENABLING FAMILY WORK,PALLAVI SHARAN,UNIFORMS AND COMMERCIAL CLOTHING
http://statistics.data.gov.uk/id/local-authority/43UM,WOKING BOROUGH COUNCIL,01/04/2019,01/04/2019,GPC/00006753,PAYPAL,PROCUREMENT CARD,129.99,INDEPENDENT LIVING SERVICES - FAMILY SUPPORT PROGRAMME,FAMILY ENABLING (FSP PROJECT),H137,FURNITURE FOR FAMILY,PALLAVI SHARAN,FURNITURE/EQUIP STORES
http://statistics.data.gov.uk/id/local-authority/43UM,WOKING BOROUGH COUNCIL,01/04/2019,01/04/2019,GPC/00006755,PAYPAL,PROCUREMENT CARD,46.53,INDEPENDENT LIVING SERVICES - FAMILY SUPPORT PROGRAMME,FAMILY ENABLING (FSP PROJECT),H137,ENABLING FAMILY WORK,PALLAVI SHARAN,DRAPERY & UPHOLSTERY STORES
http://statistics.data.gov.uk/id/local-authority/43UM,WOKING BOROUGH COUNCIL,01/04/2019,01/04/2019,GPC/00006742,THE METAL STORE,PROCUREMENT CARD,65.33,ASSET MANAGEMENT - FACILITIES MANAGEMENT,FACILITIES MANAGEMENT REPAIRS,D908,PARTS FOR HEATHSIDE,MR C NORTON,COMPUTER SOFTWARE STORES
http://statistics.data.gov.uk/id/local-authority/43UM,WOKING BOROUGH COUNCIL,01/04/2019,01/04/2019,GPC/00006737,THE GAS CENTRE,PROCUREMENT CARD,16.65,INDEPENDENT LIVING SERVICES - INDEPENDENT LIV SERV GEN EXPEN,FREDA EBEL BEQUEST,H352,BBQ ATTACHMENTS,ASHLEY BOYLE,UTILITIES / ELEC/GAS/H20/SANI
http://statistics.data.gov.uk/id/local-authority/43UM,WOKING BOROUGH COUNCIL,01/04/2019,01/04/2019,GPC/00006744,MARTIN MCCOLL'S,PROCUREMENT CARD,55.25,INDEPENDENT LIVING SERVICES - MOORCROFT,NEWSPAPERS,G660,NEWSPAPERS,RICHARD BUCKENHAM,MISC FOOD STORES - DEFAULT
http://statistics.data.gov.uk/id/local-authority/43UM,WOKING BOROUGH COUNCIL,01/04/2019,01/04/2019,GPC/00006740,WOKING COUNCIL PARKING,PROCUREMENT CARD,5.42,REVENUES AND BENEFITS - RESOURCES GENERAL EXPENSES,TRAVEL EXPENSES-OFFICERS,F600,MEETING,BEN JONES,AUTO PARKING LOTS/GARAGES
http://statistics.data.gov.uk/id/local-authority/43UM,WOKING BOROUGH COUNCIL,02/04/2019,02/04/2019,GPC/00006752,SELFSERVE TICKET,PROCUREMENT CARD,31.40,HOUSING SERVICES - HOUSING SERVICES GENERAL EXPEN,TRAVEL EXPENSES-OFFICERS,F600,COURSE LONDON SAFTEY AWARNESS PHYSICAL BREAKAWAY,JANET COURTNEY,PASSENGER RAILWAYS
http://statistics.data.gov.uk/id/local-authority/43UM,WOKING BOROUGH COUNCIL,02/04/2019,02/04/2019,GPC/00006746,ADOBE ACROPRO SUBS,PROCUREMENT CARD,150.92,INFORMATION TECHNOLOGY - ICT GENERAL REPLACEMENT 2019/20,SOFTWARE LICENCES,Q036,ADOBE ACROBAT PROFESSIONAL SUBSCRIPTION,ANDREW GRESHAM,COMPUTER SOFTWARE STORES
http://statistics.data.gov.uk/id/local-authority/43UM,WOKING BOROUGH COUNCIL,02/04/2019,02/04/2019,GPC/00006745,W M MORRISON,PROCUREMENT CARD,64.42,NEIGHBOURHOOD SERVICES - CENTRAL NEIGHBOURHOOD TEAM,PETROL,F200,FUEL FOR EMERGENCY RESPONSE VEHICLE,MRS K WATERS,SERVICE STATIONS
http://statistics.data.gov.uk/id/local-authority/43UM,WOKING BOROUGH COUNCIL,02/04/2019,02/04/2019,GPC/00006749,MARKS&SPENCER PLC,PROCUREMENT CARD,40.60,NEIGHBOURHOOD SERVICES - ARTS DEVELOPMENT,EQUIPMENT,G100,EASTER TEA DANCE - RAFFLE PRIZES,ROSE E L BLACKLEY,GROCERY STORES
http://statistics.data.gov.uk/id/local-authority/43UM,WOKING BOROUGH COUNCIL,02/04/2019,02/04/2019,GPC/00006751,BUYSIGNS.CO.UK,PROCUREMENT CARD,48.29,ASSET MANAGEMENT - CIVIC OFFICES,NEW EQUIPMENT,G105,SIGN FOR DIRECTOR OF HOUSING,MRS F M WALTHER,COMPUTER PROGRAM/SYS DESIGN
http://statistics.data.gov.uk/id/local-authority/43UM,WOKING BOROUGH COUNCIL,02/04/2019,02/04/2019,GPC/00006748,SAINSBURYS S/MKTS,PROCUREMENT CARD,5.20,NEIGHBOURHOOD SERVICES - WOKING YOUTH COUNCIL,MEMBERS REFRESHMENTS,H290,SUPPLIES FOR YOUTH COUNCIL,SANDIE BOLGER,GROCERY STORES
http://statistics.data.gov.uk/id/local-authority/43UM,WOKING BOROUGH COUNCIL,02/04/2019,02/04/2019,GPC/00006750,FACEBK KTLKHKAMD2,PROCUREMENT CARD,60.00,CORPORATE STRATEGY - ELECTION ID PILOT,ADVERTISING,H400,FACEBOOK AD VOTER ID,DEBBIE HICKMAN,ADVERTISING SERVICES
http://statistics.data.gov.uk/id/local-authority/43UM,WOKING BOROUGH COUNCIL,02/04/2019,02/04/2019,GPC/00006757,SELFSERVE TICKET,PROCUREMENT CARD,18.60,CORPORATE STRATEGY - BUSINESS IMPROVEMENT,TRAVEL EXPENSES-OFFICERS,F600,CA TRAVEL TO AMIP,MRS SHARON EAGER,PASSENGER RAILWAYS
http://statistics.data.gov.uk/id/local-authority/43UM,WOKING BOROUGH COUNCIL,02/04/2019,02/04/2019,GPC/00006747,CAR PARKS SPH,PROCUREMENT CARD,3.50,HOUSING SERVICES - SYRIAN REFUGEE FAMILES,TRAVEL & SUBSISTANCE,Q657,HOSPITAL PARKING,RASHA FARES,GOV'T SERV - DEFAULT
http://statistics.data.gov.uk/id/local-authority/43UM,WOKING BOROUGH COUNCIL,03/04/2019,03/04/2019,GPC/00006759,GENERATEPRESS WP THEME,PROCUREMENT CARD,38.08,INFORMATION TECHNOLOGY - CORPORATE WEDSITE REDEVELOPMENT,APPLICATIONS SOFTWARE,Q040,WEBSITE THEME FOR WOKING BEST BAR NONE WEBSITE,ANDREW GRESHAM,COMPUTER PROGRAM/SYS DESIGN
http://statistics.data.gov.uk/id/local-authority/43UM,WOKING BOROUGH COUNCIL,03/04/2019,03/04/2019,GPC/00006761,WWW.TOOLSTATION.COM,PROCUREMENT CARD,101.95,ASSET MANAGEMENT - CIVIC OFFICES,OFFICE MOVES,H471,EQUIPMENT REQUIRED FOR INTERNAL OFFICE MOVES,SANDRA ARCHER,HARDWARE STORES
http://statistics.data.gov.uk/id/local-authority/43UM,WOKING BOROUGH COUNCIL,03/04/2019,03/04/2019,GPC/00006773,CONS EXC SURREY,PROCUREMENT CARD,150.00,ASSET MANAGEMENT - VALUATION SERVICES,PROFESSIONAL FEES,A750,SURREY EXCELLENCE CORPORATE MEMBERSHIP,IAN M TOMES,MEMBER ORGANISATIONS - DEF
http://statistics.data.gov.uk/id/local-authority/43UM,WOKING BOROUGH COUNCIL,03/04/2019,03/04/2019,GPC/00006774,CONS EXC SURREY,PROCUREMENT CARD,150.00,ASSET MANAGEMENT - VALUATION SERVICES,PROFESSIONAL FEES,A750,PAID TWICE IN ERROR WILL BE REFUNDED,IAN M TOMES,MEMBER ORGANISATIONS - DEF
http://statistics.data.gov.uk/id/local-authority/43UM,WOKING BOROUGH COUNCIL,03/04/2019,03/04/2019,GPC/00006770,TICKETOFFICESALE,PROCUREMENT CARD,28.30,CORPORATE STRATEGY - CORPORATE STRATEGY GENERAL EXP,TRAVEL EXPENSES-OFFICERS,F600,TRAIN TRAVEL TO TRAINING COURSE,MR AC DENNER,PASSENGER RAILWAYS
http://statistics.data.gov.uk/id/local-authority/43UM,WOKING BOROUGH COUNCIL,06/03/2019,03/04/2019,0000435951/001,QUEST SOFTWARE INTERNATIONAL LIMITED,40643900,693.00,INFORMATION TECHNOLOGY - I.T.S. ICT,PC & SERVER APPLICATION SOFT/W,G180,PC & SERVER APPLICATION SOFT/W,INFORMATION TECHNOLOGY,INFORMATION COMMUNICATION TECHNOLOGY
http://statistics.data.gov.uk/id/local-authority/43UM,WOKING BOROUGH COUNCIL,06/03/2019,03/04/2019,0000435951/002,QUEST SOFTWARE INTERNATIONAL LIMITED,40643900,1327.00,INFORMATION TECHNOLOGY - I.T.S. ICT,PC & SERVER APPLICATION SOFT/W,G180,PC & SERVER APPLICATION SOFT/W,INFORMATION TECHNOLOGY,INFORMATION COMMUNICATION TECHNOLOGY
http://statistics.data.gov.uk/id/local-authority/43UM,WOKING BOROUGH COUNCIL,18/03/2019,03/04/2019,0000436615/047,SKANSKA RASHLEIGH WEATHERFOIL LTD,40413600,91.65,ASSET MANAGEMENT - 19A HIGH STREET,FACILITIES MANAGEMENT CONTRACT,D909,FACILITIES MANAGEMENT CONTRACT,ASSET MANAGEMENT,FACILITIES & MANAGEMENT SERVICES
http://statistics.data.gov.uk/id/local-authority/43UM,WOKING BOROUGH COUNCIL,18/03/2019,03/04/2019,0000436615/016,SKANSKA RASHLEIGH WEATHERFOIL LTD,40413600,780.51,ASSET MANAGEMENT - STEWARD HSE OFFICES FLR 1 TO 3,FACILITIES MANAGEMENT CONTRACT,D909,FACILITIES MANAGEMENT CONTRACT,ASSET MANAGEMENT,FACILITIES & MANAGEMENT SERVICES
http://statistics.data.gov.uk/id/local-authority/43UM,WOKING BOROUGH COUNCIL,11/03/2019,03/04/2019,0000436060/001,BRACKNELL FOREST COUNCIL,40281700,3394.56,INDEPENDENT LIVING SERVICES - COMMUNITY ALARMS-GF,PAYMENT TO OTHER LOCAL AUTHORI,H664,PAYMENT TO OTHER LOCAL AUTHORI,INDEPENDENT LIVING SERVICES,SOCIAL COMMUNITY CARE SUP & SERV (ADULT)
http://statistics.data.gov.uk/id/local-authority/43UM,WOKING BOROUGH COUNCIL,11/03/2019,03/04/2019,0000436060/002,BRACKNELL FOREST COUNCIL,40281700,2758.08,INDEPENDENT LIVING SERVICES - COMMUNITY ALARMS-HRA,PAYMENT TO OTHER LOCAL AUTHORI,H664,PAYMENT TO OTHER LOCAL AUTHORI,INDEPENDENT LIVING SERVICES,SOCIAL COMMUNITY CARE SUP & SERV (ADULT)
http://statistics.data.gov.uk/id/local-authority/43UM,WOKING BOROUGH COUNCIL,07/03/2019,03/04/2019,0000435839/001,KENT FINANCIAL SERVICES,40484900,45.00,REVENUES AND BENEFITS - COUNCIL TAX,DEBT COLLECTION AGENCY COMMISS,H910,DEBT COLLECTION AGENCY COMMISS,REVENUES AND BENEFITS,FINANCIAL SERVICES
http://statistics.data.gov.uk/id/local-authority/43UM,WOKING BOROUGH COUNCIL,06/03/2019,03/04/2019,0000435782/001,KENT FINANCIAL SERVICES,40484900,35.00,REVENUES AND BENEFITS - C'L TAX BENEFIT ADMIN,DEBT COLLECTION AGENCY COMMISS,H910,DEBT COLLECTION AGENCY COMMISS,REVENUES AND BENEFITS,FINANCIAL SERVICES
http://statistics.data.gov.uk/id/local-authority/43UM,WOKING BOROUGH COUNCIL,08/03/2019,03/04/2019,0000436065/032,GAMMA TELECOM LIMITED,40610100,16.36,H G WELLS - H G WELLS - FUNCTION ROOMS,TELEPHONES - INT SYSTEM RENTAL,G819,TELEPHONES - INT SYSTEM RENTAL,H G WELLS,INFORMATION COMMUNICATION TECHNOLOGY
http://statistics.data.gov.uk/id/local-authority/43UM,WOKING BOROUGH COUNCIL,08/03/2019,03/04/2019,0000436065/048,GAMMA TELECOM LIMITED,40610100,71.96,INDEPENDENT LIVING SERVICES - COMMUNITY ALARMS-HRA,EQUIPMENT REPAIR & MAINTENANCE,G120,EQUIPMENT REPAIR & MAINTENANCE,INDEPENDENT LIVING SERVICES,INFORMATION COMMUNICATION TECHNOLOGY
http://statistics.data.gov.uk/id/local-authority/43UM,WOKING BOROUGH COUNCIL,07/09/2018,03/04/2019,0000436704/001,WOKING PARK TENNIS,40619600,273.33,INDEPENDENT LIVING SERVICES - PPPF PERSONALISATION & PREV FD,COM SPORT ACTIVATION FUND CSAF,Q248,COM SPORT ACTIVATION FUND CSAF,INDEPENDENT LIVING SERVICES,FINANCIAL SERVICES
http://statistics.data.gov.uk/id/local-authority/43UM,WOKING BOROUGH COUNCIL,03/03/2019,03/04/2019,0000436041/001,BRISTOW & SUTOR,40257600,44.78,REVENUES AND BENEFITS - RENT ALLOWANCES,DEBT COLLECTION AGENCY COMMISS,H910,DEBT COLLECTION AGENCY COMMISS,REVENUES AND BENEFITS,FINANCIAL SERVICES
http://statistics.data.gov.uk/id/local-authority/43UM,WOKING BOROUGH COUNCIL,03/03/2019,03/04/2019,0000436017/001,BRISTOW & SUTOR,40257600,7.50,HOUSING SERVICES - HOUSING OPTIONS,DEBT COLLECTION AGENCY COMMISS,H910,DEBT COLLECTION AGENCY COMMISS,HOUSING SERVICES,FINANCIAL SERVICES
http://statistics.data.gov.uk/id/local-authority/43UM,WOKING BOROUGH COUNCIL,03/04/2019,03/04/2019,GPC/00006765,AMZNMKTPLACE,PROCUREMENT CARD,1.32,INFORMATION TECHNOLOGY - ICT GENERAL REPLACEMENT 2019/20,ADDITIONAL EQUIPMENT,Q020,50 SMALL BROWN STRUNG TAG/TIES,MR G S SANDHU,MISC SPECIALITY RETAIL
http://statistics.data.gov.uk/id/local-authority/43UM,WOKING BOROUGH COUNCIL,03/04/2019,03/04/2019,GPC/00006760,THE WORKS,PROCUREMENT CARD,6.67,NEIGHBOURHOOD SERVICES - ARTS DEVELOPMENT,EQUIPMENT,G100,TEA DANCE - EASTER DECORATIONS,ROSE E L BLACKLEY,DISCOUNT STORES
http://statistics.data.gov.uk/id/local-authority/43UM,WOKING BOROUGH COUNCIL,18/03/2019,03/04/2019,0000436615/039,SKANSKA RASHLEIGH WEATHERFOIL LTD,40413600,7626.10,ASSET MANAGEMENT - FACILITIES MANAGEMENT,FACILITIES MANAGEMENT REPAIRS,D908,FACILITIES MANAGEMENT REPAIRS,ASSET MANAGEMENT,FACILITIES & MANAGEMENT SERVICES
http://statistics.data.gov.uk/id/local-authority/43UM,WOKING BOROUGH COUNCIL,18/03/2019,03/04/2019,0000436615/040,SKANSKA RASHLEIGH WEATHERFOIL LTD,40413600,1200.47,ASSET MANAGEMENT - FACILITIES MANAGEMENT,FACILITIES MANAGEMENT REPAIRS,D908,FACILITIES MANAGEMENT REPAIRS,ASSET MANAGEMENT,FACILITIES & MANAGEMENT SERVICES
http://statistics.data.gov.uk/id/local-authority/43UM,WOKING BOROUGH COUNCIL,06/03/2019,03/04/2019,0000436115/002,KENT COUNTY COUNCIL (KCS),00050800,6951.18,INFORMATION TECHNOLOGY - I.T.S. REPROGRAPHICS,REPROGRAPHIC EQP-COPY CHARGES,G158,REPROGRAPHIC EQP-COPY CHARGES,INFORMATION TECHNOLOGY,UTILITIES
http://statistics.data.gov.uk/id/local-authority/43UM,WOKING BOROUGH COUNCIL,06/03/2019,03/04/2019,0000436071/001,GLOBAL TRANSLATING & INTERPRETING,40662000,105.00,CORPORATE STRATEGY - WAVS,INTERPRETATION & TRANSLATION,H636,INTERPRETATION & TRANSLATION,CORPORATE STRATEGY,CONSULTANCY
http://statistics.data.gov.uk/id/local-authority/43UM,WOKING BOROUGH COUNCIL,06/03/2019,03/04/2019,0000436072/001,GLOBAL TRANSLATING & INTERPRETING,40662000,96.00,CORPORATE STRATEGY - WAVS,INTERPRETATION & TRANSLATION,H636,INTERPRETATION & TRANSLATION,CORPORATE STRATEGY,CONSULTANCY
http://statistics.data.gov.uk/id/local-authority/43UM,WOKING BOROUGH COUNCIL,06/03/2019,03/04/2019,0000436073/001,GLOBAL TRANSLATING & INTERPRETING,40662000,96.00,CORPORATE STRATEGY - WAVS,INTERPRETATION & TRANSLATION,H636,INTERPRETATION & TRANSLATION,CORPORATE STRATEGY,CONSULTANCY
http://statistics.data.gov.uk/id/local-authority/43UM,WOKING BOROUGH COUNCIL,06/03/2019,03/04/2019,0000436074/001,GLOBAL TRANSLATING & INTERPRETING,40662000,95.00,CORPORATE STRATEGY - WAVS,INTERPRETATION & TRANSLATION,H636,INTERPRETATION & TRANSLATION,CORPORATE STRATEGY,CONSULTANCY
http://statistics.data.gov.uk/id/local-authority/43UM,WOKING BOROUGH COUNCIL,06/03/2019,03/04/2019,0000436075/001,GLOBAL TRANSLATING & INTERPRETING,40662000,90.00,CORPORATE STRATEGY - WAVS,INTERPRETATION & TRANSLATION,H636,INTERPRETATION & TRANSLATION,CORPORATE STRATEGY,CONSULTANCY
http://statistics.data.gov.uk/id/local-authority/43UM,WOKING BOROUGH COUNCIL,06/03/2019,03/04/2019,0000436467/001,XPRESS SOFTWARE SOLUTIONS LTD,00944700,10977.59,INFORMATION TECHNOLOGY - I.T.S. ICT,PC & SERVER SYSTEMS SOFTWARE,G193,PC & SERVER SYSTEMS SOFTWARE,INFORMATION TECHNOLOGY,INFORMATION COMMUNICATION TECHNOLOGY
http://statistics.data.gov.uk/id/local-authority/43UM,WOKING BOROUGH COUNCIL,03/04/2019,03/04/2019,GPC/00006769,THE CHARTERED INSTITUT,PROCUREMENT CARD,235.00,CORPORATE STRATEGY - PUBLIC RELATIONS,GENERAL PUBLIC RELATIONS EXPNS,H915,CIPR PROFESSIONAL MEMBERSHIP,MR AC DENNER,MEMBER ORGANISATIONS - DEF
http://statistics.data.gov.uk/id/local-authority/43UM,WOKING BOROUGH COUNCIL,08/03/2019,03/04/2019,0000436065/087,GAMMA TELECOM LIMITED,40610100,68.98,HOUSING SERVICES - SYRIAN REFUGEE FAMILES,PURCHASE OF OFFICE EQUIPMENT,Q580,PURCHASE OF OFFICE EQUIPMENT,HOUSING SERVICES,INFORMATION COMMUNICATION TECHNOLOGY
http://statistics.data.gov.uk/id/local-authority/43UM,WOKING BOROUGH COUNCIL,06/03/2019,03/04/2019,0000435796/001,IDOX SOFTWARE LIMITED,01937500,29667.07,INFORMATION TECHNOLOGY - I.T.S. ICT,PC & SERVER SYSTEMS SOFTWARE,G193,PC & SERVER SYSTEMS SOFTWARE,INFORMATION TECHNOLOGY,INFORMATION COMMUNICATION TECHNOLOGY
http://statistics.data.gov.uk/id/local-authority/43UM,WOKING BOROUGH COUNCIL,06/03/2019,03/04/2019,0000435796/002,IDOX SOFTWARE LIMITED,01937500,958.69,INFORMATION TECHNOLOGY - I.T.S. ICT,PC & SERVER SYSTEMS SOFTWARE,G193,PC & SERVER SYSTEMS SOFTWARE,INFORMATION TECHNOLOGY,INFORMATION COMMUNICATION TECHNOLOGY
http://statistics.data.gov.uk/id/local-authority/43UM,WOKING BOROUGH COUNCIL,07/01/2019,03/04/2019,0000436351/001,ANDRZEJ ZAKRZEWSKI,40677700,30.00,CORPORATE STRATEGY - WAVS,INTERPRETATION & TRANSLATION,H636,INTERPRETATION & TRANSLATION,CORPORATE STRATEGY,CONSULTANCY
http://statistics.data.gov.uk/id/local-authority/43UM,WOKING BOROUGH COUNCIL,11/03/2019,03/04/2019,0000436446/001,ANDRZEJ ZAKRZEWSKI,40677700,19.60,CORPORATE STRATEGY - WAVS,INTERPRETATION & TRANSLATION,H636,INTERPRETATION & TRANSLATION,CORPORATE STRATEGY,CONSULTANCY
http://statistics.data.gov.uk/id/local-authority/43UM,WOKING BOROUGH COUNCIL,06/03/2019,03/04/2019,0000436447/001,ANDRZEJ ZAKRZEWSKI,40677700,34.80,CORPORATE STRATEGY - WAVS,INTERPRETATION & TRANSLATION,H636,INTERPRETATION & TRANSLATION,CORPORATE STRATEGY,CONSULTANCY
http://statistics.data.gov.uk/id/local-authority/43UM,WOKING BOROUGH COUNCIL,12/03/2019,03/04/2019,0000436475/001,JULIET-ANN BATISTA,40690700,399.50,CORPORATE STRATEGY - WAVS,INTERPRETATION & TRANSLATION,H636,INTERPRETATION & TRANSLATION,CORPORATE STRATEGY,CONSULTANCY
http://statistics.data.gov.uk/id/local-authority/43UM,WOKING BOROUGH COUNCIL,06/03/2019,03/04/2019,0000436451/001,WERONIKA KLAPTOCZ,40669000,63.20,CORPORATE STRATEGY - WAVS,INTERPRETATION & TRANSLATION,H636,INTERPRETATION & TRANSLATION,CORPORATE STRATEGY,CONSULTANCY
http://statistics.data.gov.uk/id/local-authority/43UM,WOKING BOROUGH COUNCIL,11/03/2019,03/04/2019,0000436064/001,A M NELLESS LTD,40404900,95.00,HOUSING SERVICES - LETS RENT SCHEME,LANDLORD SAFETY CERTIFICATES,H776,LANDLORD SAFETY CERTIFICATES,HOUSING SERVICES,WORKS (CONSTRUCTION REPAIR MAINTENANCE)
http://statistics.data.gov.uk/id/local-authority/43UM,WOKING BOROUGH COUNCIL,07/03/2019,03/04/2019,0000436449/001,NYIT MEE MORBEY,40668000,49.90,CORPORATE STRATEGY - WAVS,INTERPRETATION & TRANSLATION,H636,INTERPRETATION & TRANSLATION,CORPORATE STRATEGY,CONSULTANCY
http://statistics.data.gov.uk/id/local-authority/43UM,WOKING BOROUGH COUNCIL,05/03/2019,03/04/2019,0000436450/001,ABDUL K ISMAIL,40662600,31.05,CORPORATE STRATEGY - WAVS,INTERPRETATION & TRANSLATION,H636,INTERPRETATION & TRANSLATION,CORPORATE STRATEGY,CONSULTANCY
http://statistics.data.gov.uk/id/local-authority/43UM,WOKING BOROUGH COUNCIL,04/03/2019,03/04/2019,0000436472/001,FATMA MEHMET,40663600,34.50,CORPORATE STRATEGY - WAVS,INTERPRETATION & TRANSLATION,H636,INTERPRETATION & TRANSLATION,CORPORATE STRATEGY,CONSULTANCY
http://statistics.data.gov.uk/id/local-authority/43UM,WOKING BOROUGH COUNCIL,28/02/2019,03/04/2019,0000436473/001,FATMA MEHMET,40663600,61.00,CORPORATE STRATEGY - WAVS,INTERPRETATION & TRANSLATION,H636,INTERPRETATION & TRANSLATION,CORPORATE STRATEGY,CONSULTANCY
http://statistics.data.gov.uk/id/local-authority/43UM,WOKING BOROUGH COUNCIL,05/03/2019,03/04/2019,0000436448/001,NELLI LEMBER,40680900,22.00,CORPORATE STRATEGY - WAVS,INTERPRETATION & TRANSLATION,H636,INTERPRETATION & TRANSLATION,CORPORATE STRATEGY,FINANCIAL SERVICES
http://statistics.data.gov.uk/id/local-authority/43UM,WOKING BOROUGH COUNCIL,18/03/2019,03/04/2019,0000436615/045,SKANSKA RASHLEIGH WEATHERFOIL LTD,40413600,389.82,ASSET MANAGEMENT - PEACOCK WALK MARKET,R&M BUILDINGS - CONTRACTORS,D100,R&M BUILDINGS - CONTRACTORS,ASSET MANAGEMENT,FACILITIES & MANAGEMENT SERVICES
http://statistics.data.gov.uk/id/local-authority/43UM,WOKING BOROUGH COUNCIL,18/03/2019,03/04/2019,0000436615/049,SKANSKA RASHLEIGH WEATHERFOIL LTD,40413600,4388.00,ASSET MANAGEMENT - PEACOCK WALK MARKET,R&M BUILDINGS - CONTRACTORS,D100,R&M BUILDINGS - CONTRACTORS,ASSET MANAGEMENT,FACILITIES & MANAGEMENT SERVICES
http://statistics.data.gov.uk/id/local-authority/43UM,WOKING BOROUGH COUNCIL,18/03/2019,03/04/2019,0000436615/007,SKANSKA RASHLEIGH WEATHERFOIL LTD,40413600,880.00,CORPORATE STRATEGY - LEISURE MANAGEMENT CONTRACT,R&M BUILDINGS - CONTRACTORS,D100,R&M BUILDINGS - CONTRACTORS,CORPORATE STRATEGY,FACILITIES & MANAGEMENT SERVICES
http://statistics.data.gov.uk/id/local-authority/43UM,WOKING BOROUGH COUNCIL,18/03/2019,03/04/2019,0000436615/020,SKANSKA RASHLEIGH WEATHERFOIL LTD,40413600,5447.82,CORPORATE STRATEGY - LEISURE MANAGEMENT CONTRACT,R&M BUILDINGS - CONTRACTORS,D100,R&M BUILDINGS - CONTRACTORS,CORPORATE STRATEGY,FACILITIES & MANAGEMENT SERVICES
http://statistics.data.gov.uk/id/local-authority/43UM,WOKING BOROUGH COUNCIL,18/03/2019,03/04/2019,0000436615/023,SKANSKA RASHLEIGH WEATHERFOIL LTD,40413600,127.60,CORPORATE STRATEGY - LEISURE MANAGEMENT CONTRACT,R&M BUILDINGS - CONTRACTORS,D100,R&M BUILDINGS - CONTRACTORS,CORPORATE STRATEGY,FACILITIES & MANAGEMENT SERVICES
http://statistics.data.gov.uk/id/local-authority/43UM,WOKING BOROUGH COUNCIL,18/03/2019,03/04/2019,0000436615/026,SKANSKA RASHLEIGH WEATHERFOIL LTD,40413600,1144.50,CORPORATE STRATEGY - LEISURE MANAGEMENT CONTRACT,R&M BUILDINGS - CONTRACTORS,D100,R&M BUILDINGS - CONTRACTORS,CORPORATE STRATEGY,FACILITIES & MANAGEMENT SERVICES
http://statistics.data.gov.uk/id/local-authority/43UM,WOKING BOROUGH COUNCIL,18/03/2019,03/04/2019,0000436615/034,SKANSKA RASHLEIGH WEATHERFOIL LTD,40413600,4127.56,CORPORATE STRATEGY - LEISURE MANAGEMENT CONTRACT,R&M BUILDINGS - CONTRACTORS,D100,R&M BUILDINGS - CONTRACTORS,CORPORATE STRATEGY,FACILITIES & MANAGEMENT SERVICES
http://statistics.data.gov.uk/id/local-authority/43UM,WOKING BOROUGH COUNCIL,18/03/2019,03/04/2019,0000436615/035,SKANSKA RASHLEIGH WEATHERFOIL LTD,40413600,1753.81,CORPORATE STRATEGY - LEISURE MANAGEMENT CONTRACT,R&M BUILDINGS - CONTRACTORS,D100,R&M BUILDINGS - CONTRACTORS,CORPORATE STRATEGY,FACILITIES & MANAGEMENT SERVICES
http://statistics.data.gov.uk/id/local-authority/43UM,WOKING BOROUGH COUNCIL,18/03/2019,03/04/2019,0000436615/046,SKANSKA RASHLEIGH WEATHERFOIL LTD,40413600,5446.51,CORPORATE STRATEGY - LEISURE MANAGEMENT CONTRACT,R&M BUILDINGS - CONTRACTORS,D100,R&M BUILDINGS - CONTRACTORS,CORPORATE STRATEGY,FACILITIES & MANAGEMENT SERVICES
http://statistics.data.gov.uk/id/local-authority/43UM,WOKING BOROUGH COUNCIL,18/03/2019,03/04/2019,0000436615/052,SKANSKA RASHLEIGH WEATHERFOIL LTD,40413600,220.00,CORPORATE STRATEGY - LEISURE MANAGEMENT CONTRACT,R&M BUILDINGS - CONTRACTORS,D100,R&M BUILDINGS - CONTRACTORS,CORPORATE STRATEGY,FACILITIES & MANAGEMENT SERVICES
http://statistics.data.gov.uk/id/local-authority/43UM,WOKING BOROUGH COUNCIL,06/03/2019,03/04/2019,0000435865/001,SIGNWAY SUPPLIES (DATCHET) LTD,00411200,4254.20,NEIGHBOURHOOD SERVICES - TOWN CTR MANAGEMENT,R&M BUILDINGS - CONTRACTORS,D100,R&M BUILDINGS - CONTRACTORS,NEIGHBOURHOOD SERVICES,WORKS (CONSTRUCTION REPAIR MAINTENANCE)
http://statistics.data.gov.uk/id/local-authority/43UM,WOKING BOROUGH COUNCIL,08/03/2019,03/04/2019,0000436065/054,GAMMA TELECOM LIMITED,40610100,289.04,HOUSING SERVICES - HEATING MAINTENANCE INDIVIDUAL,R&M BUILDINGS - CONTRACTORS,D100,R&M BUILDINGS - CONTRACTORS,HOUSING SERVICES,INFORMATION COMMUNICATION TECHNOLOGY
http://statistics.data.gov.uk/id/local-authority/43UM,WOKING BOROUGH COUNCIL,12/03/2019,03/04/2019,0000436793/001,SCCI ALPHATRACK LTD,40103400,77.00,HOUSING SERVICES - NTL,R&M BUILDINGS - CONTRACTORS,D100,R&M BUILDINGS - CONTRACTORS,HOUSING SERVICES,WORKS (CONSTRUCTION REPAIR MAINTENANCE)
http://statistics.data.gov.uk/id/local-authority/43UM,WOKING BOROUGH COUNCIL,12/03/2019,03/04/2019,0000436795/001,SCCI ALPHATRACK LTD,40103400,77.00,HOUSING SERVICES - NTL,R&M BUILDINGS - CONTRACTORS,D100,R&M BUILDINGS - CONTRACTORS,HOUSING SERVICES,WORKS (CONSTRUCTION REPAIR MAINTENANCE)
http://statistics.data.gov.uk/id/local-authority/43UM,WOKING BOROUGH COUNCIL,12/03/2019,03/04/2019,0000436796/001,SCCI ALPHATRACK LTD,40103400,154.00,HOUSING SERVICES - NTL,R&M BUILDINGS - CONTRACTORS,D100,R&M BUILDINGS - CONTRACTORS,HOUSING SERVICES,WORKS (CONSTRUCTION REPAIR MAINTENANCE)
http://statistics.data.gov.uk/id/local-authority/43UM,WOKING BOROUGH COUNCIL,11/03/2019,03/04/2019,0000436352/001,PROJECT114 LTD,40370300,7980.00,HOUSING SERVICES - HOUSING OPTIONS,BED & BREAKFAST EXPENDITURE,H786,BED & BREAKFAST EXPENDITURE,HOUSING SERVICES,HOUSING MANAGEMENT
http://statistics.data.gov.uk/id/local-authority/43UM,WOKING BOROUGH COUNCIL,11/03/2019,03/04/2019,0000436353/001,PROJECT114 LTD,40370300,420.00,HOUSING SERVICES - HOUSING OPTIONS,BED & BREAKFAST EXPENDITURE,H786,BED & BREAKFAST EXPENDITURE,HOUSING SERVICES,HOUSING MANAGEMENT
http://statistics.data.gov.uk/id/local-authority/43UM,WOKING BOROUGH COUNCIL,11/03/2019,03/04/2019,0000436363/001,PROJECT114 LTD,40370300,420.00,HOUSING SERVICES - HOUSING OPTIONS,BED & BREAKFAST EXPENDITURE,H786,BED & BREAKFAST EXPENDITURE,HOUSING SERVICES,HOUSING MANAGEMENT
http://statistics.data.gov.uk/id/local-authority/43UM,WOKING BOROUGH COUNCIL,11/03/2019,03/04/2019,0000436282/001,MARTIN CONWAY,01025900,360.00,HOUSING SERVICES - HOUSING OPTIONS,BED & BREAKFAST EXPENDITURE,H786,BED & BREAKFAST EXPENDITURE,HOUSING SERVICES,HOUSING MANAGEMENT
http://statistics.data.gov.uk/id/local-authority/43UM,WOKING BOROUGH COUNCIL,11/03/2019,03/04/2019,0000436283/001,MARTIN CONWAY,01025900,595.00,HOUSING SERVICES - HOUSING OPTIONS,BED & BREAKFAST EXPENDITURE,H786,BED & BREAKFAST EXPENDITURE,HOUSING SERVICES,HOUSING MANAGEMENT
http://statistics.data.gov.uk/id/local-authority/43UM,WOKING BOROUGH COUNCIL,11/03/2019,03/04/2019,0000436285/001,MARTIN CONWAY,01025900,595.00,HOUSING SERVICES - HOUSING OPTIONS,BED & BREAKFAST EXPENDITURE,H786,BED & BREAKFAST EXPENDITURE,HOUSING SERVICES,HOUSING MANAGEMENT
http://statistics.data.gov.uk/id/local-authority/43UM,WOKING BOROUGH COUNCIL,11/03/2019,03/04/2019,0000436286/001,MARTIN CONWAY,01025900,385.00,HOUSING SERVICES - HOUSING OPTIONS,BED & BREAKFAST EXPENDITURE,H786,BED & BREAKFAST EXPENDITURE,HOUSING SERVICES,HOUSING MANAGEMENT
http://statistics.data.gov.uk/id/local-authority/43UM,WOKING BOROUGH COUNCIL,11/03/2019,03/04/2019,0000436287/001,MARTIN CONWAY,01025900,490.00,HOUSING SERVICES - HOUSING OPTIONS,BED & BREAKFAST EXPENDITURE,H786,BED & BREAKFAST EXPENDITURE,HOUSING SERVICES,HOUSING MANAGEMENT
http://statistics.data.gov.uk/id/local-authority/43UM,WOKING BOROUGH COUNCIL,11/03/2019,03/04/2019,0000436288/001,MARTIN CONWAY,01025900,490.00,HOUSING SERVICES - HOUSING OPTIONS,BED & BREAKFAST EXPENDITURE,H786,BED & BREAKFAST EXPENDITURE,HOUSING SERVICES,HOUSING MANAGEMENT
http://statistics.data.gov.uk/id/local-authority/43UM,WOKING BOROUGH COUNCIL,11/03/2019,03/04/2019,0000436289/001,MARTIN CONWAY,01025900,455.00,HOUSING SERVICES - HOUSING OPTIONS,BED & BREAKFAST EXPENDITURE,H786,BED & BREAKFAST EXPENDITURE,HOUSING SERVICES,HOUSING MANAGEMENT
http://statistics.data.gov.uk/id/local-authority/43UM,WOKING BOROUGH COUNCIL,11/03/2019,03/04/2019,0000436290/001,MARTIN CONWAY,01025900,455.00,HOUSING SERVICES - HOUSING OPTIONS,BED & BREAKFAST EXPENDITURE,H786,BED & BREAKFAST EXPENDITURE,HOUSING SERVICES,HOUSING MANAGEMENT
http://statistics.data.gov.uk/id/local-authority/43UM,WOKING BOROUGH COUNCIL,11/03/2019,03/04/2019,0000436291/001,MARTIN CONWAY,01025900,385.00,HOUSING SERVICES - HOUSING OPTIONS,BED & BREAKFAST EXPENDITURE,H786,BED & BREAKFAST EXPENDITURE,HOUSING SERVICES,HOUSING MANAGEMENT
http://statistics.data.gov.uk/id/local-authority/43UM,WOKING BOROUGH COUNCIL,01/03/2019,03/04/2019,0000435866/001,ROY D WEST & NICOLA J WEST,40726700,12920.00,HOUSING SERVICES - PRIVATE SECTOR LEASING SCHEME,LEASE PAYMENTS TO LANDLORD,H787,LEASE PAYMENTS TO LANDLORD,HOUSING SERVICES,FINANCIAL SERVICES
http://statistics.data.gov.uk/id/local-authority/43UM,WOKING BOROUGH COUNCIL,11/03/2019,03/04/2019,0000436563/001,A MOLENDOWSKA & M FENGLER,40763300,12920.00,HOUSING SERVICES - PRIVATE SECTOR LEASING SCHEME,LEASE PAYMENTS TO LANDLORD,H787,LEASE PAYMENTS TO LANDLORD,HOUSING SERVICES,FINANCIAL SERVICES
http://statistics.data.gov.uk/id/local-authority/43UM,WOKING BOROUGH COUNCIL,25/02/2019,03/04/2019,0000435876/001,NICK ROACH & SALLY POWELL,40168700,12920.00,HOUSING SERVICES - PRIVATE SECTOR LEASING SCHEME,LEASE PAYMENTS TO LANDLORD,H787,LEASE PAYMENTS TO LANDLORD,HOUSING SERVICES,HOUSING MANAGEMENT
http://statistics.data.gov.uk/id/local-authority/43UM,WOKING BOROUGH COUNCIL,09/03/2019,03/04/2019,0000436069/001,IAN M BROWN & DAVID KERR,01613900,12920.00,HOUSING SERVICES - PRIVATE SECTOR LEASING SCHEME,LEASE PAYMENTS TO LANDLORD,H787,LEASE PAYMENTS TO LANDLORD,HOUSING SERVICES,HOUSING MANAGEMENT
http://statistics.data.gov.uk/id/local-authority/43UM,WOKING BOROUGH COUNCIL,09/03/2019,03/04/2019,0000436070/001,IAN M BROWN & DAVID KERR,01613900,12920.00,HOUSING SERVICES - PRIVATE SECTOR LEASING SCHEME,LEASE PAYMENTS TO LANDLORD,H787,LEASE PAYMENTS TO LANDLORD,HOUSING SERVICES,HOUSING MANAGEMENT
http://statistics.data.gov.uk/id/local-authority/43UM,WOKING BOROUGH COUNCIL,15/03/2019,03/04/2019,0000436459/001,G COLLYER T/A F.B.N.,40275500,12920.00,HOUSING SERVICES - PRIVATE SECTOR LEASING SCHEME,LEASE PAYMENTS TO LANDLORD,H787,LEASE PAYMENTS TO LANDLORD,HOUSING SERVICES,HOUSING MANAGEMENT
http://statistics.data.gov.uk/id/local-authority/43UM,WOKING BOROUGH COUNCIL,01/03/2019,03/04/2019,0000435864/001,M J HART &  C V HART,01802300,12920.00,HOUSING SERVICES - PRIVATE SECTOR LEASING SCHEME,LEASE PAYMENTS TO LANDLORD,H787,LEASE PAYMENTS TO LANDLORD,HOUSING SERVICES,HOUSING MANAGEMENT
http://statistics.data.gov.uk/id/local-authority/43UM,WOKING BOROUGH COUNCIL,03/04/2019,03/04/2019,GPC/00006776,SAINSBURYS S/MKTS,PROCUREMENT CARD,10.35,CORPORATE STRATEGY - LEGAL,EXPENSES,H483,LUNCH FOR TRAINING WEBINAR,MISS A J FRANCIS,GROCERY STORES
http://statistics.data.gov.uk/id/local-authority/43UM,WOKING BOROUGH COUNCIL,08/03/2019,03/04/2019,0000436635/001,ANDREW P BAYLISS,01555800,8520.00,HOUSING SERVICES - PRIVATE SECTOR LEASING SCHEME,LEASE PAYMENTS TO LANDLORD,H787,LEASE PAYMENTS TO LANDLORD,HOUSING SERVICES,HOUSING MANAGEMENT
http://statistics.data.gov.uk/id/local-authority/43UM,WOKING BOROUGH COUNCIL,06/03/2019,03/04/2019,0000435983/001,STEPHEN WILLIAMS,01757100,1257.79,HOUSING SERVICES - PRIVATE SECTOR LEASING SCHEME,LEASE PAYMENTS TO LANDLORD,H787,LEASE PAYMENTS TO LANDLORD,HOUSING SERVICES,HOUSING MANAGEMENT
http://statistics.data.gov.uk/id/local-authority/43UM,WOKING BOROUGH COUNCIL,24/02/2019,03/04/2019,0000436067/001,YOUNOUS BANDHOO,40219300,12920.00,HOUSING SERVICES - PRIVATE SECTOR LEASING SCHEME,LEASE PAYMENTS TO LANDLORD,H787,LEASE PAYMENTS TO LANDLORD,HOUSING SERVICES,HOUSING MANAGEMENT
http://statistics.data.gov.uk/id/local-authority/43UM,WOKING BOROUGH COUNCIL,24/02/2019,03/04/2019,0000436068/001,YOUNOUS BANDHOO,40219300,12920.00,HOUSING SERVICES - PRIVATE SECTOR LEASING SCHEME,LEASE PAYMENTS TO LANDLORD,H787,LEASE PAYMENTS TO LANDLORD,HOUSING SERVICES,HOUSING MANAGEMENT
http://statistics.data.gov.uk/id/local-authority/43UM,WOKING BOROUGH COUNCIL,04/03/2019,03/04/2019,0000435842/001,ANGELA KEATING,40768800,10434.00,HOUSING SERVICES - PRIVATE SECTOR LEASING SCHEME,LEASE PAYMENTS TO LANDLORD,H787,LEASE PAYMENTS TO LANDLORD,HOUSING SERVICES,FINANCIAL SERVICES
http://statistics.data.gov.uk/id/local-authority/43UM,WOKING BOROUGH COUNCIL,04/03/2019,03/04/2019,0000435844/001,MARION STONARD,01427800,10687.00,HOUSING SERVICES - PRIVATE SECTOR LEASING SCHEME,LEASE PAYMENTS TO LANDLORD,H787,LEASE PAYMENTS TO LANDLORD,HOUSING SERVICES,HOUSING MANAGEMENT
http://statistics.data.gov.uk/id/local-authority/43UM,WOKING BOROUGH COUNCIL,23/02/2019,03/04/2019,0000435937/001,MARTIN ROBERTS,01498700,10434.00,HOUSING SERVICES - PRIVATE SECTOR LEASING SCHEME,LEASE PAYMENTS TO LANDLORD,H787,LEASE PAYMENTS TO LANDLORD,HOUSING SERVICES,HOUSING MANAGEMENT
http://statistics.data.gov.uk/id/local-authority/43UM,WOKING BOROUGH COUNCIL,23/03/2019,03/04/2019,0000436634/001,STEPHEN OAKLEY,40620100,8226.00,HOUSING SERVICES - PRIVATE SECTOR LEASING SCHEME,LEASE PAYMENTS TO LANDLORD,H787,LEASE PAYMENTS TO LANDLORD,HOUSING SERVICES,HOUSING MANAGEMENT
http://statistics.data.gov.uk/id/local-authority/43UM,WOKING BOROUGH COUNCIL,25/02/2019,03/04/2019,0000435879/001,ADRIAN LEVANO,40778800,10434.00,HOUSING SERVICES - PRIVATE SECTOR LEASING SCHEME,LEASE PAYMENTS TO LANDLORD,H787,LEASE PAYMENTS TO LANDLORD,HOUSING SERVICES,FINANCIAL SERVICES
http://statistics.data.gov.uk/id/local-authority/43UM,WOKING BOROUGH COUNCIL,23/02/2019,03/04/2019,0000435880/001,DOUGLAS CAINE,40179300,12920.00,HOUSING SERVICES - PRIVATE SECTOR LEASING SCHEME,LEASE PAYMENTS TO LANDLORD,H787,LEASE PAYMENTS TO LANDLORD,HOUSING SERVICES,HOUSING MANAGEMENT
http://statistics.data.gov.uk/id/local-authority/43UM,WOKING BOROUGH COUNCIL,26/02/2019,03/04/2019,0000435851/001,KARL BROOKER,01459200,17904.00,HOUSING SERVICES - PRIVATE SECTOR LEASING SCHEME,LEASE PAYMENTS TO LANDLORD,H787,LEASE PAYMENTS TO LANDLORD,HOUSING SERVICES,HOUSING MANAGEMENT
http://statistics.data.gov.uk/id/local-authority/43UM,WOKING BOROUGH COUNCIL,28/02/2019,03/04/2019,0000435863/001,FREYA SMITH,01476500,10866.95,HOUSING SERVICES - PRIVATE SECTOR LEASING SCHEME,LEASE PAYMENTS TO LANDLORD,H787,LEASE PAYMENTS TO LANDLORD,HOUSING SERVICES,HOUSING MANAGEMENT
http://statistics.data.gov.uk/id/local-authority/43UM,WOKING BOROUGH COUNCIL,22/02/2019,03/04/2019,0000435881/001,SUE JOHNSON,40078800,12920.00,HOUSING SERVICES - PRIVATE SECTOR LEASING SCHEME,LEASE PAYMENTS TO LANDLORD,H787,LEASE PAYMENTS TO LANDLORD,HOUSING SERVICES,HOUSING MANAGEMENT
http://statistics.data.gov.uk/id/local-authority/43UM,WOKING BOROUGH COUNCIL,01/04/2019,03/04/2019,0000436354/001,J R SHAH,40798300,10434.00,HOUSING SERVICES - PRIVATE SECTOR LEASING SCHEME,LEASE PAYMENTS TO LANDLORD,H787,LEASE PAYMENTS TO LANDLORD,HOUSING SERVICES,HOUSING MANAGEMENT
http://statistics.data.gov.uk/id/local-authority/43UM,WOKING BOROUGH COUNCIL,01/04/2019,03/04/2019,0000436355/001,J R SHAH,40798300,12920.00,HOUSING SERVICES - PRIVATE SECTOR LEASING SCHEME,LEASE PAYMENTS TO LANDLORD,H787,LEASE PAYMENTS TO LANDLORD,HOUSING SERVICES,HOUSING MANAGEMENT
http://statistics.data.gov.uk/id/local-authority/43UM,WOKING BOROUGH COUNCIL,04/03/2019,03/04/2019,0000436182/001,FARNBOROUGH CONTRACTING SERVICES,40501900,464.20,NEIGHBOURHOOD SERVICES - TOWN CTR MANAGEMENT,GROUNDS MAINT-CONTRACTORS,D200,GROUNDS MAINT-CONTRACTORS,NEIGHBOURHOOD SERVICES,WORKS (CONSTRUCTION REPAIR MAINTENANCE)
http://statistics.data.gov.uk/id/local-authority/43UM,WOKING BOROUGH COUNCIL,08/02/2019,03/04/2019,0000435367/001,EVOLUTION (WOKING) LIMITED,40524400,257391.68,FINANCIAL SERVICES - APPROPRIATIONS,MINIMUM REVENUE PROVISION,U106,MINIMUM REVENUE PROVISION,FINANCIAL SERVICES,HOUSING MANAGEMENT
http://statistics.data.gov.uk/id/local-authority/43UM,WOKING BOROUGH COUNCIL,08/03/2019,03/04/2019,0000436609/001,EVOLUTION (WOKING) LIMITED,40524400,257391.68,FINANCIAL SERVICES - APPROPRIATIONS,MINIMUM REVENUE PROVISION,U106,MINIMUM REVENUE PROVISION,FINANCIAL SERVICES,HOUSING MANAGEMENT
http://statistics.data.gov.uk/id/local-authority/43UM,WOKING BOROUGH COUNCIL,07/03/2019,03/04/2019,0000435885/001,MAGMA SAFETY PRODUCTS LTD,40794000,174.80,NEIGHBOURHOOD SERVICES - TOWN CTR MANAGEMENT,GROUNDS MAINT-CONTRACTORS,D200,GROUNDS MAINT-CONTRACTORS,NEIGHBOURHOOD SERVICES,BUILDING CONSTRUCTION MATERIALS
http://statistics.data.gov.uk/id/local-authority/43UM,WOKING BOROUGH COUNCIL,31/01/2019,03/04/2019,0000436090/001,BAILEY STREETSCENE LTD,40762100,4980.00,NEIGHBOURHOOD SERVICES - TOWN CTR MANAGEMENT,GROUNDS MAINT-CONTRACTORS,D200,GROUNDS MAINT-CONTRACTORS,NEIGHBOURHOOD SERVICES,HIGHWAY EQUIPMENT & MATERIALS
http://statistics.data.gov.uk/id/local-authority/43UM,WOKING BOROUGH COUNCIL,08/03/2019,03/04/2019,0000436157/001,MCKAY SECURITIES PLC,40474500,35509.17,ASSET MANAGEMENT - TOWN CENTRE LEISURE,EXTERNAL INSURANCE CHARGE,D998,EXTERNAL INSURANCE CHARGE,ASSET MANAGEMENT,HOUSING MANAGEMENT
http://statistics.data.gov.uk/id/local-authority/43UM,WOKING BOROUGH COUNCIL,11/03/2019,03/04/2019,0000436176/001,WHISTL UK LIMITED,00367900,2699.21,CORPORATE STRATEGY - POSTAGE,POSTAGE - STANDARD TARIFF,G700,POSTAGE - STANDARD TARIFF,CORPORATE STRATEGY,MAIL SERVICES
http://statistics.data.gov.uk/id/local-authority/43UM,WOKING BOROUGH COUNCIL,11/03/2019,03/04/2019,0000436177/001,WHISTL UK LIMITED,00367900,80.65,CORPORATE STRATEGY - POSTAGE,POSTAGE - STANDARD TARIFF,G700,POSTAGE - STANDARD TARIFF,CORPORATE STRATEGY,MAIL SERVICES
http://statistics.data.gov.uk/id/local-authority/43UM,WOKING BOROUGH COUNCIL,03/04/2019,03/04/2019,GPC/00006775,THE NEC,PROCUREMENT CARD,13.33,NEIGHBOURHOOD SERVICES - CAR PARKS ADMIN&OPERATIONAL EX,PARKING COSTS,F510,PARKING AT NEC FOR PARKEX,IAN REYNOLDS,AUTO PARKING LOTS/GARAGES
http://statistics.data.gov.uk/id/local-authority/43UM,WOKING BOROUGH COUNCIL,06/03/2019,03/04/2019,0000435907/004,APPETITE 4 WORK LIMITED,40622000,30.00,H G WELLS - H G WELLS - FUNCTION ROOMS,TRAVEL EXPENSES-OFFICERS,F600,TRAVEL EXPENSES-OFFICERS,H G WELLS,CATERING
http://statistics.data.gov.uk/id/local-authority/43UM,WOKING BOROUGH COUNCIL,15/03/2019,03/04/2019,0000436366/001,GLEN HUSSEY,40754900,22.30,NEIGHBOURHOOD SERVICES - PARKING SERVICES,TRAVEL EXPENSES-OFFICERS,F600,TRAVEL EXPENSES-OFFICERS,NEIGHBOURHOOD SERVICES,FINANCIAL SERVICES
http://statistics.data.gov.uk/id/local-authority/43UM,WOKING BOROUGH COUNCIL,21/03/2019,03/04/2019,0000436519/001,NEIL ALLEN,01686200,57.40,REVENUES AND BENEFITS - BENEFIT SERVICES,TRAVEL EXPENSES-OFFICERS,F600,TRAVEL EXPENSES-OFFICERS,REVENUES AND BENEFITS,HUMAN RESOURCES
http://statistics.data.gov.uk/id/local-authority/43UM,WOKING BOROUGH COUNCIL,06/03/2019,03/04/2019,0000436410/001,ICL MEDIA,01821200,200.00,H G WELLS - H G WELLS - FUNCTION ROOMS,AUDIO VISUAL TECHNICIANS,G124,AUDIO VISUAL TECHNICIANS,H G WELLS,INFORMATION COMMUNICATION TECHNOLOGY
http://statistics.data.gov.uk/id/local-authority/43UM,WOKING BOROUGH COUNCIL,06/03/2019,03/04/2019,0000436411/001,ICL MEDIA,01821200,200.00,H G WELLS - H G WELLS - FUNCTION ROOMS,AUDIO VISUAL TECHNICIANS,G124,AUDIO VISUAL TECHNICIANS,H G WELLS,INFORMATION COMMUNICATION TECHNOLOGY
http://statistics.data.gov.uk/id/local-authority/43UM,WOKING BOROUGH COUNCIL,12/03/2019,03/04/2019,0000436171/001,HEADLINE DESIGN & PRINT,00016900,114.00,CORPORATE STRATEGY - DEMOCRATIC REPRESENTATION,MEMBERS MISC ALLOWANCES,H291,MEMBERS MISC ALLOWANCES,CORPORATE STRATEGY,FINANCIAL SERVICES
http://statistics.data.gov.uk/id/local-authority/43UM,WOKING BOROUGH COUNCIL,08/03/2019,03/04/2019,0000436065/001,GAMMA TELECOM LIMITED,40610100,488.38,CORPORATE STRATEGY - DEMOCRATIC REPRESENTATION,BLACKBERRY MOBILE COSTS,G847,BLACKBERRY MOBILE COSTS,CORPORATE STRATEGY,INFORMATION COMMUNICATION TECHNOLOGY
http://statistics.data.gov.uk/id/local-authority/43UM,WOKING BOROUGH COUNCIL,08/03/2019,03/04/2019,0000436065/008,GAMMA TELECOM LIMITED,40610100,13.16,CORPORATE STRATEGY - CORPORATE & MEMBER SUPPORT MGR,BLACKBERRY MOBILE COSTS,G847,BLACKBERRY MOBILE COSTS,CORPORATE STRATEGY,INFORMATION COMMUNICATION TECHNOLOGY
http://statistics.data.gov.uk/id/local-authority/43UM,WOKING BOROUGH COUNCIL,08/03/2019,03/04/2019,0000436065/010,GAMMA TELECOM LIMITED,40610100,10.99,ASSET MANAGEMENT - HOLLYWOOD HOUSE,TELEPHONES-CALL CHARGES,G810,TELEPHONES-CALL CHARGES,ASSET MANAGEMENT,INFORMATION COMMUNICATION TECHNOLOGY
http://statistics.data.gov.uk/id/local-authority/43UM,WOKING BOROUGH COUNCIL,08/03/2019,03/04/2019,0000436065/013,GAMMA TELECOM LIMITED,40610100,10.99,ASSET MANAGEMENT - KINGFIELD ROAD COMMUNITY BLDG,TELEPHONES-CALL CHARGES,G810,TELEPHONES-CALL CHARGES,ASSET MANAGEMENT,INFORMATION COMMUNICATION TECHNOLOGY
http://statistics.data.gov.uk/id/local-authority/43UM,WOKING BOROUGH COUNCIL,08/03/2019,03/04/2019,0000436065/019,GAMMA TELECOM LIMITED,40610100,21.87,ASSET MANAGEMENT - FACILITIES MANAGEMENT,BLACKBERRY MOBILE COSTS,G847,BLACKBERRY MOBILE COSTS,ASSET MANAGEMENT,INFORMATION COMMUNICATION TECHNOLOGY
http://statistics.data.gov.uk/id/local-authority/43UM,WOKING BOROUGH COUNCIL,08/03/2019,03/04/2019,0000436065/020,GAMMA TELECOM LIMITED,40610100,10.99,ASSET MANAGEMENT - FACILITIES MANAGEMENT,PAYMENTS TO CONTRACTORS,H780,PAYMENTS TO CONTRACTORS,ASSET MANAGEMENT,INFORMATION COMMUNICATION TECHNOLOGY
http://statistics.data.gov.uk/id/local-authority/43UM,WOKING BOROUGH COUNCIL,08/03/2019,03/04/2019,0000436065/027,GAMMA TELECOM LIMITED,40610100,19.82,NEIGHBOURHOOD SERVICES - COMMUNITY SAFETY,BLACKBERRY MOBILE COSTS,G847,BLACKBERRY MOBILE COSTS,NEIGHBOURHOOD SERVICES,INFORMATION COMMUNICATION TECHNOLOGY
http://statistics.data.gov.uk/id/local-authority/43UM,WOKING BOROUGH COUNCIL,08/03/2019,03/04/2019,0000436065/028,GAMMA TELECOM LIMITED,40610100,52.69,NEIGHBOURHOOD SERVICES - COMMUNITY DEVELOPMENT,BLACKBERRY MOBILE COSTS,G847,BLACKBERRY MOBILE COSTS,NEIGHBOURHOOD SERVICES,INFORMATION COMMUNICATION TECHNOLOGY
http://statistics.data.gov.uk/id/local-authority/43UM,WOKING BOROUGH COUNCIL,08/03/2019,03/04/2019,0000436065/029,GAMMA TELECOM LIMITED,40610100,9.91,H G WELLS - H G WELLS GEN MANAGER & OFFICE,BLACKBERRY MOBILE COSTS,G847,BLACKBERRY MOBILE COSTS,H G WELLS,INFORMATION COMMUNICATION TECHNOLOGY
http://statistics.data.gov.uk/id/local-authority/43UM,WOKING BOROUGH COUNCIL,08/03/2019,03/04/2019,0000436065/030,GAMMA TELECOM LIMITED,40610100,19.82,H G WELLS - H G WELLS OPERATIONS,BLACKBERRY MOBILE COSTS,G847,BLACKBERRY MOBILE COSTS,H G WELLS,INFORMATION COMMUNICATION TECHNOLOGY
http://statistics.data.gov.uk/id/local-authority/43UM,WOKING BOROUGH COUNCIL,08/03/2019,03/04/2019,0000436065/036,GAMMA TELECOM LIMITED,40610100,25.40,INDEPENDENT LIVING SERVICES - MOORCROFT,TELEPHONES-CALL CHARGES,G810,TELEPHONES-CALL CHARGES,INDEPENDENT LIVING SERVICES,INFORMATION COMMUNICATION TECHNOLOGY
http://statistics.data.gov.uk/id/local-authority/43UM,WOKING BOROUGH COUNCIL,08/03/2019,03/04/2019,0000436065/038,GAMMA TELECOM LIMITED,40610100,10.99,INDEPENDENT LIVING SERVICES - BROCKHILL EXTRA CARE,TELEPHONES-CALL CHARGES,G810,TELEPHONES-CALL CHARGES,INDEPENDENT LIVING SERVICES,INFORMATION COMMUNICATION TECHNOLOGY
http://statistics.data.gov.uk/id/local-authority/43UM,WOKING BOROUGH COUNCIL,08/03/2019,03/04/2019,0000436065/040,GAMMA TELECOM LIMITED,40610100,32.97,INDEPENDENT LIVING SERVICES - THE VYNE,TELEPHONES-CALL CHARGES,G810,TELEPHONES-CALL CHARGES,INDEPENDENT LIVING SERVICES,INFORMATION COMMUNICATION TECHNOLOGY
http://statistics.data.gov.uk/id/local-authority/43UM,WOKING BOROUGH COUNCIL,08/03/2019,03/04/2019,0000436065/043,GAMMA TELECOM LIMITED,40610100,15.65,INDEPENDENT LIVING SERVICES - PARKVIEW,TELEPHONES-CALL CHARGES,G810,TELEPHONES-CALL CHARGES,INDEPENDENT LIVING SERVICES,INFORMATION COMMUNICATION TECHNOLOGY
http://statistics.data.gov.uk/id/local-authority/43UM,WOKING BOROUGH COUNCIL,08/03/2019,03/04/2019,0000436065/044,GAMMA TELECOM LIMITED,40610100,37.14,INDEPENDENT LIVING SERVICES - ST MARY'S DAY CENTRE,TELEPHONES-CALL CHARGES,G810,TELEPHONES-CALL CHARGES,INDEPENDENT LIVING SERVICES,INFORMATION COMMUNICATION TECHNOLOGY
http://statistics.data.gov.uk/id/local-authority/43UM,WOKING BOROUGH COUNCIL,08/03/2019,03/04/2019,0000436065/046,GAMMA TELECOM LIMITED,40610100,69.09,INDEPENDENT LIVING SERVICES - MEALS ON WHEELS,TELEPHONES-CALL CHARGES,G810,TELEPHONES-CALL CHARGES,INDEPENDENT LIVING SERVICES,INFORMATION COMMUNICATION TECHNOLOGY
http://statistics.data.gov.uk/id/local-authority/43UM,WOKING BOROUGH COUNCIL,08/03/2019,03/04/2019,0000436065/050,GAMMA TELECOM LIMITED,40610100,39.64,INDEPENDENT LIVING SERVICES - MEALS SERVICE,BLACKBERRY MOBILE COSTS,G847,BLACKBERRY MOBILE COSTS,INDEPENDENT LIVING SERVICES,INFORMATION COMMUNICATION TECHNOLOGY
http://statistics.data.gov.uk/id/local-authority/43UM,WOKING BOROUGH COUNCIL,08/03/2019,03/04/2019,0000436065/051,GAMMA TELECOM LIMITED,40610100,9.91,INDEPENDENT LIVING SERVICES - CARELINE,BLACKBERRY MOBILE COSTS,G847,BLACKBERRY MOBILE COSTS,INDEPENDENT LIVING SERVICES,INFORMATION COMMUNICATION TECHNOLOGY
http://statistics.data.gov.uk/id/local-authority/43UM,WOKING BOROUGH COUNCIL,08/03/2019,03/04/2019,0000436065/052,GAMMA TELECOM LIMITED,40610100,77.01,INDEPENDENT LIVING SERVICES - FAMILY SUPPORT PROGRAMME,BLACKBERRY MOBILE COSTS,G847,BLACKBERRY MOBILE COSTS,INDEPENDENT LIVING SERVICES,INFORMATION COMMUNICATION TECHNOLOGY
http://statistics.data.gov.uk/id/local-authority/43UM,WOKING BOROUGH COUNCIL,08/03/2019,03/04/2019,0000436065/053,GAMMA TELECOM LIMITED,40610100,10.99,HOUSING SERVICES - REPAIRS ADMINISTRATION,TELEPHONES-CALL CHARGES,G810,TELEPHONES-CALL CHARGES,HOUSING SERVICES,INFORMATION COMMUNICATION TECHNOLOGY
http://statistics.data.gov.uk/id/local-authority/43UM,WOKING BOROUGH COUNCIL,08/03/2019,03/04/2019,0000436065/057,GAMMA TELECOM LIMITED,40610100,11.80,HOUSING SERVICES - DISABLED FACILITIES GRANTS,TELEPHONES-CALL CHARGES,G810,TELEPHONES-CALL CHARGES,HOUSING SERVICES,INFORMATION COMMUNICATION TECHNOLOGY
http://statistics.data.gov.uk/id/local-authority/43UM,WOKING BOROUGH COUNCIL,08/03/2019,03/04/2019,0000436065/059,GAMMA TELECOM LIMITED,40610100,35.47,HOUSING SERVICES - HRA MARKET TESTING,BLACKBERRY MOBILE COSTS,G847,BLACKBERRY MOBILE COSTS,HOUSING SERVICES,INFORMATION COMMUNICATION TECHNOLOGY
http://statistics.data.gov.uk/id/local-authority/43UM,WOKING BOROUGH COUNCIL,08/03/2019,03/04/2019,0000436065/060,GAMMA TELECOM LIMITED,40610100,342.19,HOUSING SERVICES - HOUSING SERVICES GENERAL EXPEN,TELEPHONES-CALL CHARGES,G810,TELEPHONES-CALL CHARGES,HOUSING SERVICES,INFORMATION COMMUNICATION TECHNOLOGY
http://statistics.data.gov.uk/id/local-authority/43UM,WOKING BOROUGH COUNCIL,08/03/2019,03/04/2019,0000436065/061,GAMMA TELECOM LIMITED,40610100,29.73,HOUSING SERVICES - HOMELINK,BLACKBERRY MOBILE COSTS,G847,BLACKBERRY MOBILE COSTS,HOUSING SERVICES,INFORMATION COMMUNICATION TECHNOLOGY
http://statistics.data.gov.uk/id/local-authority/43UM,WOKING BOROUGH COUNCIL,08/03/2019,03/04/2019,0000436065/063,GAMMA TELECOM LIMITED,40610100,10.99,NEIGHBOURHOOD SERVICES - OUTDOOR SPORTS OPERATING,TELEPHONES-CALL CHARGES,G810,TELEPHONES-CALL CHARGES,NEIGHBOURHOOD SERVICES,INFORMATION COMMUNICATION TECHNOLOGY
http://statistics.data.gov.uk/id/local-authority/43UM,WOKING BOROUGH COUNCIL,08/03/2019,03/04/2019,0000436065/064,GAMMA TELECOM LIMITED,40610100,25.56,NEIGHBOURHOOD SERVICES - WEST NEIGHBOURHOOD TEAM,BLACKBERRY MOBILE COSTS,G847,BLACKBERRY MOBILE COSTS,NEIGHBOURHOOD SERVICES,INFORMATION COMMUNICATION TECHNOLOGY
http://statistics.data.gov.uk/id/local-authority/43UM,WOKING BOROUGH COUNCIL,08/03/2019,03/04/2019,0000436065/066,GAMMA TELECOM LIMITED,40610100,19.82,NEIGHBOURHOOD SERVICES - CENTRAL NEIGHBOURHOOD TEAM,BLACKBERRY MOBILE COSTS,G847,BLACKBERRY MOBILE COSTS,NEIGHBOURHOOD SERVICES,INFORMATION COMMUNICATION TECHNOLOGY
http://statistics.data.gov.uk/id/local-authority/43UM,WOKING BOROUGH COUNCIL,08/03/2019,03/04/2019,0000436065/068,GAMMA TELECOM LIMITED,40610100,19.82,NEIGHBOURHOOD SERVICES - EAST NEIGHBOURHOOD TEAM,BLACKBERRY MOBILE COSTS,G847,BLACKBERRY MOBILE COSTS,NEIGHBOURHOOD SERVICES,INFORMATION COMMUNICATION TECHNOLOGY
http://statistics.data.gov.uk/id/local-authority/43UM,WOKING BOROUGH COUNCIL,08/03/2019,03/04/2019,0000436065/069,GAMMA TELECOM LIMITED,40610100,19.82,NEIGHBOURHOOD SERVICES - CONTRACTS AND PROJECT SUPPORT,BLACKBERRY MOBILE COSTS,G847,BLACKBERRY MOBILE COSTS,NEIGHBOURHOOD SERVICES,INFORMATION COMMUNICATION TECHNOLOGY
http://statistics.data.gov.uk/id/local-authority/43UM,WOKING BOROUGH COUNCIL,08/03/2019,03/04/2019,0000436065/070,GAMMA TELECOM LIMITED,40610100,9.91,NEIGHBOURHOOD SERVICES - PARKING SERVICES,BLACKBERRY MOBILE COSTS,G847,BLACKBERRY MOBILE COSTS,NEIGHBOURHOOD SERVICES,INFORMATION COMMUNICATION TECHNOLOGY
http://statistics.data.gov.uk/id/local-authority/43UM,WOKING BOROUGH COUNCIL,08/03/2019,03/04/2019,0000436065/073,GAMMA TELECOM LIMITED,40610100,94.83,NEIGHBOURHOOD SERVICES - CAR PARKS ADMIN&OPERATIONAL EX,TELEPHONES-CALL CHARGES,G810,TELEPHONES-CALL CHARGES,NEIGHBOURHOOD SERVICES,INFORMATION COMMUNICATION TECHNOLOGY
http://statistics.data.gov.uk/id/local-authority/43UM,WOKING BOROUGH COUNCIL,08/03/2019,03/04/2019,0000436065/076,GAMMA TELECOM LIMITED,40610100,9.91,PLANNING SERVICES - DEVELOPMENT CONTROL,BLACKBERRY MOBILE COSTS,G847,BLACKBERRY MOBILE COSTS,PLANNING SERVICES,INFORMATION COMMUNICATION TECHNOLOGY
http://statistics.data.gov.uk/id/local-authority/43UM,WOKING BOROUGH COUNCIL,08/03/2019,03/04/2019,0000436065/078,GAMMA TELECOM LIMITED,40610100,61.05,CORPORATE MANAGEMENT GROUP - CORPORATE MANAGEMENT GROUP,BLACKBERRY MOBILE COSTS,G847,BLACKBERRY MOBILE COSTS,CORPORATE MANAGEMENT GROUP,INFORMATION COMMUNICATION TECHNOLOGY
http://statistics.data.gov.uk/id/local-authority/43UM,WOKING BOROUGH COUNCIL,08/03/2019,03/04/2019,0000436065/079,GAMMA TELECOM LIMITED,40610100,87.32,CORPORATE STRATEGY - BUSINESS IMPROVEMENT,BLACKBERRY MOBILE COSTS,G847,BLACKBERRY MOBILE COSTS,CORPORATE STRATEGY,INFORMATION COMMUNICATION TECHNOLOGY
http://statistics.data.gov.uk/id/local-authority/43UM,WOKING BOROUGH COUNCIL,08/03/2019,03/04/2019,0000436065/080,GAMMA TELECOM LIMITED,40610100,9.91,PLANNING SERVICES - STRATEGY,BLACKBERRY MOBILE COSTS,G847,BLACKBERRY MOBILE COSTS,PLANNING SERVICES,INFORMATION COMMUNICATION TECHNOLOGY
http://statistics.data.gov.uk/id/local-authority/43UM,WOKING BOROUGH COUNCIL,08/03/2019,03/04/2019,0000436065/081,GAMMA TELECOM LIMITED,40610100,17.33,CORPORATE STRATEGY - MARKETING SERVICES,BLACKBERRY MOBILE COSTS,G847,BLACKBERRY MOBILE COSTS,CORPORATE STRATEGY,INFORMATION COMMUNICATION TECHNOLOGY
http://statistics.data.gov.uk/id/local-authority/43UM,WOKING BOROUGH COUNCIL,08/03/2019,03/04/2019,0000436065/082,GAMMA TELECOM LIMITED,40610100,19.82,CORPORATE STRATEGY - ECONOMIC DEVELOPMENT,BLACKBERRY MOBILE COSTS,G847,BLACKBERRY MOBILE COSTS,CORPORATE STRATEGY,INFORMATION COMMUNICATION TECHNOLOGY
http://statistics.data.gov.uk/id/local-authority/43UM,WOKING BOROUGH COUNCIL,08/03/2019,03/04/2019,0000436065/083,GAMMA TELECOM LIMITED,40610100,9.91,CORPORATE MANAGEMENT GROUP - HUMAN RESOURCES,BLACKBERRY MOBILE COSTS,G847,BLACKBERRY MOBILE COSTS,CORPORATE MANAGEMENT GROUP,INFORMATION COMMUNICATION TECHNOLOGY
http://statistics.data.gov.uk/id/local-authority/43UM,WOKING BOROUGH COUNCIL,08/03/2019,03/04/2019,0000436065/084,GAMMA TELECOM LIMITED,40610100,9.91,CORPORATE MANAGEMENT GROUP - INTEGRATED TRANSPORT PROJECT,BLACKBERRY MOBILE COSTS,G847,BLACKBERRY MOBILE COSTS,CORPORATE MANAGEMENT GROUP,INFORMATION COMMUNICATION TECHNOLOGY
http://statistics.data.gov.uk/id/local-authority/43UM,WOKING BOROUGH COUNCIL,18/03/2019,03/04/2019,0000436615/001,SKANSKA RASHLEIGH WEATHERFOIL LTD,40413600,342.40,ASSET MANAGEMENT - INTEGRATED TRANSPORT PLAN,MISCELLANEOUS EXPENSES,Q660,MISCELLANEOUS EXPENSES,ASSET MANAGEMENT,FACILITIES & MANAGEMENT SERVICES
http://statistics.data.gov.uk/id/local-authority/43UM,WOKING BOROUGH COUNCIL,18/03/2019,03/04/2019,0000436615/006,SKANSKA RASHLEIGH WEATHERFOIL LTD,40413600,4898.46,ASSET MANAGEMENT - INTEGRATED TRANSPORT PLAN,MISCELLANEOUS EXPENSES,Q660,MISCELLANEOUS EXPENSES,ASSET MANAGEMENT,FACILITIES & MANAGEMENT SERVICES
http://statistics.data.gov.uk/id/local-authority/43UM,WOKING BOROUGH COUNCIL,18/03/2019,03/04/2019,0000436615/029,SKANSKA RASHLEIGH WEATHERFOIL LTD,40413600,2474.30,ASSET MANAGEMENT - INTEGRATED TRANSPORT PLAN,MISCELLANEOUS EXPENSES,Q660,MISCELLANEOUS EXPENSES,ASSET MANAGEMENT,FACILITIES & MANAGEMENT SERVICES
http://statistics.data.gov.uk/id/local-authority/43UM,WOKING BOROUGH COUNCIL,07/03/2019,03/04/2019,0000435904/001,TITANOSAUR PROPERTIES LIMITED,40740900,3333.33,ASSET MANAGEMENT - INTEGRATED TRANSPORT PLAN,MISCELLANEOUS EXPENSES,Q660,MISCELLANEOUS EXPENSES,ASSET MANAGEMENT,FINANCIAL SERVICES
http://statistics.data.gov.uk/id/local-authority/43UM,WOKING BOROUGH COUNCIL,11/03/2019,03/04/2019,0000436397/001,RUNNYMEDE BOROUGH COUNCIL,01039000,6000.00,NEIGHBOURHOOD SERVICES - ARTS PARTNERSHIP SURREY,MISCELLANEOUS EXPENSES,X827,MISCELLANEOUS EXPENSES,NEIGHBOURHOOD SERVICES,WORKS (CONSTRUCTION REPAIR MAINTENANCE)
http://statistics.data.gov.uk/id/local-authority/43UM,WOKING BOROUGH COUNCIL,03/04/2019,03/04/2019,GPC/00006772,EB *SEMINAR AN INTRODU,PROCUREMENT CARD,224.95,CORPORATE STRATEGY - DEMOCRATIC REPRESENTATION,MEMBERS TRAINING,H284,TRAINING FOR CLLR AZAD,CHARLOTTE GRIFFITHS,BUSINESS SERVICES - DEFAULT
http://statistics.data.gov.uk/id/local-authority/43UM,WOKING BOROUGH COUNCIL,03/04/2019,03/04/2019,GPC/00006771,EB *WORKSHOP UNDERSTAN,PROCUREMENT CARD,249.95,CORPORATE STRATEGY - DEMOCRATIC REPRESENTATION,MEMBERS TRAINING,H284,TRAINING FOR CLLR AZAD,CHARLOTTE GRIFFITHS,BUSINESS SERVICES - DEFAULT
http://statistics.data.gov.uk/id/local-authority/43UM,WOKING BOROUGH COUNCIL,27/03/2019,03/04/2019,0000436775/001,WIRELESS CCTV LTD,01497800,1727.00,ASSET MANAGEMENT - INTEGRATED TRANSPORT PLAN,MISCELLANEOUS EXPENSES,Q660,MISCELLANEOUS EXPENSES,ASSET MANAGEMENT,FACILITIES & MANAGEMENT SERVICES
http://statistics.data.gov.uk/id/local-authority/43UM,WOKING BOROUGH COUNCIL,06/03/2019,03/04/2019,0000436232/001,BYFLEET COMMUNITY LIBRARY,40745400,6.00,CORPORATE STRATEGY - DEMOCRATIC REPRESENTATION,MEMBERS SURGERY COSTS,H286,MEMBERS SURGERY COSTS,CORPORATE STRATEGY,FINANCIAL SERVICES
http://statistics.data.gov.uk/id/local-authority/43UM,WOKING BOROUGH COUNCIL,06/03/2019,03/04/2019,0000436115/001,KENT COUNTY COUNCIL (KCS),00050800,3067.89,INFORMATION TECHNOLOGY - ICT GENERAL REPLACEMENT 14/15,REPLACEMENT EQUIPMENT,Q010,REPLACEMENT EQUIPMENT,INFORMATION TECHNOLOGY,UTILITIES
http://statistics.data.gov.uk/id/local-authority/43UM,WOKING BOROUGH COUNCIL,06/03/2019,03/04/2019,0000435853/001,KORN FERRY (UK) LIMITED,40620000,9426.00,CORPORATE MANAGEMENT GROUP - STAFF TRAINING/GENERAL COSTS,TRAINING - MANAGEMENT,A920,TRAINING - MANAGEMENT,CORPORATE MANAGEMENT GROUP,HUMAN RESOURCES
http://statistics.data.gov.uk/id/local-authority/43UM,WOKING BOROUGH COUNCIL,11/03/2019,03/04/2019,0000436138/001,KORN FERRY (UK) LIMITED,40620000,112.08,CORPORATE MANAGEMENT GROUP - STAFF TRAINING/GENERAL COSTS,TRAINING - MANAGEMENT,A920,TRAINING - MANAGEMENT,CORPORATE MANAGEMENT GROUP,HUMAN RESOURCES
http://statistics.data.gov.uk/id/local-authority/43UM,WOKING BOROUGH COUNCIL,07/03/2019,03/04/2019,0000435952/001,RACHAEL WILEMAN DESIGN,40764000,25.00,CORPORATE MANAGEMENT GROUP - STAFF TRAINING/GENERAL COSTS,TRAINING - MANAGEMENT,A920,TRAINING - MANAGEMENT,CORPORATE MANAGEMENT GROUP,FINANCIAL SERVICES
http://statistics.data.gov.uk/id/local-authority/43UM,WOKING BOROUGH COUNCIL,01/03/2019,03/04/2019,0000435915/004,ALPHABET (GB) LIMITED,00015200,-72.00,CORPORATE MANAGEMENT GROUP - LEASED CAR RELIEF,REVENUE CONTRIBUTIONS,T775,REVENUE CONTRIBUTIONS,CORPORATE MANAGEMENT GROUP,VEHICLE MANAGEMENT
http://statistics.data.gov.uk/id/local-authority/43UM,WOKING BOROUGH COUNCIL,01/03/2019,03/04/2019,0000435915/006,ALPHABET (GB) LIMITED,00015200,3717.02,ASSET MANAGEMENT - BUILDING SERVICES,VEHICLE LEASING COSTS,F400,VEHICLE LEASING COSTS,ASSET MANAGEMENT,VEHICLE MANAGEMENT
http://statistics.data.gov.uk/id/local-authority/43UM,WOKING BOROUGH COUNCIL,01/03/2019,03/04/2019,0000435916/001,ALPHABET (GB) LIMITED,00015200,10.00,ASSET MANAGEMENT - BUILDING SERVICES,VEHICLE LEASING COSTS,F400,VEHICLE LEASING COSTS,ASSET MANAGEMENT,VEHICLE MANAGEMENT
http://statistics.data.gov.uk/id/local-authority/43UM,WOKING BOROUGH COUNCIL,13/03/2019,03/04/2019,0000436613/001,ALPHABET (GB) LIMITED,00015200,7452.90,ASSET MANAGEMENT - BUILDING SERVICES,VEHICLE LEASING COSTS,F400,VEHICLE LEASING COSTS,ASSET MANAGEMENT,VEHICLE MANAGEMENT
http://statistics.data.gov.uk/id/local-authority/43UM,WOKING BOROUGH COUNCIL,10/03/2019,03/04/2019,0000436307/001,COMPLETE IT SYSTEMS,40591300,2175.00,INFORMATION TECHNOLOGY - ICT GENERAL REPLACEMENT 2018/19,REPLACEMENT EQUIPMENT,Q010,REPLACEMENT EQUIPMENT,INFORMATION TECHNOLOGY,INFORMATION COMMUNICATION TECHNOLOGY
http://statistics.data.gov.uk/id/local-authority/43UM,WOKING BOROUGH COUNCIL,10/03/2019,03/04/2019,0000436307/002,COMPLETE IT SYSTEMS,40591300,107.00,INFORMATION TECHNOLOGY - ICT GENERAL REPLACEMENT 2018/19,REPLACEMENT EQUIPMENT,Q010,REPLACEMENT EQUIPMENT,INFORMATION TECHNOLOGY,INFORMATION COMMUNICATION TECHNOLOGY
http://statistics.data.gov.uk/id/local-authority/43UM,WOKING BOROUGH COUNCIL,06/03/2019,03/04/2019,0000435811/001,GIBBS & DANDY,40335300,22.02,HOUSING SERVICES - HOME IMPS & BEN AGENCY,HANDYPERSON MATERIALS,G201,HANDYPERSON MATERIALS,HOUSING SERVICES,BUILDING CONSTRUCTION MATERIALS
http://statistics.data.gov.uk/id/local-authority/43UM,WOKING BOROUGH COUNCIL,07/03/2019,03/04/2019,0000436011/001,GIBBS & DANDY,40335300,734.98,HOUSING SERVICES - HOME IMPS & BEN AGENCY,HANDYPERSON MATERIALS,G201,HANDYPERSON MATERIALS,HOUSING SERVICES,BUILDING CONSTRUCTION MATERIALS
http://statistics.data.gov.uk/id/local-authority/43UM,WOKING BOROUGH COUNCIL,07/03/2019,03/04/2019,0000436012/001,GIBBS & DANDY,40335300,64.60,HOUSING SERVICES - HOME IMPS & BEN AGENCY,HANDYPERSON MATERIALS,G201,HANDYPERSON MATERIALS,HOUSING SERVICES,BUILDING CONSTRUCTION MATERIALS
http://statistics.data.gov.uk/id/local-authority/43UM,WOKING BOROUGH COUNCIL,07/03/2019,03/04/2019,0000436013/001,GIBBS & DANDY,40335300,31.07,HOUSING SERVICES - HOME IMPS & BEN AGENCY,HANDYPERSON MATERIALS,G201,HANDYPERSON MATERIALS,HOUSING SERVICES,BUILDING CONSTRUCTION MATERIALS
http://statistics.data.gov.uk/id/local-authority/43UM,WOKING BOROUGH COUNCIL,03/04/2019,03/04/2019,GPC/00006764,AMZN MKTP UK,PROCUREMENT CARD,6.66,HOUSING SERVICES - HOME IMPS & BEN AGENCY,HANDYPERSON MATERIALS,G201,HANDYPERSON MATERIALS,MYCROFT HUNTER,BOOK STORES
http://statistics.data.gov.uk/id/local-authority/43UM,WOKING BOROUGH COUNCIL,07/03/2019,03/04/2019,0000436647/001,SAFETYSHOP,00904900,8.50,INDEPENDENT LIVING SERVICES - ST. MARY'S,FACILITIES MANAGEMENT,C559,FACILITIES MANAGEMENT,INDEPENDENT LIVING SERVICES,HEALTH & SAFETY
http://statistics.data.gov.uk/id/local-authority/43UM,WOKING BOROUGH COUNCIL,07/03/2019,03/04/2019,0000436647/002,SAFETYSHOP,00904900,5.95,INDEPENDENT LIVING SERVICES - ST. MARY'S,FACILITIES MANAGEMENT,C559,FACILITIES MANAGEMENT,INDEPENDENT LIVING SERVICES,HEALTH & SAFETY
http://statistics.data.gov.uk/id/local-authority/43UM,WOKING BOROUGH COUNCIL,18/03/2019,03/04/2019,0000436615/004,SKANSKA RASHLEIGH WEATHERFOIL LTD,40413600,6519.74,ASSET MANAGEMENT - PEACOCKS - GENERAL,PEACOCKS R&M HOLDING,D108,PEACOCKS R&M HOLDING,ASSET MANAGEMENT,FACILITIES & MANAGEMENT SERVICES
http://statistics.data.gov.uk/id/local-authority/43UM,WOKING BOROUGH COUNCIL,18/03/2019,03/04/2019,0000436615/005,SKANSKA RASHLEIGH WEATHERFOIL LTD,40413600,106.92,ASSET MANAGEMENT - PEACOCKS - GENERAL,PEACOCKS R&M HOLDING,D108,PEACOCKS R&M HOLDING,ASSET MANAGEMENT,FACILITIES & MANAGEMENT SERVICES
http://statistics.data.gov.uk/id/local-authority/43UM,WOKING BOROUGH COUNCIL,18/03/2019,03/04/2019,0000436615/008,SKANSKA RASHLEIGH WEATHERFOIL LTD,40413600,720.00,ASSET MANAGEMENT - PEACOCKS - GENERAL,PEACOCKS R&M HOLDING,D108,PEACOCKS R&M HOLDING,ASSET MANAGEMENT,FACILITIES & MANAGEMENT SERVICES
http://statistics.data.gov.uk/id/local-authority/43UM,WOKING BOROUGH COUNCIL,18/03/2019,03/04/2019,0000436615/009,SKANSKA RASHLEIGH WEATHERFOIL LTD,40413600,6140.71,ASSET MANAGEMENT - PEACOCKS - GENERAL,PEACOCKS R&M HOLDING,D108,PEACOCKS R&M HOLDING,ASSET MANAGEMENT,FACILITIES & MANAGEMENT SERVICES
http://statistics.data.gov.uk/id/local-authority/43UM,WOKING BOROUGH COUNCIL,18/03/2019,03/04/2019,0000436615/010,SKANSKA RASHLEIGH WEATHERFOIL LTD,40413600,2452.50,ASSET MANAGEMENT - PEACOCKS - GENERAL,PEACOCKS R&M HOLDING,D108,PEACOCKS R&M HOLDING,ASSET MANAGEMENT,FACILITIES & MANAGEMENT SERVICES
http://statistics.data.gov.uk/id/local-authority/43UM,WOKING BOROUGH COUNCIL,18/03/2019,03/04/2019,0000436615/011,SKANSKA RASHLEIGH WEATHERFOIL LTD,40413600,1468.94,ASSET MANAGEMENT - PEACOCKS - GENERAL,PEACOCKS R&M HOLDING,D108,PEACOCKS R&M HOLDING,ASSET MANAGEMENT,FACILITIES & MANAGEMENT SERVICES
http://statistics.data.gov.uk/id/local-authority/43UM,WOKING BOROUGH COUNCIL,18/03/2019,03/04/2019,0000436615/015,SKANSKA RASHLEIGH WEATHERFOIL LTD,40413600,3005.31,ASSET MANAGEMENT - PEACOCKS - GENERAL,PEACOCKS R&M HOLDING,D108,PEACOCKS R&M HOLDING,ASSET MANAGEMENT,FACILITIES & MANAGEMENT SERVICES
http://statistics.data.gov.uk/id/local-authority/43UM,WOKING BOROUGH COUNCIL,18/03/2019,03/04/2019,0000436615/017,SKANSKA RASHLEIGH WEATHERFOIL LTD,40413600,319.00,ASSET MANAGEMENT - PEACOCKS - GENERAL,PEACOCKS R&M HOLDING,D108,PEACOCKS R&M HOLDING,ASSET MANAGEMENT,FACILITIES & MANAGEMENT SERVICES
http://statistics.data.gov.uk/id/local-authority/43UM,WOKING BOROUGH COUNCIL,18/03/2019,03/04/2019,0000436615/018,SKANSKA RASHLEIGH WEATHERFOIL LTD,40413600,129.80,ASSET MANAGEMENT - PEACOCKS - GENERAL,PEACOCKS R&M HOLDING,D108,PEACOCKS R&M HOLDING,ASSET MANAGEMENT,FACILITIES & MANAGEMENT SERVICES
http://statistics.data.gov.uk/id/local-authority/43UM,WOKING BOROUGH COUNCIL,18/03/2019,03/04/2019,0000436615/022,SKANSKA RASHLEIGH WEATHERFOIL LTD,40413600,618.20,ASSET MANAGEMENT - PEACOCKS - GENERAL,PEACOCKS R&M HOLDING,D108,PEACOCKS R&M HOLDING,ASSET MANAGEMENT,FACILITIES & MANAGEMENT SERVICES
http://statistics.data.gov.uk/id/local-authority/43UM,WOKING BOROUGH COUNCIL,18/03/2019,03/04/2019,0000436615/024,SKANSKA RASHLEIGH WEATHERFOIL LTD,40413600,715.00,ASSET MANAGEMENT - PEACOCKS - GENERAL,PEACOCKS R&M HOLDING,D108,PEACOCKS R&M HOLDING,ASSET MANAGEMENT,FACILITIES & MANAGEMENT SERVICES
http://statistics.data.gov.uk/id/local-authority/43UM,WOKING BOROUGH COUNCIL,18/03/2019,03/04/2019,0000436615/030,SKANSKA RASHLEIGH WEATHERFOIL LTD,40413600,1238.24,ASSET MANAGEMENT - PEACOCKS - GENERAL,PEACOCKS R&M HOLDING,D108,PEACOCKS R&M HOLDING,ASSET MANAGEMENT,FACILITIES & MANAGEMENT SERVICES
http://statistics.data.gov.uk/id/local-authority/43UM,WOKING BOROUGH COUNCIL,18/03/2019,03/04/2019,0000436615/041,SKANSKA RASHLEIGH WEATHERFOIL LTD,40413600,3417.50,ASSET MANAGEMENT - PEACOCKS - GENERAL,PEACOCKS R&M HOLDING,D108,PEACOCKS R&M HOLDING,ASSET MANAGEMENT,FACILITIES & MANAGEMENT SERVICES
http://statistics.data.gov.uk/id/local-authority/43UM,WOKING BOROUGH COUNCIL,18/03/2019,03/04/2019,0000436615/042,SKANSKA RASHLEIGH WEATHERFOIL LTD,40413600,111.38,ASSET MANAGEMENT - PEACOCKS - GENERAL,PEACOCKS R&M HOLDING,D108,PEACOCKS R&M HOLDING,ASSET MANAGEMENT,FACILITIES & MANAGEMENT SERVICES
http://statistics.data.gov.uk/id/local-authority/43UM,WOKING BOROUGH COUNCIL,18/03/2019,03/04/2019,0000436615/043,SKANSKA RASHLEIGH WEATHERFOIL LTD,40413600,99.00,ASSET MANAGEMENT - PEACOCKS - GENERAL,PEACOCKS R&M HOLDING,D108,PEACOCKS R&M HOLDING,ASSET MANAGEMENT,FACILITIES & MANAGEMENT SERVICES
http://statistics.data.gov.uk/id/local-authority/43UM,WOKING BOROUGH COUNCIL,18/03/2019,03/04/2019,0000436615/044,SKANSKA RASHLEIGH WEATHERFOIL LTD,40413600,99.00,ASSET MANAGEMENT - PEACOCKS - GENERAL,PEACOCKS R&M HOLDING,D108,PEACOCKS R&M HOLDING,ASSET MANAGEMENT,FACILITIES & MANAGEMENT SERVICES
http://statistics.data.gov.uk/id/local-authority/43UM,WOKING BOROUGH COUNCIL,18/03/2019,03/04/2019,0000436615/050,SKANSKA RASHLEIGH WEATHERFOIL LTD,40413600,790.62,ASSET MANAGEMENT - PEACOCKS - GENERAL,PEACOCKS R&M HOLDING,D108,PEACOCKS R&M HOLDING,ASSET MANAGEMENT,FACILITIES & MANAGEMENT SERVICES
http://statistics.data.gov.uk/id/local-authority/43UM,WOKING BOROUGH COUNCIL,18/03/2019,03/04/2019,0000436615/053,SKANSKA RASHLEIGH WEATHERFOIL LTD,40413600,4727.88,ASSET MANAGEMENT - PEACOCKS - GENERAL,PEACOCKS R&M HOLDING,D108,PEACOCKS R&M HOLDING,ASSET MANAGEMENT,FACILITIES & MANAGEMENT SERVICES
http://statistics.data.gov.uk/id/local-authority/43UM,WOKING BOROUGH COUNCIL,18/03/2019,03/04/2019,0000436615/055,SKANSKA RASHLEIGH WEATHERFOIL LTD,40413600,147.84,ASSET MANAGEMENT - PEACOCKS - GENERAL,PEACOCKS R&M HOLDING,D108,PEACOCKS R&M HOLDING,ASSET MANAGEMENT,FACILITIES & MANAGEMENT SERVICES
http://statistics.data.gov.uk/id/local-authority/43UM,WOKING BOROUGH COUNCIL,18/03/2019,03/04/2019,0000436615/003,SKANSKA RASHLEIGH WEATHERFOIL LTD,40413600,571.54,ASSET MANAGEMENT - WOLSEY PLACE,PEACOCKS R&M HOLDING,D108,PEACOCKS R&M HOLDING,ASSET MANAGEMENT,FACILITIES & MANAGEMENT SERVICES
http://statistics.data.gov.uk/id/local-authority/43UM,WOKING BOROUGH COUNCIL,18/03/2019,03/04/2019,0000436615/012,SKANSKA RASHLEIGH WEATHERFOIL LTD,40413600,550.00,ASSET MANAGEMENT - WOLSEY PLACE,PEACOCKS R&M HOLDING,D108,PEACOCKS R&M HOLDING,ASSET MANAGEMENT,FACILITIES & MANAGEMENT SERVICES
http://statistics.data.gov.uk/id/local-authority/43UM,WOKING BOROUGH COUNCIL,18/03/2019,03/04/2019,0000436615/013,SKANSKA RASHLEIGH WEATHERFOIL LTD,40413600,1034.00,ASSET MANAGEMENT - WOLSEY PLACE,PEACOCKS R&M HOLDING,D108,PEACOCKS R&M HOLDING,ASSET MANAGEMENT,FACILITIES & MANAGEMENT SERVICES
http://statistics.data.gov.uk/id/local-authority/43UM,WOKING BOROUGH COUNCIL,18/03/2019,03/04/2019,0000436615/014,SKANSKA RASHLEIGH WEATHERFOIL LTD,40413600,300.30,ASSET MANAGEMENT - WOLSEY PLACE,PEACOCKS R&M HOLDING,D108,PEACOCKS R&M HOLDING,ASSET MANAGEMENT,FACILITIES & MANAGEMENT SERVICES
http://statistics.data.gov.uk/id/local-authority/43UM,WOKING BOROUGH COUNCIL,18/03/2019,03/04/2019,0000436615/019,SKANSKA RASHLEIGH WEATHERFOIL LTD,40413600,319.00,ASSET MANAGEMENT - WOLSEY PLACE,PEACOCKS R&M HOLDING,D108,PEACOCKS R&M HOLDING,ASSET MANAGEMENT,FACILITIES & MANAGEMENT SERVICES
http://statistics.data.gov.uk/id/local-authority/43UM,WOKING BOROUGH COUNCIL,18/03/2019,03/04/2019,0000436615/021,SKANSKA RASHLEIGH WEATHERFOIL LTD,40413600,1056.00,ASSET MANAGEMENT - WOLSEY PLACE,PEACOCKS R&M HOLDING,D108,PEACOCKS R&M HOLDING,ASSET MANAGEMENT,FACILITIES & MANAGEMENT SERVICES
http://statistics.data.gov.uk/id/local-authority/43UM,WOKING BOROUGH COUNCIL,18/03/2019,03/04/2019,0000436615/025,SKANSKA RASHLEIGH WEATHERFOIL LTD,40413600,135.00,ASSET MANAGEMENT - WOLSEY PLACE,PEACOCKS R&M HOLDING,D108,PEACOCKS R&M HOLDING,ASSET MANAGEMENT,FACILITIES & MANAGEMENT SERVICES
http://statistics.data.gov.uk/id/local-authority/43UM,WOKING BOROUGH COUNCIL,18/03/2019,03/04/2019,0000436615/027,SKANSKA RASHLEIGH WEATHERFOIL LTD,40413600,587.18,ASSET MANAGEMENT - WOLSEY PLACE,PEACOCKS R&M HOLDING,D108,PEACOCKS R&M HOLDING,ASSET MANAGEMENT,FACILITIES & MANAGEMENT SERVICES
http://statistics.data.gov.uk/id/local-authority/43UM,WOKING BOROUGH COUNCIL,18/03/2019,03/04/2019,0000436615/028,SKANSKA RASHLEIGH WEATHERFOIL LTD,40413600,92.40,ASSET MANAGEMENT - WOLSEY PLACE,PEACOCKS R&M HOLDING,D108,PEACOCKS R&M HOLDING,ASSET MANAGEMENT,FACILITIES & MANAGEMENT SERVICES
http://statistics.data.gov.uk/id/local-authority/43UM,WOKING BOROUGH COUNCIL,18/03/2019,03/04/2019,0000436615/032,SKANSKA RASHLEIGH WEATHERFOIL LTD,40413600,4331.79,ASSET MANAGEMENT - WOLSEY PLACE,PEACOCKS R&M HOLDING,D108,PEACOCKS R&M HOLDING,ASSET MANAGEMENT,FACILITIES & MANAGEMENT SERVICES
http://statistics.data.gov.uk/id/local-authority/43UM,WOKING BOROUGH COUNCIL,18/03/2019,03/04/2019,0000436615/036,SKANSKA RASHLEIGH WEATHERFOIL LTD,40413600,715.00,ASSET MANAGEMENT - WOLSEY PLACE,PEACOCKS R&M HOLDING,D108,PEACOCKS R&M HOLDING,ASSET MANAGEMENT,FACILITIES & MANAGEMENT SERVICES
http://statistics.data.gov.uk/id/local-authority/43UM,WOKING BOROUGH COUNCIL,18/03/2019,03/04/2019,0000436615/037,SKANSKA RASHLEIGH WEATHERFOIL LTD,40413600,846.44,ASSET MANAGEMENT - WOLSEY PLACE,PEACOCKS R&M HOLDING,D108,PEACOCKS R&M HOLDING,ASSET MANAGEMENT,FACILITIES & MANAGEMENT SERVICES
http://statistics.data.gov.uk/id/local-authority/43UM,WOKING BOROUGH COUNCIL,18/03/2019,03/04/2019,0000436615/048,SKANSKA RASHLEIGH WEATHERFOIL LTD,40413600,243.38,ASSET MANAGEMENT - WOLSEY PLACE,PEACOCKS R&M HOLDING,D108,PEACOCKS R&M HOLDING,ASSET MANAGEMENT,FACILITIES & MANAGEMENT SERVICES
http://statistics.data.gov.uk/id/local-authority/43UM,WOKING BOROUGH COUNCIL,08/03/2019,03/04/2019,0000436126/001,TRUFFLES CATERERS LIMITED,91003000,24.70,CORPORATE MANAGEMENT GROUP - CORPORATE MANAGEMENT GROUP,OFFICIAL HOSPITALITY,H310,OFFICIAL HOSPITALITY,CORPORATE MANAGEMENT GROUP,CATERING
http://statistics.data.gov.uk/id/local-authority/43UM,WOKING BOROUGH COUNCIL,08/03/2019,03/04/2019,0000436126/002,TRUFFLES CATERERS LIMITED,91003000,27.20,CORPORATE MANAGEMENT GROUP - CORPORATE MANAGEMENT GROUP,OFFICIAL HOSPITALITY,H310,OFFICIAL HOSPITALITY,CORPORATE MANAGEMENT GROUP,CATERING
http://statistics.data.gov.uk/id/local-authority/43UM,WOKING BOROUGH COUNCIL,08/03/2019,03/04/2019,0000436126/003,TRUFFLES CATERERS LIMITED,91003000,13.60,CORPORATE MANAGEMENT GROUP - CORPORATE MANAGEMENT GROUP,OFFICIAL HOSPITALITY,H310,OFFICIAL HOSPITALITY,CORPORATE MANAGEMENT GROUP,CATERING
http://statistics.data.gov.uk/id/local-authority/43UM,WOKING BOROUGH COUNCIL,08/03/2019,03/04/2019,0000436126/004,TRUFFLES CATERERS LIMITED,91003000,9.40,CORPORATE MANAGEMENT GROUP - CORPORATE MANAGEMENT GROUP,OFFICIAL HOSPITALITY,H310,OFFICIAL HOSPITALITY,CORPORATE MANAGEMENT GROUP,CATERING
http://statistics.data.gov.uk/id/local-authority/43UM,WOKING BOROUGH COUNCIL,11/03/2019,03/04/2019,0000436134/001,LEARNING POOL LIMITED,40443500,4500.00,CORPORATE MANAGEMENT GROUP - STAFF TRAINING/GENERAL COSTS,TRAINING - CORPORATE,A910,TRAINING - CORPORATE,CORPORATE MANAGEMENT GROUP,HUMAN RESOURCES
http://statistics.data.gov.uk/id/local-authority/43UM,WOKING BOROUGH COUNCIL,03/04/2019,03/04/2019,GPC/00006763,FACEBK G8LB6KSLD2,PROCUREMENT CARD,60.00,CORPORATE STRATEGY - ELECTION ID PILOT,ADVERTISING,H400,FACEBOOK AD VOTER ID,DEBBIE HICKMAN,ADVERTISING SERVICES
http://statistics.data.gov.uk/id/local-authority/43UM,WOKING BOROUGH COUNCIL,03/04/2019,03/04/2019,GPC/00006768,CHARTERED INSTITUTE OF EN,PROCUREMENT CARD,218.00,HOUSING SERVICES - HOUSING STANDARDS & LICENSING,PROFESSIONAL FEES,A750,CIEH MEMBERSHIP FEE,MRS SARAH REED,CHARITABLE/SOC SERVICE ORGS
http://statistics.data.gov.uk/id/local-authority/43UM,WOKING BOROUGH COUNCIL,11/03/2019,03/04/2019,0000436054/001,HEADLINE DESIGN & PRINT,00016900,269.00,ASSET MANAGEMENT - INTEGRATED TRANSPORT PLAN,MARKETING/PUBLICITY,Q468,MARKETING/PUBLICITY,ASSET MANAGEMENT,FINANCIAL SERVICES
http://statistics.data.gov.uk/id/local-authority/43UM,WOKING BOROUGH COUNCIL,03/04/2019,03/04/2019,GPC/00006767,MARCIANO LOUNGE,PROCUREMENT CARD,5.58,CORPORATE STRATEGY - TOWN CENTRE FORUM,ECDEV BUSINESS ENGAGEMENT,H411,MEETING HOSPITALITY,MR C C NORRINGTON,BARS/TAVERNS/LOUNGES/DISCOS
http://statistics.data.gov.uk/id/local-authority/43UM,WOKING BOROUGH COUNCIL,28/02/2019,03/04/2019,0000436671/001,MOTO-MARQUE LTD,00889700,385.33,ASSET MANAGEMENT - LEASED CAR INSURANCE,GARAGE REPAIR COSTS,T167,GARAGE REPAIR COSTS,ASSET MANAGEMENT,FINANCIAL SERVICES
http://statistics.data.gov.uk/id/local-authority/43UM,WOKING BOROUGH COUNCIL,28/02/2019,03/04/2019,0000436097/001,MOTO-MARQUE LTD,00889700,2335.76,ASSET MANAGEMENT - OTHER VEHICLES INS CLAIMS,GARAGE REPAIR COSTS,T167,GARAGE REPAIR COSTS,ASSET MANAGEMENT,FINANCIAL SERVICES
http://statistics.data.gov.uk/id/local-authority/43UM,WOKING BOROUGH COUNCIL,28/02/2019,03/04/2019,0000436672/001,MOTO-MARQUE LTD,00889700,276.68,ASSET MANAGEMENT - OTHER VEHICLES INS CLAIMS,GARAGE REPAIR COSTS,T167,GARAGE REPAIR COSTS,ASSET MANAGEMENT,FINANCIAL SERVICES
http://statistics.data.gov.uk/id/local-authority/43UM,WOKING BOROUGH COUNCIL,11/03/2019,03/04/2019,0000436018/001,SHARP CAT LTD,40073500,23109.39,CORPORATE STRATEGY - BOROUGH ELECTIONS,POSTAGE - POLLCARDS,G701,POSTAGE - POLLCARDS,CORPORATE STRATEGY,MAIL SERVICES
http://statistics.data.gov.uk/id/local-authority/43UM,WOKING BOROUGH COUNCIL,10/03/2019,03/04/2019,0000436678/001,EUROTECH MONITORING SERVICES LTD,00643100,756.00,ASSET MANAGEMENT - 49 DARTMOUTH AVE (XHRA) ,SECURITY EQUIPMENT,H604,SECURITY EQUIPMENT,ASSET MANAGEMENT,FACILITIES & MANAGEMENT SERVICES
http://statistics.data.gov.uk/id/local-authority/43UM,WOKING BOROUGH COUNCIL,12/03/2019,03/04/2019,0000436091/001,WIGHTMAN & PARRISH LTD,40474600,23.97,INDEPENDENT LIVING SERVICES - MOORCROFT,CLEANING MATERIALS,D920,CLEANING MATERIALS,INDEPENDENT LIVING SERVICES,CLEANING & JANITORIAL
http://statistics.data.gov.uk/id/local-authority/43UM,WOKING BOROUGH COUNCIL,12/03/2019,03/04/2019,0000436091/002,WIGHTMAN & PARRISH LTD,40474600,7.69,INDEPENDENT LIVING SERVICES - MOORCROFT,CLEANING MATERIALS,D920,CLEANING MATERIALS,INDEPENDENT LIVING SERVICES,CLEANING & JANITORIAL
http://statistics.data.gov.uk/id/local-authority/43UM,WOKING BOROUGH COUNCIL,12/03/2019,03/04/2019,0000436091/003,WIGHTMAN & PARRISH LTD,40474600,7.69,INDEPENDENT LIVING SERVICES - MOORCROFT,CLEANING MATERIALS,D920,CLEANING MATERIALS,INDEPENDENT LIVING SERVICES,CLEANING & JANITORIAL
http://statistics.data.gov.uk/id/local-authority/43UM,WOKING BOROUGH COUNCIL,12/03/2019,03/04/2019,0000436091/004,WIGHTMAN & PARRISH LTD,40474600,7.69,INDEPENDENT LIVING SERVICES - MOORCROFT,CLEANING MATERIALS,D920,CLEANING MATERIALS,INDEPENDENT LIVING SERVICES,CLEANING & JANITORIAL
http://statistics.data.gov.uk/id/local-authority/43UM,WOKING BOROUGH COUNCIL,12/03/2019,03/04/2019,0000436091/005,WIGHTMAN & PARRISH LTD,40474600,7.68,INDEPENDENT LIVING SERVICES - MOORCROFT,CLEANING MATERIALS,D920,CLEANING MATERIALS,INDEPENDENT LIVING SERVICES,CLEANING & JANITORIAL
http://statistics.data.gov.uk/id/local-authority/43UM,WOKING BOROUGH COUNCIL,08/03/2019,03/04/2019,0000435981/001,WIGHTMAN & PARRISH LTD,40474600,6.60,INDEPENDENT LIVING SERVICES - MEALS SERVICE -THE VYNE,CLEANING MATERIALS,D920,CLEANING MATERIALS,INDEPENDENT LIVING SERVICES,CLEANING & JANITORIAL
http://statistics.data.gov.uk/id/local-authority/43UM,WOKING BOROUGH COUNCIL,08/03/2019,03/04/2019,0000435981/002,WIGHTMAN & PARRISH LTD,40474600,46.47,INDEPENDENT LIVING SERVICES - MEALS SERVICE -THE VYNE,CLEANING MATERIALS,D920,CLEANING MATERIALS,INDEPENDENT LIVING SERVICES,CLEANING & JANITORIAL
http://statistics.data.gov.uk/id/local-authority/43UM,WOKING BOROUGH COUNCIL,08/03/2019,03/04/2019,0000435981/003,WIGHTMAN & PARRISH LTD,40474600,2.58,INDEPENDENT LIVING SERVICES - MEALS SERVICE -THE VYNE,CLEANING MATERIALS,D920,CLEANING MATERIALS,INDEPENDENT LIVING SERVICES,CLEANING & JANITORIAL
http://statistics.data.gov.uk/id/local-authority/43UM,WOKING BOROUGH COUNCIL,08/03/2019,03/04/2019,0000435981/004,WIGHTMAN & PARRISH LTD,40474600,4.00,INDEPENDENT LIVING SERVICES - MEALS SERVICE -THE VYNE,CLEANING MATERIALS,D920,CLEANING MATERIALS,INDEPENDENT LIVING SERVICES,CLEANING & JANITORIAL
http://statistics.data.gov.uk/id/local-authority/43UM,WOKING BOROUGH COUNCIL,08/03/2019,03/04/2019,0000435981/005,WIGHTMAN & PARRISH LTD,40474600,15.95,INDEPENDENT LIVING SERVICES - MEALS SERVICE -THE VYNE,CLEANING MATERIALS,D920,CLEANING MATERIALS,INDEPENDENT LIVING SERVICES,CLEANING & JANITORIAL
http://statistics.data.gov.uk/id/local-authority/43UM,WOKING BOROUGH COUNCIL,08/03/2019,03/04/2019,0000435981/006,WIGHTMAN & PARRISH LTD,40474600,4.50,INDEPENDENT LIVING SERVICES - MEALS SERVICE -THE VYNE,CLEANING MATERIALS,D920,CLEANING MATERIALS,INDEPENDENT LIVING SERVICES,CLEANING & JANITORIAL
http://statistics.data.gov.uk/id/local-authority/43UM,WOKING BOROUGH COUNCIL,08/03/2019,03/04/2019,0000435981/007,WIGHTMAN & PARRISH LTD,40474600,17.72,INDEPENDENT LIVING SERVICES - MEALS SERVICE -THE VYNE,CLEANING MATERIALS,D920,CLEANING MATERIALS,INDEPENDENT LIVING SERVICES,CLEANING & JANITORIAL
http://statistics.data.gov.uk/id/local-authority/43UM,WOKING BOROUGH COUNCIL,01/03/2019,03/04/2019,0000435915/001,ALPHABET (GB) LIMITED,00015200,10479.20,CORPORATE MANAGEMENT GROUP - LEASED CAR PAYMENTS,PAYMENT TO LESSORS,T170,PAYMENT TO LESSORS,CORPORATE MANAGEMENT GROUP,VEHICLE MANAGEMENT
http://statistics.data.gov.uk/id/local-authority/43UM,WOKING BOROUGH COUNCIL,01/03/2019,03/04/2019,0000435915/002,ALPHABET (GB) LIMITED,00015200,72.00,CORPORATE MANAGEMENT GROUP - LEASED CAR PAYMENTS,PAYMENT TO LESSORS,T170,PAYMENT TO LESSORS,CORPORATE MANAGEMENT GROUP,VEHICLE MANAGEMENT
http://statistics.data.gov.uk/id/local-authority/43UM,WOKING BOROUGH COUNCIL,01/03/2019,03/04/2019,0000435915/003,ALPHABET (GB) LIMITED,00015200,922.19,CORPORATE MANAGEMENT GROUP - LEASED CAR PAYMENTS,PAYMENT TO LESSORS,T170,PAYMENT TO LESSORS,CORPORATE MANAGEMENT GROUP,VEHICLE MANAGEMENT
http://statistics.data.gov.uk/id/local-authority/43UM,WOKING BOROUGH COUNCIL,08/03/2019,03/04/2019,0000436065/002,GAMMA TELECOM LIMITED,40610100,9.91,REVENUES AND BENEFITS - COUNCIL TAX,MOBILE PHONE COSTS,G846,MOBILE PHONE COSTS,REVENUES AND BENEFITS,INFORMATION COMMUNICATION TECHNOLOGY
http://statistics.data.gov.uk/id/local-authority/43UM,WOKING BOROUGH COUNCIL,08/03/2019,03/04/2019,0000436065/004,GAMMA TELECOM LIMITED,40610100,6.66,REVENUES AND BENEFITS - C'L TAX BENEFIT ADMIN,MOBILE PHONE COSTS,G846,MOBILE PHONE COSTS,REVENUES AND BENEFITS,INFORMATION COMMUNICATION TECHNOLOGY
http://statistics.data.gov.uk/id/local-authority/43UM,WOKING BOROUGH COUNCIL,08/03/2019,03/04/2019,0000436065/005,GAMMA TELECOM LIMITED,40610100,9.91,NEIGHBOURHOOD SERVICES - NEIGHBOURHOOD SERVICES MANAGER,MOBILE PHONE COSTS,G846,MOBILE PHONE COSTS,NEIGHBOURHOOD SERVICES,INFORMATION COMMUNICATION TECHNOLOGY
http://statistics.data.gov.uk/id/local-authority/43UM,WOKING BOROUGH COUNCIL,08/03/2019,03/04/2019,0000436065/018,GAMMA TELECOM LIMITED,40610100,9.91,ASSET MANAGEMENT - FACILITIES MANAGEMENT,MOBILE PHONE COSTS,G846,MOBILE PHONE COSTS,ASSET MANAGEMENT,INFORMATION COMMUNICATION TECHNOLOGY
http://statistics.data.gov.uk/id/local-authority/43UM,WOKING BOROUGH COUNCIL,08/03/2019,03/04/2019,0000436065/021,GAMMA TELECOM LIMITED,40610100,44.57,ASSET MANAGEMENT - VALUATION SERVICES,MOBILE PHONE COSTS,G846,MOBILE PHONE COSTS,ASSET MANAGEMENT,INFORMATION COMMUNICATION TECHNOLOGY
http://statistics.data.gov.uk/id/local-authority/43UM,WOKING BOROUGH COUNCIL,08/03/2019,03/04/2019,0000436065/022,GAMMA TELECOM LIMITED,40610100,2.49,ASSET MANAGEMENT - MARKET,MOBILE PHONE COSTS,G846,MOBILE PHONE COSTS,ASSET MANAGEMENT,INFORMATION COMMUNICATION TECHNOLOGY
http://statistics.data.gov.uk/id/local-authority/43UM,WOKING BOROUGH COUNCIL,08/03/2019,03/04/2019,0000436065/024,GAMMA TELECOM LIMITED,40610100,96.07,ASSET MANAGEMENT - BUILDING SERVICES,MOBILE PHONE COSTS,G846,MOBILE PHONE COSTS,ASSET MANAGEMENT,INFORMATION COMMUNICATION TECHNOLOGY
http://statistics.data.gov.uk/id/local-authority/43UM,WOKING BOROUGH COUNCIL,08/03/2019,03/04/2019,0000436065/026,GAMMA TELECOM LIMITED,40610100,69.93,INFORMATION TECHNOLOGY - COMMUNICATIONS,MOBILE PHONE COSTS,G846,MOBILE PHONE COSTS,INFORMATION TECHNOLOGY,INFORMATION COMMUNICATION TECHNOLOGY
http://statistics.data.gov.uk/id/local-authority/43UM,WOKING BOROUGH COUNCIL,08/03/2019,03/04/2019,0000436065/033,GAMMA TELECOM LIMITED,40610100,35.47,HOUSING SERVICES - PRIVATE SECTOR HOUSING,MOBILE PHONE COSTS,G846,MOBILE PHONE COSTS,HOUSING SERVICES,INFORMATION COMMUNICATION TECHNOLOGY
http://statistics.data.gov.uk/id/local-authority/43UM,WOKING BOROUGH COUNCIL,08/03/2019,03/04/2019,0000436065/034,GAMMA TELECOM LIMITED,40610100,52.69,HOUSING SERVICES - HOME IMPS & BEN AGENCY,MOBILE PHONE COSTS,G846,MOBILE PHONE COSTS,HOUSING SERVICES,INFORMATION COMMUNICATION TECHNOLOGY
http://statistics.data.gov.uk/id/local-authority/43UM,WOKING BOROUGH COUNCIL,08/03/2019,03/04/2019,0000436065/035,GAMMA TELECOM LIMITED,40610100,15.65,INDEPENDENT LIVING SERVICES - COMMUNITY CARE-ADMIN,MOBILE PHONE COSTS,G846,MOBILE PHONE COSTS,INDEPENDENT LIVING SERVICES,INFORMATION COMMUNICATION TECHNOLOGY
http://statistics.data.gov.uk/id/local-authority/43UM,WOKING BOROUGH COUNCIL,08/03/2019,03/04/2019,0000436065/037,GAMMA TELECOM LIMITED,40610100,9.15,INDEPENDENT LIVING SERVICES - MOORCROFT,MOBILE PHONE COSTS,G846,MOBILE PHONE COSTS,INDEPENDENT LIVING SERVICES,INFORMATION COMMUNICATION TECHNOLOGY
http://statistics.data.gov.uk/id/local-authority/43UM,WOKING BOROUGH COUNCIL,08/03/2019,03/04/2019,0000436065/039,GAMMA TELECOM LIMITED,40610100,14.90,INDEPENDENT LIVING SERVICES - BROCKHILL EXTRA CARE,MOBILE PHONE COSTS,G846,MOBILE PHONE COSTS,INDEPENDENT LIVING SERVICES,INFORMATION COMMUNICATION TECHNOLOGY
http://statistics.data.gov.uk/id/local-authority/43UM,WOKING BOROUGH COUNCIL,08/03/2019,03/04/2019,0000436065/041,GAMMA TELECOM LIMITED,40610100,56.86,INDEPENDENT LIVING SERVICES - COMMUNITY ALARMS-GF,MOBILE PHONE COSTS,G846,MOBILE PHONE COSTS,INDEPENDENT LIVING SERVICES,INFORMATION COMMUNICATION TECHNOLOGY
http://statistics.data.gov.uk/id/local-authority/43UM,WOKING BOROUGH COUNCIL,08/03/2019,03/04/2019,0000436065/045,GAMMA TELECOM LIMITED,40610100,9.91,INDEPENDENT LIVING SERVICES - ST MARY'S DAY CENTRE,MOBILE PHONE COSTS,G846,MOBILE PHONE COSTS,INDEPENDENT LIVING SERVICES,INFORMATION COMMUNICATION TECHNOLOGY
http://statistics.data.gov.uk/id/local-authority/43UM,WOKING BOROUGH COUNCIL,08/03/2019,03/04/2019,0000436065/047,GAMMA TELECOM LIMITED,40610100,101.87,INDEPENDENT LIVING SERVICES - HOME SUPPORT SERVICE,MOBILE PHONE COSTS,G846,MOBILE PHONE COSTS,INDEPENDENT LIVING SERVICES,INFORMATION COMMUNICATION TECHNOLOGY
http://statistics.data.gov.uk/id/local-authority/43UM,WOKING BOROUGH COUNCIL,08/03/2019,03/04/2019,0000436065/055,GAMMA TELECOM LIMITED,40610100,9.91,HOUSING SERVICES - TEAM 2 PRIVATE SECT HSG & ENAB,MOBILE PHONE COSTS,G846,MOBILE PHONE COSTS,HOUSING SERVICES,INFORMATION COMMUNICATION TECHNOLOGY
http://statistics.data.gov.uk/id/local-authority/43UM,WOKING BOROUGH COUNCIL,08/03/2019,03/04/2019,0000436065/058,GAMMA TELECOM LIMITED,40610100,75.73,HOUSING SERVICES - ADVICE/DEVELOPMENT-HRA,MOBILE PHONE COSTS,G846,MOBILE PHONE COSTS,HOUSING SERVICES,INFORMATION COMMUNICATION TECHNOLOGY
http://statistics.data.gov.uk/id/local-authority/43UM,WOKING BOROUGH COUNCIL,08/03/2019,03/04/2019,0000436065/065,GAMMA TELECOM LIMITED,40610100,35.49,NEIGHBOURHOOD SERVICES - CENTRAL NEIGHBOURHOOD TEAM,MOBILE PHONE COSTS,G846,MOBILE PHONE COSTS,NEIGHBOURHOOD SERVICES,INFORMATION COMMUNICATION TECHNOLOGY
http://statistics.data.gov.uk/id/local-authority/43UM,WOKING BOROUGH COUNCIL,08/03/2019,03/04/2019,0000436065/067,GAMMA TELECOM LIMITED,40610100,19.82,NEIGHBOURHOOD SERVICES - EAST NEIGHBOURHOOD TEAM,MOBILE PHONE COSTS,G846,MOBILE PHONE COSTS,NEIGHBOURHOOD SERVICES,INFORMATION COMMUNICATION TECHNOLOGY
http://statistics.data.gov.uk/id/local-authority/43UM,WOKING BOROUGH COUNCIL,08/03/2019,03/04/2019,0000436065/071,GAMMA TELECOM LIMITED,40610100,49.55,NEIGHBOURHOOD SERVICES - REGULATION AND ENFORCEMENT,MOBILE PHONE COSTS,G846,MOBILE PHONE COSTS,NEIGHBOURHOOD SERVICES,INFORMATION COMMUNICATION TECHNOLOGY
http://statistics.data.gov.uk/id/local-authority/43UM,WOKING BOROUGH COUNCIL,08/03/2019,03/04/2019,0000436065/075,GAMMA TELECOM LIMITED,40610100,95.90,PLANNING SERVICES - BUILDING CONTROL,MOBILE PHONE COSTS,G846,MOBILE PHONE COSTS,PLANNING SERVICES,INFORMATION COMMUNICATION TECHNOLOGY
http://statistics.data.gov.uk/id/local-authority/43UM,WOKING BOROUGH COUNCIL,08/03/2019,03/04/2019,0000436065/077,GAMMA TELECOM LIMITED,40610100,33.74,PLANNING SERVICES - DEVELOPMENT CONTROL,MOBILE PHONE COSTS,G846,MOBILE PHONE COSTS,PLANNING SERVICES,INFORMATION COMMUNICATION TECHNOLOGY
http://statistics.data.gov.uk/id/local-authority/43UM,WOKING BOROUGH COUNCIL,06/03/2019,03/04/2019,0000436021/001,GREEN & PARTNERS LLP,40238100,12150.00,ASSET MANAGEMENT - WOLSEY PLACE,AGENTS RENEWAL FEE,H743,AGENTS RENEWAL FEE,ASSET MANAGEMENT,CONSULTANCY
http://statistics.data.gov.uk/id/local-authority/43UM,WOKING BOROUGH COUNCIL,07/03/2019,03/04/2019,0000436030/002,GRENCAR LIMITED,40551300,310.00,REVENUES AND BENEFITS - BUSINESS RATES,BAILIFFS COMMISION,H911,BAILIFFS COMMISION,REVENUES AND BENEFITS,LEGAL SERVICES
http://statistics.data.gov.uk/id/local-authority/43UM,WOKING BOROUGH COUNCIL,18/03/2019,03/04/2019,0000436615/033,SKANSKA RASHLEIGH WEATHERFOIL LTD,40413600,2718.46,ASSET MANAGEMENT - CIVIC OFFICES,CONTRACT SECURITY,H602,CONTRACT SECURITY,ASSET MANAGEMENT,FACILITIES & MANAGEMENT SERVICES
http://statistics.data.gov.uk/id/local-authority/43UM,WOKING BOROUGH COUNCIL,18/03/2019,03/04/2019,0000436615/054,SKANSKA RASHLEIGH WEATHERFOIL LTD,40413600,574.20,ASSET MANAGEMENT - CIVIC OFFICES,CONTRACT SECURITY,H602,CONTRACT SECURITY,ASSET MANAGEMENT,FACILITIES & MANAGEMENT SERVICES
http://statistics.data.gov.uk/id/local-authority/43UM,WOKING BOROUGH COUNCIL,18/03/2019,03/04/2019,0000436615/038,SKANSKA RASHLEIGH WEATHERFOIL LTD,40413600,1741.82,NEIGHBOURHOOD SERVICES - CAR PARKS ADMIN&OPERATIONAL EX,CONTRACT CLEANING,D900,CONTRACT CLEANING,NEIGHBOURHOOD SERVICES,FACILITIES & MANAGEMENT SERVICES
http://statistics.data.gov.uk/id/local-authority/43UM,WOKING BOROUGH COUNCIL,18/03/2019,03/04/2019,0000436615/031,SKANSKA RASHLEIGH WEATHERFOIL LTD,40413600,2026.31,NEIGHBOURHOOD SERVICES - CAR PARKS ADMIN&OPERATIONAL EX,CONTRACT SECURITY,H602,CONTRACT SECURITY,NEIGHBOURHOOD SERVICES,FACILITIES & MANAGEMENT SERVICES
http://statistics.data.gov.uk/id/local-authority/43UM,WOKING BOROUGH COUNCIL,25/10/2018,03/04/2019,0000436684/001,FLIGHT CENTRE UK LTD - CIEVENTS,40800700,40.00,H G WELLS - H G WELLS - FUNCTION ROOMS,AGENTS COMMISSION,H900,AGENTS COMMISSION,H G WELLS,CONSULTANCY
http://statistics.data.gov.uk/id/local-authority/43UM,WOKING BOROUGH COUNCIL,07/03/2019,03/04/2019,0000436153/001,WILLMOTT DIXON CONSTRUCTION LTD,40574500,11257.02,ASSET MANAGEMENT - SHEY COPSE DEVELOPMENT,OTHER CONSULTANTS,Q430,OTHER CONSULTANTS,ASSET MANAGEMENT,WORKS (CONSTRUCTION REPAIR MAINTENANCE)
http://statistics.data.gov.uk/id/local-authority/43UM,WOKING BOROUGH COUNCIL,06/03/2019,03/04/2019,0000435906/001,FRONTLINE PROTECTION SGD LTD,40542500,195.75,H G WELLS - H G WELLS - FUNCTION ROOMS,CONTRACT SECURITY,H602,CONTRACT SECURITY,H G WELLS,FACILITIES & MANAGEMENT SERVICES
http://statistics.data.gov.uk/id/local-authority/43UM,WOKING BOROUGH COUNCIL,21/03/2019,03/04/2019,0000436622/001,SURREY HEATH BOROUGH COUNCIL,00898100,12078.33,NEIGHBOURHOOD SERVICES - REFUSE COLLECTION,WASTE MANAG-TRADE,J613,WASTE MANAG-TRADE,NEIGHBOURHOOD SERVICES,WORKS (CONSTRUCTION REPAIR MAINTENANCE)
http://statistics.data.gov.uk/id/local-authority/43UM,WOKING BOROUGH COUNCIL,05/02/2019,03/04/2019,0000436680/001,BNP PARIBAS REAL ESTATE,40116500,9280.00,ASSET MANAGEMENT - WOKING ONE OPP PURCHASE,OTHER CONSULTANTS,Q430,OTHER CONSULTANTS,ASSET MANAGEMENT,FINANCIAL SERVICES
http://statistics.data.gov.uk/id/local-authority/43UM,WOKING BOROUGH COUNCIL,12/03/2019,03/04/2019,0000436055/001,SHARP CAT LTD,40073500,227.50,CORPORATE STRATEGY - CORPORATE STRATEGY GENERAL EXP,PRINTING EXTERNAL,G600,PRINTING EXTERNAL,CORPORATE STRATEGY,MAIL SERVICES
http://statistics.data.gov.uk/id/local-authority/43UM,WOKING BOROUGH COUNCIL,12/03/2019,03/04/2019,0000436055/002,SHARP CAT LTD,40073500,1146.80,CORPORATE STRATEGY - CORPORATE STRATEGY GENERAL EXP,PRINTING EXTERNAL,G600,PRINTING EXTERNAL,CORPORATE STRATEGY,MAIL SERVICES
http://statistics.data.gov.uk/id/local-authority/43UM,WOKING BOROUGH COUNCIL,08/03/2019,03/04/2019,0000436056/001,SHARP CAT LTD,40073500,2918.36,CORPORATE STRATEGY - CORPORATE STRATEGY GENERAL EXP,PRINTING EXTERNAL,G600,PRINTING EXTERNAL,CORPORATE STRATEGY,MAIL SERVICES
http://statistics.data.gov.uk/id/local-authority/43UM,WOKING BOROUGH COUNCIL,08/03/2019,03/04/2019,0000436058/001,SHARP CAT LTD,40073500,1844.18,CORPORATE STRATEGY - CORPORATE STRATEGY GENERAL EXP,PRINTING EXTERNAL,G600,PRINTING EXTERNAL,CORPORATE STRATEGY,MAIL SERVICES
http://statistics.data.gov.uk/id/local-authority/43UM,WOKING BOROUGH COUNCIL,28/02/2019,03/04/2019,0000436500/001,WINTECH LTD,40799600,4820.00,ASSET MANAGEMENT - WOKING ONE OPP PURCHASE,OTHER CONSULTANTS,Q430,OTHER CONSULTANTS,ASSET MANAGEMENT,CONSULTANCY
http://statistics.data.gov.uk/id/local-authority/43UM,WOKING BOROUGH COUNCIL,08/03/2019,03/04/2019,0000436043/001,HARLEQUIN CIVIL ENGINEERING LTD,40734400,2775.00,NEIGHBOURHOOD SERVICES - COUNTRYSIDE SERVICES - GENERAL,GRD MTCE NON CCT,D240,GRD MTCE NON CCT,NEIGHBOURHOOD SERVICES,WORKS (CONSTRUCTION REPAIR MAINTENANCE)
http://statistics.data.gov.uk/id/local-authority/43UM,WOKING BOROUGH COUNCIL,07/03/2019,03/04/2019,0000436345/001,RAINER SECURITY PRODUCTS LTD,00030400,212.00,NEIGHBOURHOOD SERVICES - PARKS-GENERAL,GRD MTCE NON CCT,D240,GRD MTCE NON CCT,NEIGHBOURHOOD SERVICES,FACILITIES & MANAGEMENT SERVICES
http://statistics.data.gov.uk/id/local-authority/43UM,WOKING BOROUGH COUNCIL,07/03/2019,03/04/2019,0000436345/002,RAINER SECURITY PRODUCTS LTD,00030400,97.50,NEIGHBOURHOOD SERVICES - PARKS-GENERAL,GRD MTCE NON CCT,D240,GRD MTCE NON CCT,NEIGHBOURHOOD SERVICES,FACILITIES & MANAGEMENT SERVICES
http://statistics.data.gov.uk/id/local-authority/43UM,WOKING BOROUGH COUNCIL,07/03/2019,03/04/2019,0000436345/003,RAINER SECURITY PRODUCTS LTD,00030400,29.75,NEIGHBOURHOOD SERVICES - PARKS-GENERAL,GRD MTCE NON CCT,D240,GRD MTCE NON CCT,NEIGHBOURHOOD SERVICES,FACILITIES & MANAGEMENT SERVICES
http://statistics.data.gov.uk/id/local-authority/43UM,WOKING BOROUGH COUNCIL,07/03/2019,03/04/2019,0000436345/004,RAINER SECURITY PRODUCTS LTD,00030400,5.00,NEIGHBOURHOOD SERVICES - PARKS-GENERAL,GRD MTCE NON CCT,D240,GRD MTCE NON CCT,NEIGHBOURHOOD SERVICES,FACILITIES & MANAGEMENT SERVICES
http://statistics.data.gov.uk/id/local-authority/43UM,WOKING BOROUGH COUNCIL,25/03/2019,03/04/2019,0000436676/001,REDACTED PERSONAL DATA,40800600,411.10,HOUSING SERVICES - TENANTS REMOVAL EXPENS,REMOVAL EXPENSES,H775,REMOVAL EXPENSES,HOUSING SERVICES,HOUSING MANAGEMENT
http://statistics.data.gov.uk/id/local-authority/43UM,WOKING BOROUGH COUNCIL,08/03/2019,03/04/2019,0000436065/003,GAMMA TELECOM LIMITED,40610100,27.98,ASSET MANAGEMENT - PEACOCK WALK MARKET,NETWORK CIRCUITS,G800,NETWORK CIRCUITS,ASSET MANAGEMENT,INFORMATION COMMUNICATION TECHNOLOGY
http://statistics.data.gov.uk/id/local-authority/43UM,WOKING BOROUGH COUNCIL,08/03/2019,03/04/2019,0000436065/009,GAMMA TELECOM LIMITED,40610100,21.98,ASSET MANAGEMENT - PROVINCIAL HOUSE,NETWORK CIRCUITS,G800,NETWORK CIRCUITS,ASSET MANAGEMENT,INFORMATION COMMUNICATION TECHNOLOGY
http://statistics.data.gov.uk/id/local-authority/43UM,WOKING BOROUGH COUNCIL,08/03/2019,03/04/2019,0000436065/011,GAMMA TELECOM LIMITED,40610100,10.99,ASSET MANAGEMENT - WOLSEY PLACE,NETWORK CIRCUITS,G800,NETWORK CIRCUITS,ASSET MANAGEMENT,INFORMATION COMMUNICATION TECHNOLOGY
http://statistics.data.gov.uk/id/local-authority/43UM,WOKING BOROUGH COUNCIL,08/03/2019,03/04/2019,0000436065/012,GAMMA TELECOM LIMITED,40610100,10.99,ASSET MANAGEMENT - SHEERWATER COMMUNITY CENTRE,NETWORK CIRCUITS,G800,NETWORK CIRCUITS,ASSET MANAGEMENT,INFORMATION COMMUNICATION TECHNOLOGY
http://statistics.data.gov.uk/id/local-authority/43UM,WOKING BOROUGH COUNCIL,08/03/2019,03/04/2019,0000436065/014,GAMMA TELECOM LIMITED,40610100,10.99,ASSET MANAGEMENT - UNIT 2 LITTLEWICK CARTHOUSE L,NETWORK CIRCUITS,G800,NETWORK CIRCUITS,ASSET MANAGEMENT,INFORMATION COMMUNICATION TECHNOLOGY
http://statistics.data.gov.uk/id/local-authority/43UM,WOKING BOROUGH COUNCIL,08/03/2019,03/04/2019,0000436065/015,GAMMA TELECOM LIMITED,40610100,10.99,ASSET MANAGEMENT - UNIT 3 LITTLEWICK CARTHOUSE L,NETWORK CIRCUITS,G800,NETWORK CIRCUITS,ASSET MANAGEMENT,INFORMATION COMMUNICATION TECHNOLOGY
http://statistics.data.gov.uk/id/local-authority/43UM,WOKING BOROUGH COUNCIL,08/03/2019,03/04/2019,0000436065/016,GAMMA TELECOM LIMITED,40610100,10.99,ASSET MANAGEMENT - UNIT 4 LITTLEWICK CARTHOUSE L,NETWORK CIRCUITS,G800,NETWORK CIRCUITS,ASSET MANAGEMENT,INFORMATION COMMUNICATION TECHNOLOGY
http://statistics.data.gov.uk/id/local-authority/43UM,WOKING BOROUGH COUNCIL,08/03/2019,03/04/2019,0000436065/017,GAMMA TELECOM LIMITED,40610100,103.59,ASSET MANAGEMENT - 49 DARTMOUTH AVE (XHRA) ,NETWORK CIRCUITS,G800,NETWORK CIRCUITS,ASSET MANAGEMENT,INFORMATION COMMUNICATION TECHNOLOGY
http://statistics.data.gov.uk/id/local-authority/43UM,WOKING BOROUGH COUNCIL,08/03/2019,03/04/2019,0000436065/023,GAMMA TELECOM LIMITED,40610100,10.99,ASSET MANAGEMENT - BUILDING SERVICES,NETWORK CIRCUITS,G800,NETWORK CIRCUITS,ASSET MANAGEMENT,INFORMATION COMMUNICATION TECHNOLOGY
http://statistics.data.gov.uk/id/local-authority/43UM,WOKING BOROUGH COUNCIL,08/03/2019,03/04/2019,0000436065/025,GAMMA TELECOM LIMITED,40610100,2434.38,INFORMATION TECHNOLOGY - COMMUNICATIONS,NETWORK CIRCUITS,G800,NETWORK CIRCUITS,INFORMATION TECHNOLOGY,INFORMATION COMMUNICATION TECHNOLOGY
http://statistics.data.gov.uk/id/local-authority/43UM,WOKING BOROUGH COUNCIL,08/03/2019,03/04/2019,0000436065/088,GAMMA TELECOM LIMITED,40610100,27.98,INFORMATION TECHNOLOGY - COMMUNICATIONS,NETWORK CIRCUITS,G800,NETWORK CIRCUITS,INFORMATION TECHNOLOGY,INFORMATION COMMUNICATION TECHNOLOGY
http://statistics.data.gov.uk/id/local-authority/43UM,WOKING BOROUGH COUNCIL,08/03/2019,03/04/2019,0000436065/031,GAMMA TELECOM LIMITED,40610100,66.14,H G WELLS - H G WELLS - FUNCTION ROOMS,NETWORK CIRCUITS,G800,NETWORK CIRCUITS,H G WELLS,INFORMATION COMMUNICATION TECHNOLOGY
http://statistics.data.gov.uk/id/local-authority/43UM,WOKING BOROUGH COUNCIL,08/03/2019,03/04/2019,0000436065/042,GAMMA TELECOM LIMITED,40610100,16.99,INDEPENDENT LIVING SERVICES - PARKVIEW,NETWORK CIRCUITS,G800,NETWORK CIRCUITS,INDEPENDENT LIVING SERVICES,INFORMATION COMMUNICATION TECHNOLOGY
http://statistics.data.gov.uk/id/local-authority/43UM,WOKING BOROUGH COUNCIL,08/03/2019,03/04/2019,0000436065/049,GAMMA TELECOM LIMITED,40610100,208.78,INDEPENDENT LIVING SERVICES - COMMUNITY ALARMS-HRA,NETWORK CIRCUITS,G800,NETWORK CIRCUITS,INDEPENDENT LIVING SERVICES,INFORMATION COMMUNICATION TECHNOLOGY
http://statistics.data.gov.uk/id/local-authority/43UM,WOKING BOROUGH COUNCIL,08/03/2019,03/04/2019,0000436065/062,GAMMA TELECOM LIMITED,40610100,24.13,NEIGHBOURHOOD SERVICES - OUTDOOR SPORTS OPERATING,NETWORK CIRCUITS,G800,NETWORK CIRCUITS,NEIGHBOURHOOD SERVICES,INFORMATION COMMUNICATION TECHNOLOGY
http://statistics.data.gov.uk/id/local-authority/43UM,WOKING BOROUGH COUNCIL,08/03/2019,03/04/2019,0000436065/072,GAMMA TELECOM LIMITED,40610100,83.53,NEIGHBOURHOOD SERVICES - CAR PARKS ADMIN&OPERATIONAL EX,NETWORK CIRCUITS,G800,NETWORK CIRCUITS,NEIGHBOURHOOD SERVICES,INFORMATION COMMUNICATION TECHNOLOGY
http://statistics.data.gov.uk/id/local-authority/43UM,WOKING BOROUGH COUNCIL,26/03/2019,03/04/2019,0000436740/001,VIRGIN MEDIA BUSINESS,00316500,40.00,HOUSING SERVICES - ESTATE MANAGEMENT,NETWORK CIRCUITS,G800,NETWORK CIRCUITS,HOUSING SERVICES,INFORMATION COMMUNICATION TECHNOLOGY
http://statistics.data.gov.uk/id/local-authority/43UM,WOKING BOROUGH COUNCIL,08/03/2019,03/04/2019,0000435959/001,PORTERS,00021300,395.00,HOUSING SERVICES - TENANTS REMOVAL EXPENS,REMOVAL EXPENSES,H775,REMOVAL EXPENSES,HOUSING SERVICES,HOUSING MANAGEMENT
http://statistics.data.gov.uk/id/local-authority/43UM,WOKING BOROUGH COUNCIL,18/03/2019,03/04/2019,0000436615/051,SKANSKA RASHLEIGH WEATHERFOIL LTD,40413600,2781.69,ASSET MANAGEMENT - FACILITIES MANAGEMENT,TEMPORARY STAFF,A110,TEMPORARY STAFF,ASSET MANAGEMENT,FACILITIES & MANAGEMENT SERVICES
http://statistics.data.gov.uk/id/local-authority/43UM,WOKING BOROUGH COUNCIL,18/03/2019,03/04/2019,0000436615/002,SKANSKA RASHLEIGH WEATHERFOIL LTD,40413600,11856.24,ASSET MANAGEMENT - AMP PITP CONCRETE WORKS FLUME,MAIN CONTRACTOR,Q200,MAIN CONTRACTOR,ASSET MANAGEMENT,FACILITIES & MANAGEMENT SERVICES
http://statistics.data.gov.uk/id/local-authority/43UM,WOKING BOROUGH COUNCIL,29/03/2019,03/04/2019,0000436726/001,GREENWICH CONTRACTS LIMITED,40656500,1000.00,REVENUES AND BENEFITS - BENEFIT SERVICES,TEMPORARY STAFF,A110,TEMPORARY STAFF,REVENUES AND BENEFITS,CONSULTANCY
http://statistics.data.gov.uk/id/local-authority/43UM,WOKING BOROUGH COUNCIL,29/03/2019,03/04/2019,0000436727/001,GREENWICH CONTRACTS LIMITED,40656500,1125.00,REVENUES AND BENEFITS - BENEFIT SERVICES,TEMPORARY STAFF,A110,TEMPORARY STAFF,REVENUES AND BENEFITS,CONSULTANCY
http://statistics.data.gov.uk/id/local-authority/43UM,WOKING BOROUGH COUNCIL,21/03/2019,03/04/2019,0000436544/003,THAMESWEY ENERGY LIMITED,01142300,137.35,INDEPENDENT LIVING SERVICES - BROCKHILL EXTRA CARE,TEL GAS/HEATING,D481,TEL GAS/HEATING,INDEPENDENT LIVING SERVICES,UTILITIES
http://statistics.data.gov.uk/id/local-authority/43UM,WOKING BOROUGH COUNCIL,21/03/2019,03/04/2019,0000436544/002,THAMESWEY ENERGY LIMITED,01142300,503.62,INDEPENDENT LIVING SERVICES - MEALS SERVICE - BROCKHILL,TEL GAS/HEATING,D481,TEL GAS/HEATING,INDEPENDENT LIVING SERVICES,UTILITIES
http://statistics.data.gov.uk/id/local-authority/43UM,WOKING BOROUGH COUNCIL,21/03/2019,03/04/2019,0000436545/001,THAMESWEY ENERGY LIMITED,01142300,1842.79,INDEPENDENT LIVING SERVICES - ST MARY'S DAY CENTRE,TEL GAS/HEATING,D481,TEL GAS/HEATING,INDEPENDENT LIVING SERVICES,UTILITIES
http://statistics.data.gov.uk/id/local-authority/43UM,WOKING BOROUGH COUNCIL,21/03/2019,03/04/2019,0000436544/001,THAMESWEY ENERGY LIMITED,01142300,9908.23,HOUSING SERVICES - ENERGY,TEL GAS/HEATING,D481,TEL GAS/HEATING,HOUSING SERVICES,UTILITIES
http://statistics.data.gov.uk/id/local-authority/43UM,WOKING BOROUGH COUNCIL,21/03/2019,03/04/2019,0000436544/005,THAMESWEY ENERGY LIMITED,01142300,327.25,HOUSING SERVICES - ENERGY,TEL GAS/HEATING,D481,TEL GAS/HEATING,HOUSING SERVICES,UTILITIES
http://statistics.data.gov.uk/id/local-authority/43UM,WOKING BOROUGH COUNCIL,21/03/2019,03/04/2019,0000436544/004,THAMESWEY ENERGY LIMITED,01142300,359.03,HOUSING SERVICES - PETWORTH COURT,TEL GAS/HEATING,D481,TEL GAS/HEATING,HOUSING SERVICES,UTILITIES
http://statistics.data.gov.uk/id/local-authority/43UM,WOKING BOROUGH COUNCIL,21/03/2019,03/04/2019,0000436542/001,THAMESWEY ENERGY LIMITED,01142300,12360.72,CORPORATE STRATEGY - LEISURE MANAGEMENT CONTRACT,TEL GAS/HEATING,D481,TEL GAS/HEATING,CORPORATE STRATEGY,UTILITIES
http://statistics.data.gov.uk/id/local-authority/43UM,WOKING BOROUGH COUNCIL,21/03/2019,03/04/2019,0000436543/001,THAMESWEY ENERGY LIMITED,01142300,23042.31,CORPORATE STRATEGY - LEISURE MANAGEMENT CONTRACT,TEL GAS/HEATING,D481,TEL GAS/HEATING,CORPORATE STRATEGY,UTILITIES
http://statistics.data.gov.uk/id/local-authority/43UM,WOKING BOROUGH COUNCIL,06/03/2019,03/04/2019,0000435907/001,APPETITE 4 WORK LIMITED,40622000,475.00,H G WELLS - H G WELLS - FUNCTION ROOMS,TEMPORARY STAFF,H687,TEMPORARY STAFF,H G WELLS,CATERING
http://statistics.data.gov.uk/id/local-authority/43UM,WOKING BOROUGH COUNCIL,06/03/2019,03/04/2019,0000435907/002,APPETITE 4 WORK LIMITED,40622000,593.75,H G WELLS - H G WELLS - BAR,TEMPORARY STAFF,H687,TEMPORARY STAFF,H G WELLS,CATERING
http://statistics.data.gov.uk/id/local-authority/43UM,WOKING BOROUGH COUNCIL,06/03/2019,03/04/2019,0000435907/003,APPETITE 4 WORK LIMITED,40622000,356.25,H G WELLS - H G WELLS - BAR,TEMPORARY STAFF,H687,TEMPORARY STAFF,H G WELLS,CATERING
http://statistics.data.gov.uk/id/local-authority/43UM,WOKING BOROUGH COUNCIL,06/03/2019,03/04/2019,0000435920/001,CARRINGTON WEST LIMITED,40529100,618.75,NEIGHBOURHOOD SERVICES - PARKING SERVICES,TEMPORARY STAFF,A110,TEMPORARY STAFF,NEIGHBOURHOOD SERVICES,HUMAN RESOURCES
http://statistics.data.gov.uk/id/local-authority/43UM,WOKING BOROUGH COUNCIL,28/02/2019,03/04/2019,0000436571/001,MOYALLEN WOKING LIMITED,40285600,3780.00,ASSET MANAGEMENT - VALUATION SERVICES,TEMPORARY STAFF,A110,TEMPORARY STAFF,ASSET MANAGEMENT,FACILITIES & MANAGEMENT SERVICES
http://statistics.data.gov.uk/id/local-authority/43UM,WOKING BOROUGH COUNCIL,06/03/2019,03/04/2019,0000436061/001,PARK AVENUE RECRUITMENT,40691800,1184.00,PLANNING SERVICES - DEVELOPMENT CONTROL,TEMPORARY STAFF,A110,TEMPORARY STAFF,PLANNING SERVICES,HUMAN RESOURCES
http://statistics.data.gov.uk/id/local-authority/43UM,WOKING BOROUGH COUNCIL,29/03/2019,03/04/2019,0000436812/001,REDACTED PERSONAL DATA,40648300,2900.00,INDEPENDENT LIVING SERVICES - SW REGEN DISTURBANCE PAYMENTS,MAIN CONTRACTOR,Q200,MAIN CONTRACTOR,INDEPENDENT LIVING SERVICES,HOUSING MANAGEMENT
http://statistics.data.gov.uk/id/local-authority/43UM,WOKING BOROUGH COUNCIL,25/03/2019,03/04/2019,0000436629/001,REDACTED PERSONAL DATA,40189900,4857.02,INDEPENDENT LIVING SERVICES - SW REGEN HOME LOSS PAYMENTS,MAIN CONTRACTOR,Q200,MAIN CONTRACTOR,INDEPENDENT LIVING SERVICES,HOUSING MANAGEMENT
http://statistics.data.gov.uk/id/local-authority/43UM,WOKING BOROUGH COUNCIL,29/03/2019,03/04/2019,0000436813/001,REDACTED PERSONAL DATA,40793800,1250.35,INDEPENDENT LIVING SERVICES - SW REGEN HOME LOSS PAYMENTS,MAIN CONTRACTOR,Q200,MAIN CONTRACTOR,INDEPENDENT LIVING SERVICES,HOUSING MANAGEMENT
http://statistics.data.gov.uk/id/local-authority/43UM,WOKING BOROUGH COUNCIL,10/03/2019,03/04/2019,0000436164/001,MORGAN HUNT UK LIMITED,01768500,1251.93,REVENUES AND BENEFITS - COUNCIL TAX,TEMPORARY STAFF,A110,TEMPORARY STAFF,REVENUES AND BENEFITS,HUMAN RESOURCES
http://statistics.data.gov.uk/id/local-authority/43UM,WOKING BOROUGH COUNCIL,10/03/2019,03/04/2019,0000436165/001,MORGAN HUNT UK LIMITED,01768500,1156.50,REVENUES AND BENEFITS - COUNCIL TAX,TEMPORARY STAFF,A110,TEMPORARY STAFF,REVENUES AND BENEFITS,HUMAN RESOURCES
http://statistics.data.gov.uk/id/local-authority/43UM,WOKING BOROUGH COUNCIL,08/03/2019,03/04/2019,0000436065/086,GAMMA TELECOM LIMITED,40610100,5.74,ASSET MANAGEMENT - BROOKWOOD CEMETERY TEMP COSTS,MAIN CONTRACTOR,Q200,MAIN CONTRACTOR,ASSET MANAGEMENT,INFORMATION COMMUNICATION TECHNOLOGY
http://statistics.data.gov.uk/id/local-authority/43UM,WOKING BOROUGH COUNCIL,03/03/2019,03/04/2019,0000436339/001,UNITY RECRUITMENT LTD,40160500,4318.27,NEIGHBOURHOOD SERVICES - PARKING SERVICES,TEMPORARY STAFF,A110,TEMPORARY STAFF,NEIGHBOURHOOD SERVICES,HUMAN RESOURCES
http://statistics.data.gov.uk/id/local-authority/43UM,WOKING BOROUGH COUNCIL,03/03/2019,03/04/2019,0000436342/001,UNITY RECRUITMENT LTD,40160500,806.42,NEIGHBOURHOOD SERVICES - PARKING SERVICES,TEMPORARY STAFF,A110,TEMPORARY STAFF,NEIGHBOURHOOD SERVICES,HUMAN RESOURCES
http://statistics.data.gov.uk/id/local-authority/43UM,WOKING BOROUGH COUNCIL,06/03/2019,03/04/2019,0000435877/001,OYSTER PARTNERSHIP,40443300,1478.96,PLANNING SERVICES - DEVELOPMENT CONTROL,TEMPORARY STAFF,A110,TEMPORARY STAFF,PLANNING SERVICES,HUMAN RESOURCES
http://statistics.data.gov.uk/id/local-authority/43UM,WOKING BOROUGH COUNCIL,06/03/2019,03/04/2019,0000435955/001,VENN GROUP LIMITED,40383900,1280.00,REVENUES AND BENEFITS - BENEFIT SERVICES,TEMPORARY STAFF,A110,TEMPORARY STAFF,REVENUES AND BENEFITS,HUMAN RESOURCES
http://statistics.data.gov.uk/id/local-authority/43UM,WOKING BOROUGH COUNCIL,10/03/2019,03/04/2019,0000436047/001,WEST HORSLEY DAIRY,00147600,6.33,H G WELLS - H G WELLS - CATERING,PROVISIONS-FOOD,G440,PROVISIONS-FOOD,H G WELLS,CATERING
http://statistics.data.gov.uk/id/local-authority/43UM,WOKING BOROUGH COUNCIL,15/02/2019,03/04/2019,0000436631/001,FAITH RECRUITMENT,01709500,35.56,REVENUES AND BENEFITS - BENEFIT SERVICES,TEMPORARY STAFF,A110,TEMPORARY STAFF,REVENUES AND BENEFITS,HUMAN RESOURCES
http://statistics.data.gov.uk/id/local-authority/43UM,WOKING BOROUGH COUNCIL,15/03/2019,03/04/2019,0000436665/001,FAITH RECRUITMENT,01709500,472.20,REVENUES AND BENEFITS - BENEFIT SERVICES,TEMPORARY STAFF,A110,TEMPORARY STAFF,REVENUES AND BENEFITS,HUMAN RESOURCES
http://statistics.data.gov.uk/id/local-authority/43UM,WOKING BOROUGH COUNCIL,08/03/2019,03/04/2019,0000436324/001,FAITH RECRUITMENT,01709500,77.47,NEIGHBOURHOOD SERVICES - PARKING SERVICES,TEMPORARY STAFF,A110,TEMPORARY STAFF,NEIGHBOURHOOD SERVICES,HUMAN RESOURCES
http://statistics.data.gov.uk/id/local-authority/43UM,WOKING BOROUGH COUNCIL,08/03/2019,03/04/2019,0000436325/001,FAITH RECRUITMENT,01709500,364.95,NEIGHBOURHOOD SERVICES - PARKING SERVICES,TEMPORARY STAFF,A110,TEMPORARY STAFF,NEIGHBOURHOOD SERVICES,HUMAN RESOURCES
http://statistics.data.gov.uk/id/local-authority/43UM,WOKING BOROUGH COUNCIL,15/03/2019,03/04/2019,0000436662/001,FAITH RECRUITMENT,01709500,486.60,NEIGHBOURHOOD SERVICES - PARKING SERVICES,TEMPORARY STAFF,A110,TEMPORARY STAFF,NEIGHBOURHOOD SERVICES,HUMAN RESOURCES
http://statistics.data.gov.uk/id/local-authority/43UM,WOKING BOROUGH COUNCIL,15/03/2019,03/04/2019,0000436663/001,FAITH RECRUITMENT,01709500,486.60,NEIGHBOURHOOD SERVICES - PARKING SERVICES,TEMPORARY STAFF,A110,TEMPORARY STAFF,NEIGHBOURHOOD SERVICES,HUMAN RESOURCES
http://statistics.data.gov.uk/id/local-authority/43UM,WOKING BOROUGH COUNCIL,15/03/2019,03/04/2019,0000436664/001,FAITH RECRUITMENT,01709500,646.70,NEIGHBOURHOOD SERVICES - PARKING SERVICES,TEMPORARY STAFF,A110,TEMPORARY STAFF,NEIGHBOURHOOD SERVICES,HUMAN RESOURCES
http://statistics.data.gov.uk/id/local-authority/43UM,WOKING BOROUGH COUNCIL,15/03/2019,03/04/2019,0000436669/001,FAITH RECRUITMENT,01709500,1106.63,NEIGHBOURHOOD SERVICES - PARKING SERVICES,TEMPORARY STAFF,A110,TEMPORARY STAFF,NEIGHBOURHOOD SERVICES,HUMAN RESOURCES
http://statistics.data.gov.uk/id/local-authority/43UM,WOKING BOROUGH COUNCIL,15/03/2019,03/04/2019,0000436670/001,FAITH RECRUITMENT,01709500,66.41,NEIGHBOURHOOD SERVICES - PARKING SERVICES,TEMPORARY STAFF,A110,TEMPORARY STAFF,NEIGHBOURHOOD SERVICES,HUMAN RESOURCES
http://statistics.data.gov.uk/id/local-authority/43UM,WOKING BOROUGH COUNCIL,01/12/2018,03/04/2019,0000436549/001,BRIGHT HORIZONS,40796000,1190.81,HOUSING SERVICES - SYRIAN REFUGEE FAMILES,VPR1642 NURSERY,Q271,VPR1642 NURSERY,HOUSING SERVICES,EDUCATION
http://statistics.data.gov.uk/id/local-authority/43UM,WOKING BOROUGH COUNCIL,06/03/2019,03/04/2019,0000435843/002,FREEDOM LEISURE,40296500,221.44,INDEPENDENT LIVING SERVICES - MOORCROFT,TEMPORARY STAFF,H687,TEMPORARY STAFF,INDEPENDENT LIVING SERVICES,HUMAN RESOURCES
http://statistics.data.gov.uk/id/local-authority/43UM,WOKING BOROUGH COUNCIL,06/03/2019,03/04/2019,0000435843/001,FREEDOM LEISURE,40296500,193.76,INDEPENDENT LIVING SERVICES - THE VYNE,TEMPORARY STAFF,H687,TEMPORARY STAFF,INDEPENDENT LIVING SERVICES,HUMAN RESOURCES
http://statistics.data.gov.uk/id/local-authority/43UM,WOKING BOROUGH COUNCIL,22/03/2019,03/04/2019,0000436487/001,LYNNE FRENCH,40613900,120.00,NEIGHBOURHOOD SERVICES - SPORTS DEVELOPMENT,COACH EDUCATION,H657,COACH EDUCATION,NEIGHBOURHOOD SERVICES,ARTS & LEISURE SERVICES
http://statistics.data.gov.uk/id/local-authority/43UM,WOKING BOROUGH COUNCIL,22/03/2019,03/04/2019,0000436488/001,LYNNE FRENCH,40613900,120.00,NEIGHBOURHOOD SERVICES - SPORTS DEVELOPMENT,COACH EDUCATION,H657,COACH EDUCATION,NEIGHBOURHOOD SERVICES,ARTS & LEISURE SERVICES
http://statistics.data.gov.uk/id/local-authority/43UM,WOKING BOROUGH COUNCIL,25/03/2019,03/04/2019,0000436551/001,LYNNE FRENCH,40613900,120.00,NEIGHBOURHOOD SERVICES - SPORTS DEVELOPMENT,COACH EDUCATION,H657,COACH EDUCATION,NEIGHBOURHOOD SERVICES,ARTS & LEISURE SERVICES
http://statistics.data.gov.uk/id/local-authority/43UM,WOKING BOROUGH COUNCIL,08/03/2019,03/04/2019,0000436057/001,SAJ CARPETS,40747300,1017.99,INDEPENDENT LIVING SERVICES - SW REGEN HOME LOSS PAYMENTS,MAIN CONTRACTOR,Q200,MAIN CONTRACTOR,INDEPENDENT LIVING SERVICES,WORKS (CONSTRUCTION REPAIR MAINTENANCE)
http://statistics.data.gov.uk/id/local-authority/43UM,WOKING BOROUGH COUNCIL,11/03/2019,03/04/2019,0000436276/001,WH STEPHENS,40416600,6500.00,ASSET MANAGEMENT - CHOBHAM BRIDGE TOWPATH LINK,MAIN CONTRACTOR,Q200,MAIN CONTRACTOR,ASSET MANAGEMENT,CONSULTANCY
http://statistics.data.gov.uk/id/local-authority/43UM,WOKING BOROUGH COUNCIL,22/03/2019,03/04/2019,0000436568/001,MATT DUFFY,40689200,6715.00,INDEPENDENT LIVING SERVICES - PPPF PERSONALISATION & PREV FD,MAIN CONTRACTOR,Q200,MAIN CONTRACTOR,INDEPENDENT LIVING SERVICES,CATERING
http://statistics.data.gov.uk/id/local-authority/43UM,WOKING BOROUGH COUNCIL,08/03/2019,03/04/2019,0000435961/001,PORTERS,00021300,350.00,INDEPENDENT LIVING SERVICES - REMOVAL COSTS SHEERWATER REGEB,MAIN CONTRACTOR,Q200,MAIN CONTRACTOR,INDEPENDENT LIVING SERVICES,HOUSING MANAGEMENT
http://statistics.data.gov.uk/id/local-authority/43UM,WOKING BOROUGH COUNCIL,20/02/2019,03/04/2019,0000436526/001,PORTERS,00021300,725.00,INDEPENDENT LIVING SERVICES - REMOVAL COSTS SHEERWATER REGEB,MAIN CONTRACTOR,Q200,MAIN CONTRACTOR,INDEPENDENT LIVING SERVICES,HOUSING MANAGEMENT
http://statistics.data.gov.uk/id/local-authority/43UM,WOKING BOROUGH COUNCIL,19/02/2019,03/04/2019,0000436701/001,PORTERS,00021300,395.00,INDEPENDENT LIVING SERVICES - REMOVAL COSTS SHEERWATER REGEB,MAIN CONTRACTOR,Q200,MAIN CONTRACTOR,INDEPENDENT LIVING SERVICES,HOUSING MANAGEMENT
http://statistics.data.gov.uk/id/local-authority/43UM,WOKING BOROUGH COUNCIL,19/02/2019,03/04/2019,0000436702/001,PORTERS,00021300,395.00,INDEPENDENT LIVING SERVICES - REMOVAL COSTS SHEERWATER REGEB,MAIN CONTRACTOR,Q200,MAIN CONTRACTOR,INDEPENDENT LIVING SERVICES,HOUSING MANAGEMENT
http://statistics.data.gov.uk/id/local-authority/43UM,WOKING BOROUGH COUNCIL,19/02/2019,03/04/2019,0000436703/001,PORTERS,00021300,350.00,INDEPENDENT LIVING SERVICES - REMOVAL COSTS SHEERWATER REGEB,MAIN CONTRACTOR,Q200,MAIN CONTRACTOR,INDEPENDENT LIVING SERVICES,HOUSING MANAGEMENT
http://statistics.data.gov.uk/id/local-authority/43UM,WOKING BOROUGH COUNCIL,06/03/2019,03/04/2019,0000435898/001,HAYS,00228700,705.60,CORPORATE STRATEGY - CUSTOMER SERVICES,TEMPORARY STAFF,A110,TEMPORARY STAFF,CORPORATE STRATEGY,HUMAN RESOURCES
http://statistics.data.gov.uk/id/local-authority/43UM,WOKING BOROUGH COUNCIL,06/03/2019,03/04/2019,0000435899/001,HAYS,00228700,403.20,CORPORATE STRATEGY - CUSTOMER SERVICES,TEMPORARY STAFF,A110,TEMPORARY STAFF,CORPORATE STRATEGY,HUMAN RESOURCES
http://statistics.data.gov.uk/id/local-authority/43UM,WOKING BOROUGH COUNCIL,06/03/2019,03/04/2019,0000435900/001,HAYS,00228700,586.76,CORPORATE STRATEGY - CUSTOMER SERVICES,TEMPORARY STAFF,A110,TEMPORARY STAFF,CORPORATE STRATEGY,HUMAN RESOURCES
http://statistics.data.gov.uk/id/local-authority/43UM,WOKING BOROUGH COUNCIL,31/01/2019,03/04/2019,0000436380/001,JAMES KNIGHT OF MAYFAIR,40773600,182.42,ASSET MANAGEMENT - FISHMONGER TRADING,STOCK PURCHASE,H840,STOCK PURCHASE,ASSET MANAGEMENT,FINANCIAL SERVICES
http://statistics.data.gov.uk/id/local-authority/43UM,WOKING BOROUGH COUNCIL,30/01/2019,03/04/2019,0000436382/001,JAMES KNIGHT OF MAYFAIR,40773600,15.00,ASSET MANAGEMENT - FISHMONGER TRADING,STOCK PURCHASE,H840,STOCK PURCHASE,ASSET MANAGEMENT,FINANCIAL SERVICES
http://statistics.data.gov.uk/id/local-authority/43UM,WOKING BOROUGH COUNCIL,30/01/2019,03/04/2019,0000436384/001,JAMES KNIGHT OF MAYFAIR,40773600,69.81,ASSET MANAGEMENT - FISHMONGER TRADING,STOCK PURCHASE,H840,STOCK PURCHASE,ASSET MANAGEMENT,FINANCIAL SERVICES
http://statistics.data.gov.uk/id/local-authority/43UM,WOKING BOROUGH COUNCIL,29/01/2019,03/04/2019,0000436385/001,JAMES KNIGHT OF MAYFAIR,40773600,365.10,ASSET MANAGEMENT - FISHMONGER TRADING,STOCK PURCHASE,H840,STOCK PURCHASE,ASSET MANAGEMENT,FINANCIAL SERVICES
http://statistics.data.gov.uk/id/local-authority/43UM,WOKING BOROUGH COUNCIL,06/03/2019,03/04/2019,0000435838/001,SCANAUDIO LTD,40419100,269.00,INDEPENDENT LIVING SERVICES - MOORCROFT,REFURBISHMENTS,D104,REFURBISHMENTS,INDEPENDENT LIVING SERVICES,FACILITIES & MANAGEMENT SERVICES
http://statistics.data.gov.uk/id/local-authority/43UM,WOKING BOROUGH COUNCIL,25/02/2019,03/04/2019,0000435387/001,ARCOM IT LTD,40352600,10500.00,CORPORATE STRATEGY - INCUBATOR UNITS -EXPORT HOUSE,MANAGEMENT FEE,H632,MANAGEMENT FEE,CORPORATE STRATEGY,UTILITIES
http://statistics.data.gov.uk/id/local-authority/43UM,WOKING BOROUGH COUNCIL,11/03/2019,03/04/2019,0000436456/001,OFFICEFURNITUREONLINE.CO.UK,40663700,1236.00,ASSET MANAGEMENT - CIVIC OFFICES,NEW EQUIPMENT,G105,NEW EQUIPMENT,ASSET MANAGEMENT,FURNITURE & SOFT FURNISHINGS
http://statistics.data.gov.uk/id/local-authority/43UM,WOKING BOROUGH COUNCIL,15/03/2019,03/04/2019,0000435379/001,BOOM! CREDIT UNION,40344200,716.00,CORPORATE STRATEGY - SURREY SAVE CREDIT UNION,PAYMENTS OVER,S340,PAYMENTS OVER,CORPORATE STRATEGY,FINANCIAL SERVICES
http://statistics.data.gov.uk/id/local-authority/43UM,WOKING BOROUGH COUNCIL,11/03/2019,03/04/2019,0000436092/001,TANGO SECURITY LTD,01708900,127.68,CORPORATE STRATEGY - PRIVATE CAR HIRE LICENCE,TAXI MARSHALL,H434,TAXI MARSHALL,CORPORATE STRATEGY,FACILITIES & MANAGEMENT SERVICES
http://statistics.data.gov.uk/id/local-authority/43UM,WOKING BOROUGH COUNCIL,11/03/2019,03/04/2019,0000436093/001,TANGO SECURITY LTD,01708900,191.52,CORPORATE STRATEGY - PRIVATE CAR HIRE LICENCE,TAXI MARSHALL,H434,TAXI MARSHALL,CORPORATE STRATEGY,FACILITIES & MANAGEMENT SERVICES
http://statistics.data.gov.uk/id/local-authority/43UM,WOKING BOROUGH COUNCIL,11/03/2019,03/04/2019,0000436092/002,TANGO SECURITY LTD,01708900,85.12,CORPORATE STRATEGY - TAXI LICENCES,TAXI MARSHALL,H434,TAXI MARSHALL,CORPORATE STRATEGY,FACILITIES & MANAGEMENT SERVICES
http://statistics.data.gov.uk/id/local-authority/43UM,WOKING BOROUGH COUNCIL,11/03/2019,03/04/2019,0000436093/002,TANGO SECURITY LTD,01708900,127.68,CORPORATE STRATEGY - TAXI LICENCES,TAXI MARSHALL,H434,TAXI MARSHALL,CORPORATE STRATEGY,FACILITIES & MANAGEMENT SERVICES
http://statistics.data.gov.uk/id/local-authority/43UM,WOKING BOROUGH COUNCIL,08/03/2019,03/04/2019,0000436015/001,TAMESIDE MBC,01407400,150.04,REVENUES AND BENEFITS - C'L TAX BENEFIT ADMIN,SUBSCRIPTIONS,H110,SUBSCRIPTIONS,REVENUES AND BENEFITS,FINANCIAL SERVICES
http://statistics.data.gov.uk/id/local-authority/43UM,WOKING BOROUGH COUNCIL,25/10/2018,03/04/2019,0000436648/001,DAVITT JONES BOULD LTD - SOLICITORS,01490800,62.80,CORPORATE STRATEGY - LEGAL,AD HOC WORK,H781,AD HOC WORK,CORPORATE STRATEGY,LEGAL SERVICES
http://statistics.data.gov.uk/id/local-authority/43UM,WOKING BOROUGH COUNCIL,11/03/2019,03/04/2019,0000436099/001,MARTIN CRANFIELD ASSOCIATES LTD,01474300,1118.75,NEIGHBOURHOOD SERVICES - NOISE/POLLUTION ABATE,CONSULTANTS,H670,CONSULTANTS,NEIGHBOURHOOD SERVICES,ENVIRONMENTAL SERVICES
http://statistics.data.gov.uk/id/local-authority/43UM,WOKING BOROUGH COUNCIL,09/03/2019,03/04/2019,0000436226/001,E.ON ENERGY SOLUTIONS LTD,40077100,73.54,ASSET MANAGEMENT - WOLSEY PLACE,ELECTRICITY,D400,ELECTRICITY,ASSET MANAGEMENT,UTILITIES
http://statistics.data.gov.uk/id/local-authority/43UM,WOKING BOROUGH COUNCIL,07/03/2019,03/04/2019,0000436033/001,TOTAL GAS & POWER LIMITED,40456400,714.49,ASSET MANAGEMENT - WOLSEY PLACE,ELECTRICITY,D400,ELECTRICITY,ASSET MANAGEMENT,UTILITIES
http://statistics.data.gov.uk/id/local-authority/43UM,WOKING BOROUGH COUNCIL,12/03/2019,03/04/2019,0000436231/001,12 CP BARRISTERS,40282300,475.00,CORPORATE STRATEGY - TAXI LICENCES,COURT COSTS,H620,COURT COSTS,CORPORATE STRATEGY,LEGAL SERVICES
http://statistics.data.gov.uk/id/local-authority/43UM,WOKING BOROUGH COUNCIL,11/03/2019,03/04/2019,0000436151/001,EDF ENERGY,01426000,942.17,ASSET MANAGEMENT - 19A HIGH STREET,ELECTRICITY,D400,ELECTRICITY,ASSET MANAGEMENT,UTILITIES
http://statistics.data.gov.uk/id/local-authority/43UM,WOKING BOROUGH COUNCIL,07/03/2019,03/04/2019,0000436160/001,EDF ENERGY,01426000,1633.03,ASSET MANAGEMENT - 19A HIGH STREET,ELECTRICITY,D400,ELECTRICITY,ASSET MANAGEMENT,UTILITIES
http://statistics.data.gov.uk/id/local-authority/43UM,WOKING BOROUGH COUNCIL,12/03/2019,03/04/2019,0000436362/001,EDF ENERGY,01426000,98.17,ASSET MANAGEMENT - POOLE RD CAR PARK,ELECTRICITY,D400,ELECTRICITY,ASSET MANAGEMENT,UTILITIES
http://statistics.data.gov.uk/id/local-authority/43UM,WOKING BOROUGH COUNCIL,17/01/2019,03/04/2019,0000435651/008,NPOWER,40619800,1.55,ASSET MANAGEMENT - PEACOCK WALK MARKET,ELECTRICITY,D400,ELECTRICITY,ASSET MANAGEMENT,UTILITIES
http://statistics.data.gov.uk/id/local-authority/43UM,WOKING BOROUGH COUNCIL,17/01/2019,03/04/2019,0000435651/001,NPOWER,40619800,42.37,ASSET MANAGEMENT - PEACOCKS - GLOCS CHAMB,ELECTRICITY,D400,ELECTRICITY,ASSET MANAGEMENT,UTILITIES
http://statistics.data.gov.uk/id/local-authority/43UM,WOKING BOROUGH COUNCIL,17/01/2019,03/04/2019,0000435651/009,NPOWER,40619800,-143.21,ASSET MANAGEMENT - PEACOCKS - GLOCS CHAMB,ELECTRICITY,D400,ELECTRICITY,ASSET MANAGEMENT,UTILITIES
http://statistics.data.gov.uk/id/local-authority/43UM,WOKING BOROUGH COUNCIL,06/03/2019,03/04/2019,0000435926/001,NPOWER,40619800,148.83,ASSET MANAGEMENT - WOLSEY PLACE,ELECTRICITY,D400,ELECTRICITY,ASSET MANAGEMENT,UTILITIES
http://statistics.data.gov.uk/id/local-authority/43UM,WOKING BOROUGH COUNCIL,17/01/2019,03/04/2019,0000435651/002,NPOWER,40619800,2.41,ASSET MANAGEMENT - TOWN SQUARE LIGHTING,ELECTRICITY,D400,ELECTRICITY,ASSET MANAGEMENT,UTILITIES
http://statistics.data.gov.uk/id/local-authority/43UM,WOKING BOROUGH COUNCIL,17/01/2019,03/04/2019,0000435651/006,NPOWER,40619800,0.50,ASSET MANAGEMENT - TOWN SQUARE LIGHTING,ELECTRICITY,D400,ELECTRICITY,ASSET MANAGEMENT,UTILITIES
http://statistics.data.gov.uk/id/local-authority/43UM,WOKING BOROUGH COUNCIL,17/01/2019,03/04/2019,0000435651/007,NPOWER,40619800,12.18,ASSET MANAGEMENT - UNIT 15A MON WAY EAST,ELECTRICITY,D400,ELECTRICITY,ASSET MANAGEMENT,UTILITIES
http://statistics.data.gov.uk/id/local-authority/43UM,WOKING BOROUGH COUNCIL,17/01/2019,03/04/2019,0000435651/003,NPOWER,40619800,0.03,NEIGHBOURHOOD SERVICES - PARKS-GENERAL,ELECTRICITY,D400,ELECTRICITY,NEIGHBOURHOOD SERVICES,UTILITIES
http://statistics.data.gov.uk/id/local-authority/43UM,WOKING BOROUGH COUNCIL,17/01/2019,03/04/2019,0000435651/004,NPOWER,40619800,1.65,NEIGHBOURHOOD SERVICES - MUSLIM BURIAL GRND PEACE GARDE,ELECTRICITY,D400,ELECTRICITY,NEIGHBOURHOOD SERVICES,UTILITIES
http://statistics.data.gov.uk/id/local-authority/43UM,WOKING BOROUGH COUNCIL,17/01/2019,03/04/2019,0000435651/005,NPOWER,40619800,7.65,NEIGHBOURHOOD SERVICES - HEATHSIDE CRESCENT,ELECTRICITY,D400,ELECTRICITY,NEIGHBOURHOOD SERVICES,UTILITIES
http://statistics.data.gov.uk/id/local-authority/43UM,WOKING BOROUGH COUNCIL,12/03/2019,03/04/2019,0000436169/001,HEADLINE DESIGN & PRINT,00016900,1125.00,CORPORATE STRATEGY - ELECTION ID PILOT,STATIONERY,G620,STATIONERY,CORPORATE STRATEGY,FINANCIAL SERVICES
http://statistics.data.gov.uk/id/local-authority/43UM,WOKING BOROUGH COUNCIL,07/03/2019,03/04/2019,0000435976/001,ANDERSON STRATHERN LLP,40105500,346.50,ASSET MANAGEMENT - WOLSEY PLACE,LEGAL FEES,H677,LEGAL FEES,ASSET MANAGEMENT,LEGAL SERVICES
http://statistics.data.gov.uk/id/local-authority/43UM,WOKING BOROUGH COUNCIL,07/03/2019,03/04/2019,0000435977/001,ANDERSON STRATHERN LLP,40105500,322.00,ASSET MANAGEMENT - WOLSEY PLACE,LEGAL FEES,H677,LEGAL FEES,ASSET MANAGEMENT,LEGAL SERVICES
http://statistics.data.gov.uk/id/local-authority/43UM,WOKING BOROUGH COUNCIL,07/03/2019,03/04/2019,0000435990/001,ANDERSON STRATHERN LLP,40105500,6325.00,ASSET MANAGEMENT - WOLSEY PLACE,LEGAL FEES,H677,LEGAL FEES,ASSET MANAGEMENT,LEGAL SERVICES
http://statistics.data.gov.uk/id/local-authority/43UM,WOKING BOROUGH COUNCIL,07/03/2019,03/04/2019,0000435992/001,ANDERSON STRATHERN LLP,40105500,1300.00,ASSET MANAGEMENT - WOLSEY PLACE,LEGAL FEES,H677,LEGAL FEES,ASSET MANAGEMENT,LEGAL SERVICES
http://statistics.data.gov.uk/id/local-authority/43UM,WOKING BOROUGH COUNCIL,07/03/2019,03/04/2019,0000435993/001,ANDERSON STRATHERN LLP,40105500,5683.00,ASSET MANAGEMENT - WOLSEY PLACE,LEGAL FEES,H677,LEGAL FEES,ASSET MANAGEMENT,LEGAL SERVICES
http://statistics.data.gov.uk/id/local-authority/43UM,WOKING BOROUGH COUNCIL,08/03/2019,03/04/2019,0000435989/002,CHEESMAN BROTHERS LTD,01050500,73.79,INDEPENDENT LIVING SERVICES - MEALS SERVICE - BROCKHILL,PROVISIONS,G410,PROVISIONS,INDEPENDENT LIVING SERVICES,CATERING
http://statistics.data.gov.uk/id/local-authority/43UM,WOKING BOROUGH COUNCIL,08/03/2019,03/04/2019,0000435989/005,CHEESMAN BROTHERS LTD,01050500,5.00,INDEPENDENT LIVING SERVICES - MEALS SERVICE - BROCKHILL,PROVISIONS,G410,PROVISIONS,INDEPENDENT LIVING SERVICES,CATERING
http://statistics.data.gov.uk/id/local-authority/43UM,WOKING BOROUGH COUNCIL,08/03/2019,03/04/2019,0000435989/001,CHEESMAN BROTHERS LTD,01050500,26.62,INDEPENDENT LIVING SERVICES - MEALS SERVICE - ST MARYS,PROVISIONS,G410,PROVISIONS,INDEPENDENT LIVING SERVICES,CATERING
http://statistics.data.gov.uk/id/local-authority/43UM,WOKING BOROUGH COUNCIL,08/03/2019,03/04/2019,0000435989/003,CHEESMAN BROTHERS LTD,01050500,13.64,INDEPENDENT LIVING SERVICES - MEALS SERVICE-MOORCROFT,PROVISIONS,G410,PROVISIONS,INDEPENDENT LIVING SERVICES,CATERING
http://statistics.data.gov.uk/id/local-authority/43UM,WOKING BOROUGH COUNCIL,08/03/2019,03/04/2019,0000435989/006,CHEESMAN BROTHERS LTD,01050500,6.68,INDEPENDENT LIVING SERVICES - MEALS SERVICE-MOORCROFT,PROVISIONS,G410,PROVISIONS,INDEPENDENT LIVING SERVICES,CATERING
http://statistics.data.gov.uk/id/local-authority/43UM,WOKING BOROUGH COUNCIL,08/03/2019,03/04/2019,0000435989/004,CHEESMAN BROTHERS LTD,01050500,16.73,INDEPENDENT LIVING SERVICES - MEALS SERVICE -THE VYNE,PROVISIONS,G410,PROVISIONS,INDEPENDENT LIVING SERVICES,CATERING
http://statistics.data.gov.uk/id/local-authority/43UM,WOKING BOROUGH COUNCIL,08/03/2019,03/04/2019,0000435989/007,CHEESMAN BROTHERS LTD,01050500,14.70,INDEPENDENT LIVING SERVICES - MEALS SERVICE -THE VYNE,PROVISIONS,G410,PROVISIONS,INDEPENDENT LIVING SERVICES,CATERING
http://statistics.data.gov.uk/id/local-authority/43UM,WOKING BOROUGH COUNCIL,08/03/2019,03/04/2019,0000436065/007,GAMMA TELECOM LIMITED,40610100,29.68,CORPORATE STRATEGY - MEMBER SERVICES,IPAD COSTS,G848,IPAD COSTS,CORPORATE STRATEGY,INFORMATION COMMUNICATION TECHNOLOGY
http://statistics.data.gov.uk/id/local-authority/43UM,WOKING BOROUGH COUNCIL,08/03/2019,03/04/2019,0000436065/085,GAMMA TELECOM LIMITED,40610100,22.48,ASSET MANAGEMENT - BROOKWOOD CEMETERY TEMP COSTS,TELEPHONES,Q052,TELEPHONES,ASSET MANAGEMENT,INFORMATION COMMUNICATION TECHNOLOGY
http://statistics.data.gov.uk/id/local-authority/43UM,WOKING BOROUGH COUNCIL,07/03/2019,03/04/2019,0000435944/001,BOURNE INTERNATIONAL,01632500,317.50,CORPORATE STRATEGY - ELECTION ID PILOT,STATIONERY,G620,STATIONERY,CORPORATE STRATEGY,FACILITIES & MANAGEMENT SERVICES
http://statistics.data.gov.uk/id/local-authority/43UM,WOKING BOROUGH COUNCIL,07/03/2019,03/04/2019,0000435944/002,BOURNE INTERNATIONAL,01632500,333.75,CORPORATE STRATEGY - ELECTION ID PILOT,STATIONERY,G620,STATIONERY,CORPORATE STRATEGY,FACILITIES & MANAGEMENT SERVICES
http://statistics.data.gov.uk/id/local-authority/43UM,WOKING BOROUGH COUNCIL,07/03/2019,03/04/2019,0000435944/003,BOURNE INTERNATIONAL,01632500,440.00,CORPORATE STRATEGY - ELECTION ID PILOT,STATIONERY,G620,STATIONERY,CORPORATE STRATEGY,FACILITIES & MANAGEMENT SERVICES
http://statistics.data.gov.uk/id/local-authority/43UM,WOKING BOROUGH COUNCIL,03/03/2019,03/04/2019,0000435878/001,TERRY'S NEWSAGENTS,00036000,34.00,CORPORATE STRATEGY - CORPORATE STRATEGY GENERAL EXP,NEWSPAPERS,G660,NEWSPAPERS,CORPORATE STRATEGY,FACILITIES & MANAGEMENT SERVICES
http://statistics.data.gov.uk/id/local-authority/43UM,WOKING BOROUGH COUNCIL,21/02/2019,03/04/2019,0000436499/001,TMC LEGAL SERVICES,40790000,209.61,CORPORATE STRATEGY - LEGAL,LEGAL FEES,H677,LEGAL FEES,CORPORATE STRATEGY,FINANCIAL SERVICES
http://statistics.data.gov.uk/id/local-authority/43UM,WOKING BOROUGH COUNCIL,12/03/2019,03/04/2019,0000436228/001,WOKING PRINT,00413500,260.00,CORPORATE STRATEGY - ELECTION ID PILOT,STATIONERY,G620,STATIONERY,CORPORATE STRATEGY,STATIONERY
http://statistics.data.gov.uk/id/local-authority/43UM,WOKING BOROUGH COUNCIL,07/03/2019,03/04/2019,0000435919/001,WOKING NEWS & MAIL LIMITED,40249900,100.00,CORPORATE STRATEGY - TOWN CENTRE FORUM,MARKETING,H406,MARKETING,CORPORATE STRATEGY,FACILITIES & MANAGEMENT SERVICES
http://statistics.data.gov.uk/id/local-authority/43UM,WOKING BOROUGH COUNCIL,06/03/2019,03/04/2019,0000435886/001,HEADLINE DESIGN & PRINT,00016900,147.00,CORPORATE STRATEGY - TOWN CENTRE FORUM,MARKETING,H406,MARKETING,CORPORATE STRATEGY,FINANCIAL SERVICES
http://statistics.data.gov.uk/id/local-authority/43UM,WOKING BOROUGH COUNCIL,12/03/2019,03/04/2019,0000436170/001,HEADLINE DESIGN & PRINT,00016900,25.00,CORPORATE STRATEGY - TOWN CENTRE FORUM,MARKETING,H406,MARKETING,CORPORATE STRATEGY,FINANCIAL SERVICES
http://statistics.data.gov.uk/id/local-authority/43UM,WOKING BOROUGH COUNCIL,12/03/2019,03/04/2019,0000436170/002,HEADLINE DESIGN & PRINT,00016900,143.75,CORPORATE STRATEGY - TOWN CENTRE FORUM,MARKETING,H406,MARKETING,CORPORATE STRATEGY,FINANCIAL SERVICES
http://statistics.data.gov.uk/id/local-authority/43UM,WOKING BOROUGH COUNCIL,08/03/2019,03/04/2019,0000436065/006,GAMMA TELECOM LIMITED,40610100,10.99,HOUSING SERVICES - WOKING BOROUGH HOMES,TELEPHONE,S672,TELEPHONE,HOUSING SERVICES,INFORMATION COMMUNICATION TECHNOLOGY
http://statistics.data.gov.uk/id/local-authority/43UM,WOKING BOROUGH COUNCIL,08/03/2019,03/04/2019,0000436065/056,GAMMA TELECOM LIMITED,40610100,10.99,HOUSING SERVICES - DISABLED FACILITIES GRANTS,EQUIPMENT,G100,EQUIPMENT,HOUSING SERVICES,INFORMATION COMMUNICATION TECHNOLOGY
http://statistics.data.gov.uk/id/local-authority/43UM,WOKING BOROUGH COUNCIL,08/03/2019,03/04/2019,0000436065/074,GAMMA TELECOM LIMITED,40610100,92.33,NEIGHBOURHOOD SERVICES - DPE PARKING ACCOUNT,EQUIPMENT,G100,EQUIPMENT,NEIGHBOURHOOD SERVICES,INFORMATION COMMUNICATION TECHNOLOGY
http://statistics.data.gov.uk/id/local-authority/43UM,WOKING BOROUGH COUNCIL,06/03/2019,03/04/2019,0000436038/001,JOHNSON HEALTH TEC,40795700,19841.75,BUILDING SERVICES - L.M.C. - HOE VALLEY SCHOOL,EQUIPMENT,G100,EQUIPMENT,BUILDING SERVICES,FINANCIAL SERVICES
http://statistics.data.gov.uk/id/local-authority/43UM,WOKING BOROUGH COUNCIL,12/03/2019,03/04/2019,0000436201/001,CENTREPIECE,40651300,40.00,H G WELLS - H G WELLS - FUNCTION ROOMS,EQUIPMENT,G100,EQUIPMENT,H G WELLS,ARTS & LEISURE SERVICES
http://statistics.data.gov.uk/id/local-authority/43UM,WOKING BOROUGH COUNCIL,06/03/2019,03/04/2019,0000436410/002,ICL MEDIA,01821200,260.00,H G WELLS - H G WELLS - FUNCTION ROOMS,EQUIPMENT,G100,EQUIPMENT,H G WELLS,INFORMATION COMMUNICATION TECHNOLOGY
http://statistics.data.gov.uk/id/local-authority/43UM,WOKING BOROUGH COUNCIL,21/02/2019,03/04/2019,0000435850/001,ENTERPRISE RENT-A-CAR,40570900,72.91,CORPORATE STRATEGY - ENVIRONMENTAL PROJECTS,CAR HIRE,F405,CAR HIRE,CORPORATE STRATEGY,VEHICLE MANAGEMENT
http://statistics.data.gov.uk/id/local-authority/43UM,WOKING BOROUGH COUNCIL,06/03/2019,03/04/2019,0000435855/001,ETHICAL LETTINGS CIC,40564500,3800.00,HOUSING SERVICES - HOUSING OPTIONS DEPOSITS,DEPOSITS,T720,DEPOSITS,HOUSING SERVICES,HOUSING MANAGEMENT
http://statistics.data.gov.uk/id/local-authority/43UM,WOKING BOROUGH COUNCIL,08/03/2019,03/04/2019,0000436158/001,PPL PRS LTD,40762800,1254.34,NEIGHBOURHOOD SERVICES - ARTS DEVELOPMENT,LICENCES,H460,LICENCES,NEIGHBOURHOOD SERVICES,FINANCIAL SERVICES
http://statistics.data.gov.uk/id/local-authority/43UM,WOKING BOROUGH COUNCIL,03/04/2019,03/04/2019,GPC/00006766,WOKING COUNCIL PARKING,PROCUREMENT CARD,5.42,REVENUES AND BENEFITS - RESOURCES GENERAL EXPENSES,TRAVEL EXPENSES-OFFICERS,F600,MEETING,BEN JONES,AUTO PARKING LOTS/GARAGES
http://statistics.data.gov.uk/id/local-authority/43UM,WOKING BOROUGH COUNCIL,08/03/2019,03/04/2019,0000436131/001,UK LINEN LIMITED,40628400,149.60,H G WELLS - H G WELLS - FUNCTION ROOMS,LAUNDRY,G520,LAUNDRY,H G WELLS,CLEANING & JANITORIAL
http://statistics.data.gov.uk/id/local-authority/43UM,WOKING BOROUGH COUNCIL,12/03/2019,03/04/2019,0000436347/001,UK LINEN LIMITED,40628400,47.41,H G WELLS - H G WELLS - FUNCTION ROOMS,LAUNDRY,G520,LAUNDRY,H G WELLS,CLEANING & JANITORIAL
http://statistics.data.gov.uk/id/local-authority/43UM,WOKING BOROUGH COUNCIL,08/03/2019,03/04/2019,0000436131/002,UK LINEN LIMITED,40628400,20.40,H G WELLS - H G WELLS - CATERING,LAUNDRY,G520,LAUNDRY,H G WELLS,CLEANING & JANITORIAL
http://statistics.data.gov.uk/id/local-authority/43UM,WOKING BOROUGH COUNCIL,12/03/2019,03/04/2019,0000436347/002,UK LINEN LIMITED,40628400,6.46,H G WELLS - H G WELLS - CATERING,LAUNDRY,G520,LAUNDRY,H G WELLS,CLEANING & JANITORIAL
http://statistics.data.gov.uk/id/local-authority/43UM,WOKING BOROUGH COUNCIL,12/03/2019,03/04/2019,0000436051/001,HARROW BUSINESS SERVICES LIMITED,40267600,269.70,INFORMATION TECHNOLOGY - I.T.S. REPROGRAPHICS,PAPER,G635,PAPER,INFORMATION TECHNOLOGY,STATIONERY
http://statistics.data.gov.uk/id/local-authority/43UM,WOKING BOROUGH COUNCIL,09/03/2019,03/04/2019,0000436360/001,CASTLE WATER LIMITED,40650200,64.66,HOUSING SERVICES - LANDLORDS EXPENSES,WATER,D700,WATER,HOUSING SERVICES,UTILITIES
http://statistics.data.gov.uk/id/local-authority/43UM,WOKING BOROUGH COUNCIL,12/03/2019,03/04/2019,0000436387/001,CASTLE WATER LIMITED,40650200,18.50,HOUSING SERVICES - LANDLORDS EXPENSES,WATER,D700,WATER,HOUSING SERVICES,UTILITIES
http://statistics.data.gov.uk/id/local-authority/43UM,WOKING BOROUGH COUNCIL,08/08/2018,03/04/2019,0000436636/001,CASTLE WATER LIMITED,40650200,56.19,INDEPENDENT LIVING SERVICES - ALPHA RD COMMUNITY HALL,WATER,D700,WATER,INDEPENDENT LIVING SERVICES,UTILITIES
http://statistics.data.gov.uk/id/local-authority/43UM,WOKING BOROUGH COUNCIL,04/04/2019,04/04/2019,GPC/00006758,FOREIGN EXCHANGE FEE,PROCUREMENT CARD,1.05,INFORMATION TECHNOLOGY - CORPORATE WEDSITE REDEVELOPMENT,APPLICATIONS SOFTWARE,Q040,WEBSITE THEME FOR WOKING BEST BAR NONE WEBSITE,ANDREW GRESHAM,MERCHANT CATEGORY UNKNOWN
http://statistics.data.gov.uk/id/local-authority/43UM,WOKING BOROUGH COUNCIL,04/04/2019,04/04/2019,GPC/00006781,A2B OFFICE SUPPLIES,PROCUREMENT CARD,125.17,CORPORATE STRATEGY - BOROUGH ELECTIONS,EQUIPMENT,G100,FOLDERS 4 POINT PUNCH HOLE BLUE TAC ETC,SAADIA YOUSAF,MISC GEN MERCHANDISE - DEF
http://statistics.data.gov.uk/id/local-authority/43UM,WOKING BOROUGH COUNCIL,04/04/2019,04/04/2019,GPC/00006788,BPFONLINE.CO.UK,PROCUREMENT CARD,25.00,ASSET MANAGEMENT - FACILITIES MANAGEMENT,FACILITIES MANAGEMENT REPAIRS,D908,PLASTIC FEET FOR TABLES ST MARY'S,MR R D SMITH,COMMERCIAL EQUIPMENT/DEF
http://statistics.data.gov.uk/id/local-authority/43UM,WOKING BOROUGH COUNCIL,04/04/2019,04/04/2019,GPC/00006789,MR PLASTIC ONLINE,PROCUREMENT CARD,58.95,ASSET MANAGEMENT - FACILITIES MANAGEMENT,FACILITIES MANAGEMENT REPAIRS,D908,CIVIC REPAIRS - DECORATION TRIM,MR R D SMITH,LUMBER/BUILD SUPPLY STORES
http://statistics.data.gov.uk/id/local-authority/43UM,WOKING BOROUGH COUNCIL,04/04/2019,04/04/2019,GPC/00006779,TLC SOUTHERN,PROCUREMENT CARD,12.80,ASSET MANAGEMENT - FACILITIES MANAGEMENT,FACILITIES MANAGEMENT REPAIRS,D908,COOKER PLATER FOR THE 3RD FLOOR,DAIANA GRUDINSKA,HOUSEHOLD APPLIANCE STORES
http://statistics.data.gov.uk/id/local-authority/43UM,WOKING BOROUGH COUNCIL,04/04/2019,04/04/2019,GPC/00006778,SLICKPLAN.COM,PROCUREMENT CARD,19.13,INFORMATION TECHNOLOGY - I.T.S. ICT,PC & SERVER SYSTEMS SOFTWARE,G193,WEBSITE SITE PLANNING TOOL,ANDREW GRESHAM,COMPUTER PROGRAM/SYS DESIGN
http://statistics.data.gov.uk/id/local-authority/43UM,WOKING BOROUGH COUNCIL,04/04/2019,04/04/2019,GPC/00006793,BR3628 GIBBS AND D,PROCUREMENT CARD,19.73,ASSET MANAGEMENT - FACILITIES MANAGEMENT,FACILITIES MANAGEMENT REPAIRS,D908,IRONMONGERY FOR HEATHSIDE,MR C NORTON,LUMBER/BUILD SUPPLY STORES
http://statistics.data.gov.uk/id/local-authority/43UM,WOKING BOROUGH COUNCIL,04/04/2019,04/04/2019,GPC/00006792,MFG GOLDSWORTH PARK,PROCUREMENT CARD,69.67,HOUSING SERVICES - HOME IMPS & BEN AGENCY,TRAVEL EXPENSES-OFFICERS,F600,FUEL FOR HANDYPERSON VAN,IAN DEANE,SERVICE STATIONS
http://statistics.data.gov.uk/id/local-authority/43UM,WOKING BOROUGH COUNCIL,04/04/2019,04/04/2019,GPC/00006785,TEXACO MAYBURY HLL,PROCUREMENT CARD,77.50,HOUSING SERVICES - HOME IMPS & BEN AGENCY,TRAVEL EXPENSES-OFFICERS,F600,FUEL FOR HANDYPERSON VAN,GARY COCKBURN,SERVICE STATIONS
http://statistics.data.gov.uk/id/local-authority/43UM,WOKING BOROUGH COUNCIL,04/04/2019,04/04/2019,GPC/00006780,WWW.BANNERUK.COM,PROCUREMENT CARD,0.85,ASSET MANAGEMENT - CIVIC OFFICES,STATIONERY,G620,CIVIC OFFICE STATIONERY,SANDRA ARCHER,STATIONERY/OFFICE SUPPLIES
http://statistics.data.gov.uk/id/local-authority/43UM,WOKING BOROUGH COUNCIL,04/04/2019,04/04/2019,GPC/00006780,WWW.BANNERUK.COM,PROCUREMENT CARD,0.85,ASSET MANAGEMENT - CIVIC OFFICES,STATIONERY,G620,CIVIC OFFICE STATIONERY,SANDRA ARCHER,STATIONERY/OFFICE SUPPLIES
http://statistics.data.gov.uk/id/local-authority/43UM,WOKING BOROUGH COUNCIL,04/04/2019,04/04/2019,GPC/00006780,WWW.BANNERUK.COM,PROCUREMENT CARD,0.88,ASSET MANAGEMENT - CIVIC OFFICES,STATIONERY,G620,CIVIC OFFICE STATIONERY,SANDRA ARCHER,STATIONERY/OFFICE SUPPLIES
http://statistics.data.gov.uk/id/local-authority/43UM,WOKING BOROUGH COUNCIL,04/04/2019,04/04/2019,GPC/00006780,WWW.BANNERUK.COM,PROCUREMENT CARD,0.93,ASSET MANAGEMENT - CIVIC OFFICES,STATIONERY,G620,CIVIC OFFICE STATIONERY,SANDRA ARCHER,STATIONERY/OFFICE SUPPLIES
http://statistics.data.gov.uk/id/local-authority/43UM,WOKING BOROUGH COUNCIL,04/04/2019,04/04/2019,GPC/00006780,WWW.BANNERUK.COM,PROCUREMENT CARD,1.08,ASSET MANAGEMENT - CIVIC OFFICES,STATIONERY,G620,CIVIC OFFICE STATIONERY,SANDRA ARCHER,STATIONERY/OFFICE SUPPLIES
http://statistics.data.gov.uk/id/local-authority/43UM,WOKING BOROUGH COUNCIL,04/04/2019,04/04/2019,GPC/00006780,WWW.BANNERUK.COM,PROCUREMENT CARD,1.08,ASSET MANAGEMENT - CIVIC OFFICES,STATIONERY,G620,CIVIC OFFICE STATIONERY,SANDRA ARCHER,STATIONERY/OFFICE SUPPLIES
http://statistics.data.gov.uk/id/local-authority/43UM,WOKING BOROUGH COUNCIL,04/04/2019,04/04/2019,GPC/00006780,WWW.BANNERUK.COM,PROCUREMENT CARD,1.12,ASSET MANAGEMENT - CIVIC OFFICES,STATIONERY,G620,CIVIC OFFICE STATIONERY,SANDRA ARCHER,STATIONERY/OFFICE SUPPLIES
http://statistics.data.gov.uk/id/local-authority/43UM,WOKING BOROUGH COUNCIL,04/04/2019,04/04/2019,GPC/00006780,WWW.BANNERUK.COM,PROCUREMENT CARD,1.30,ASSET MANAGEMENT - CIVIC OFFICES,STATIONERY,G620,CIVIC OFFICE STATIONERY,SANDRA ARCHER,STATIONERY/OFFICE SUPPLIES
http://statistics.data.gov.uk/id/local-authority/43UM,WOKING BOROUGH COUNCIL,04/04/2019,04/04/2019,GPC/00006780,WWW.BANNERUK.COM,PROCUREMENT CARD,2.12,ASSET MANAGEMENT - CIVIC OFFICES,STATIONERY,G620,CIVIC OFFICE STATIONERY,SANDRA ARCHER,STATIONERY/OFFICE SUPPLIES
http://statistics.data.gov.uk/id/local-authority/43UM,WOKING BOROUGH COUNCIL,04/04/2019,04/04/2019,GPC/00006780,WWW.BANNERUK.COM,PROCUREMENT CARD,2.49,ASSET MANAGEMENT - CIVIC OFFICES,STATIONERY,G620,CIVIC OFFICE STATIONERY,SANDRA ARCHER,STATIONERY/OFFICE SUPPLIES
http://statistics.data.gov.uk/id/local-authority/43UM,WOKING BOROUGH COUNCIL,04/04/2019,04/04/2019,GPC/00006780,WWW.BANNERUK.COM,PROCUREMENT CARD,2.82,ASSET MANAGEMENT - CIVIC OFFICES,STATIONERY,G620,CIVIC OFFICE STATIONERY,SANDRA ARCHER,STATIONERY/OFFICE SUPPLIES
http://statistics.data.gov.uk/id/local-authority/43UM,WOKING BOROUGH COUNCIL,04/04/2019,04/04/2019,GPC/00006780,WWW.BANNERUK.COM,PROCUREMENT CARD,2.98,ASSET MANAGEMENT - CIVIC OFFICES,STATIONERY,G620,CIVIC OFFICE STATIONERY,SANDRA ARCHER,STATIONERY/OFFICE SUPPLIES
http://statistics.data.gov.uk/id/local-authority/43UM,WOKING BOROUGH COUNCIL,04/04/2019,04/04/2019,GPC/00006780,WWW.BANNERUK.COM,PROCUREMENT CARD,3.08,ASSET MANAGEMENT - CIVIC OFFICES,STATIONERY,G620,CIVIC OFFICE STATIONERY,SANDRA ARCHER,STATIONERY/OFFICE SUPPLIES
http://statistics.data.gov.uk/id/local-authority/43UM,WOKING BOROUGH COUNCIL,04/04/2019,04/04/2019,GPC/00006780,WWW.BANNERUK.COM,PROCUREMENT CARD,6.64,ASSET MANAGEMENT - CIVIC OFFICES,STATIONERY,G620,CIVIC OFFICE STATIONERY,SANDRA ARCHER,STATIONERY/OFFICE SUPPLIES
http://statistics.data.gov.uk/id/local-authority/43UM,WOKING BOROUGH COUNCIL,04/04/2019,04/04/2019,GPC/00006780,WWW.BANNERUK.COM,PROCUREMENT CARD,6.97,ASSET MANAGEMENT - CIVIC OFFICES,STATIONERY,G620,CIVIC OFFICE STATIONERY,SANDRA ARCHER,STATIONERY/OFFICE SUPPLIES
http://statistics.data.gov.uk/id/local-authority/43UM,WOKING BOROUGH COUNCIL,04/04/2019,04/04/2019,GPC/00006780,WWW.BANNERUK.COM,PROCUREMENT CARD,9.50,ASSET MANAGEMENT - CIVIC OFFICES,STATIONERY,G620,CIVIC OFFICE STATIONERY,SANDRA ARCHER,STATIONERY/OFFICE SUPPLIES
http://statistics.data.gov.uk/id/local-authority/43UM,WOKING BOROUGH COUNCIL,04/04/2019,04/04/2019,GPC/00006780,WWW.BANNERUK.COM,PROCUREMENT CARD,9.50,ASSET MANAGEMENT - CIVIC OFFICES,STATIONERY,G620,CIVIC OFFICE STATIONERY,SANDRA ARCHER,STATIONERY/OFFICE SUPPLIES
http://statistics.data.gov.uk/id/local-authority/43UM,WOKING BOROUGH COUNCIL,04/04/2019,04/04/2019,GPC/00006780,WWW.BANNERUK.COM,PROCUREMENT CARD,9.50,ASSET MANAGEMENT - CIVIC OFFICES,STATIONERY,G620,CIVIC OFFICE STATIONERY,SANDRA ARCHER,STATIONERY/OFFICE SUPPLIES
http://statistics.data.gov.uk/id/local-authority/43UM,WOKING BOROUGH COUNCIL,04/04/2019,04/04/2019,GPC/00006780,WWW.BANNERUK.COM,PROCUREMENT CARD,24.12,ASSET MANAGEMENT - CIVIC OFFICES,STATIONERY,G620,CIVIC OFFICE STATIONERY,SANDRA ARCHER,STATIONERY/OFFICE SUPPLIES
http://statistics.data.gov.uk/id/local-authority/43UM,WOKING BOROUGH COUNCIL,04/04/2019,04/04/2019,GPC/00006780,WWW.BANNERUK.COM,PROCUREMENT CARD,24.24,ASSET MANAGEMENT - CIVIC OFFICES,STATIONERY,G620,CIVIC OFFICE STATIONERY,SANDRA ARCHER,STATIONERY/OFFICE SUPPLIES
http://statistics.data.gov.uk/id/local-authority/43UM,WOKING BOROUGH COUNCIL,04/04/2019,04/04/2019,GPC/00006794,WWW.IRONMONGERYDIRECT.,PROCUREMENT CARD,259.50,HOUSING SERVICES - HOME IMPS & BEN AGENCY,HANDYPERSON MATERIALS,G201,HANDYPERSON MATERIALS,MYCROFT HUNTER,GLASS/PAINT/WALLPAPER STORE
http://statistics.data.gov.uk/id/local-authority/43UM,WOKING BOROUGH COUNCIL,04/04/2019,04/04/2019,GPC/00006791,SCREWFIX WOKING,PROCUREMENT CARD,144.11,HOUSING SERVICES - HOME IMPS & BEN AGENCY,HANDYPERSON MATERIALS,G201,HANDYPERSON MATERIALS,IAN DEANE,LUMBER/BUILD SUPPLY STORES
http://statistics.data.gov.uk/id/local-authority/43UM,WOKING BOROUGH COUNCIL,04/04/2019,04/04/2019,GPC/00006786,WICKES WOKING,PROCUREMENT CARD,26.74,HOUSING SERVICES - HOME IMPS & BEN AGENCY,HANDYPERSON MATERIALS,G201,HANDYPERSON MATERIALS,GARY COCKBURN,HOME SUPPLY WAREHOUSE STORES
http://statistics.data.gov.uk/id/local-authority/43UM,WOKING BOROUGH COUNCIL,04/04/2019,04/04/2019,GPC/00006795,FACEBK 26DF5LWLD2,PROCUREMENT CARD,60.00,CORPORATE STRATEGY - ELECTION ID PILOT,ADVERTISING,H400,FACEBOOK AD VOTER ID,DEBBIE HICKMAN,ADVERTISING SERVICES
http://statistics.data.gov.uk/id/local-authority/43UM,WOKING BOROUGH COUNCIL,04/04/2019,04/04/2019,GPC/00006796,PAYPAL,PROCUREMENT CARD,37.50,INDEPENDENT LIVING SERVICES - COMMUNITY ALARMS-GF,EQUIPMENT - BATTERIES,G181,GET UP & GO GUIDE,PAULINE LOCK,CIVIC/SOCIAL/FRATERNAL ASSC
http://statistics.data.gov.uk/id/local-authority/43UM,WOKING BOROUGH COUNCIL,04/04/2019,04/04/2019,GPC/00006790,WOKING COUNCIL PARKING,PROCUREMENT CARD,3.50,REVENUES AND BENEFITS - RESOURCES GENERAL EXPENSES,TRAVEL EXPENSES-OFFICERS,F600,PARKING- MEETING,KAREN CAMPION,AUTO PARKING LOTS/GARAGES
http://statistics.data.gov.uk/id/local-authority/43UM,WOKING BOROUGH COUNCIL,04/04/2019,04/04/2019,GPC/00006782,AIRHOP BRISTOL LTD,PROCUREMENT CARD,23.33,INDEPENDENT LIVING SERVICES - FAMILY SUPPORT PROGRAMME,FAMILY ENABLING (FSP PROJECT),H137,FAMILY VISIT,SARAH WRIGHT,AMUSEMENT/REC SERV - DEF
http://statistics.data.gov.uk/id/local-authority/43UM,WOKING BOROUGH COUNCIL,04/04/2019,04/04/2019,GPC/00006787,SELFSERVE TICKET,PROCUREMENT CARD,7.30,CORPORATE STRATEGY - TOWN CENTRE FORUM,TRAVEL EXPENSES-OFFICERS,F600,TRAIN TICKET,MR C C NORRINGTON,PASSENGER RAILWAYS
http://statistics.data.gov.uk/id/local-authority/43UM,WOKING BOROUGH COUNCIL,04/04/2019,04/04/2019,GPC/00006783,FREEDOM LEISURE,PROCUREMENT CARD,5.45,INDEPENDENT LIVING SERVICES - FAMILY SUPPORT PROGRAMME,FAMILY ENABLING (FSP PROJECT),H137,FAMILY VISIT,SARAH WRIGHT,GOV'T SERV - DEFAULT
http://statistics.data.gov.uk/id/local-authority/43UM,WOKING BOROUGH COUNCIL,04/04/2019,04/04/2019,GPC/00006784,WILKO WOKING,PROCUREMENT CARD,5.00,INDEPENDENT LIVING SERVICES - FAMILY SUPPORT PROGRAMME,FAMILY ENABLING (FSP PROJECT),H137,SENSORY BOX,SARAH WRIGHT,HOUSEHOLD APPLIANCE STORES
http://statistics.data.gov.uk/id/local-authority/43UM,WOKING BOROUGH COUNCIL,05/04/2019,05/04/2019,GPC/00006798,RYMAN,PROCUREMENT CARD,6.65,NEIGHBOURHOOD SERVICES - ARTS DEVELOPMENT,EQUIPMENT REPAIR & MAINTENANCE,G120,MAGNETS TO HOLD POSTERS ON BOROUGH BOARDS,ROSE E L BLACKLEY,STATIONERY STORES
http://statistics.data.gov.uk/id/local-authority/43UM,WOKING BOROUGH COUNCIL,05/04/2019,05/04/2019,GPC/00006777,FOREIGN EXCHANGE FEE,PROCUREMENT CARD,0.52,INFORMATION TECHNOLOGY - I.T.S. ICT,PC & SERVER SYSTEMS SOFTWARE,G193,WEBSITE SITE PLANNING TOOL,ANDREW GRESHAM,MERCHANT CATEGORY UNKNOWN
http://statistics.data.gov.uk/id/local-authority/43UM,WOKING BOROUGH COUNCIL,29/03/2019,05/04/2019,0000436896/001,RSP RAIL TRAVEL ACCOUNT,01121300,349.45,HOUSING SERVICES - HOUSING OPTIONS,TRAVEL EXPENSES-RESIDENTS,F630,TRAVEL EXPENSES-RESIDENTS,HOUSING SERVICES,PUBLIC TRANSPORT
http://statistics.data.gov.uk/id/local-authority/43UM,WOKING BOROUGH COUNCIL,05/04/2019,05/04/2019,GPC/00006800,WILKO WOKING,PROCUREMENT CARD,11.25,HOUSING SERVICES - HOUSING OPTIONS,EQUIPMENT,G100,STORAGE BOXFOR CLIENT,JANICE GOONERY,HOUSEHOLD APPLIANCE STORES
http://statistics.data.gov.uk/id/local-authority/43UM,WOKING BOROUGH COUNCIL,05/04/2019,05/04/2019,GPC/00006797,FREEDOM LEISURE,PROCUREMENT CARD,5.01,ASSET MANAGEMENT - CIVIC OFFICES,VENDING SERVICES,G420,REFESHMENTS FOR TEAM,DAVID RASBURN,GOV'T SERV - DEFAULT
http://statistics.data.gov.uk/id/local-authority/43UM,WOKING BOROUGH COUNCIL,04/04/2019,05/04/2019,0030001499/001,PUBLIC WORKS LOAN BOARD,00021400,118750.00,FINANCIAL SERVICES - INTEREST PAYABLE & SIMILAR CHG,PWLB MATURITY LOAN,U112,PWLB MATURITY LOAN,FINANCIAL SERVICES,FINANCIAL SERVICES
http://statistics.data.gov.uk/id/local-authority/43UM,WOKING BOROUGH COUNCIL,04/04/2019,05/04/2019,0030001500/001,PUBLIC WORKS LOAN BOARD,00021400,118750.00,FINANCIAL SERVICES - INTEREST PAYABLE & SIMILAR CHG,PWLB MATURITY LOAN,U112,PWLB MATURITY LOAN,FINANCIAL SERVICES,FINANCIAL SERVICES
http://statistics.data.gov.uk/id/local-authority/43UM,WOKING BOROUGH COUNCIL,04/04/2019,05/04/2019,0030001501/001,PUBLIC WORKS LOAN BOARD,00021400,106500.00,FINANCIAL SERVICES - INTEREST PAYABLE & SIMILAR CHG,PWLB MATURITY LOAN,U112,PWLB MATURITY LOAN,FINANCIAL SERVICES,FINANCIAL SERVICES
http://statistics.data.gov.uk/id/local-authority/43UM,WOKING BOROUGH COUNCIL,05/04/2019,05/04/2019,GPC/00006801,WWW.PARTYPACKS.CO.UK,PROCUREMENT CARD,180.00,CORPORATE STRATEGY - REMEMBRANCE SUNDAY,PROMOTIONS & GRANTS,H467,UNION JACK FLAGS,SAMANTHA PREVETT,MISC GEN MERCHANDISE - DEF
http://statistics.data.gov.uk/id/local-authority/43UM,WOKING BOROUGH COUNCIL,28/03/2019,05/04/2019,0030001494/001,DAVITT JONES BOULD,40370200,457445.00,FINANCIAL SERVICES - LOAN ADV THL SW PROPERTY PURCH,LONG TERM LOAN,S864,LONG TERM LOAN,FINANCIAL SERVICES,LEGAL SERVICES
http://statistics.data.gov.uk/id/local-authority/43UM,WOKING BOROUGH COUNCIL,28/03/2019,05/04/2019,0030001495/001,DAVITT JONES BOULD,40370200,19975.00,FINANCIAL SERVICES - LOAN ADV THL SW PROPERTY PURCH,LONG TERM LOAN,S864,LONG TERM LOAN,FINANCIAL SERVICES,LEGAL SERVICES
http://statistics.data.gov.uk/id/local-authority/43UM,WOKING BOROUGH COUNCIL,28/03/2019,05/04/2019,0030001496/001,DAVITT JONES BOULD,40370200,419555.00,FINANCIAL SERVICES - LOAN ADV THL SW PROPERTY PURCH,LONG TERM LOAN,S864,LONG TERM LOAN,FINANCIAL SERVICES,LEGAL SERVICES
http://statistics.data.gov.uk/id/local-authority/43UM,WOKING BOROUGH COUNCIL,28/03/2019,05/04/2019,0030001498/001,DAVITT JONES BOULD,40370200,18425.00,FINANCIAL SERVICES - LOAN ADV THL SW PROPERTY PURCH,LONG TERM LOAN,S864,LONG TERM LOAN,FINANCIAL SERVICES,LEGAL SERVICES
http://statistics.data.gov.uk/id/local-authority/43UM,WOKING BOROUGH COUNCIL,28/03/2019,05/04/2019,0030001496/002,DAVITT JONES BOULD,40370200,112000.00,FINANCIAL SERVICES - THL SWTR ASSISTED PURCHASES,LONG TERM LOAN,S864,LONG TERM LOAN,FINANCIAL SERVICES,LEGAL SERVICES
http://statistics.data.gov.uk/id/local-authority/43UM,WOKING BOROUGH COUNCIL,05/04/2019,05/04/2019,0030001504/001,DANSKE BANK,01657400,118424.66,FINANCIAL SERVICES - INTEREST PAYABLE & SIMILAR CHG,L.O.B.O. LOAN,U113,L.O.B.O. LOAN,FINANCIAL SERVICES,FINANCIAL SERVICES
http://statistics.data.gov.uk/id/local-authority/43UM,WOKING BOROUGH COUNCIL,05/04/2019,05/04/2019,0030001505/001,PUBLIC WORKS LOAN BOARD,00021400,14559.56,FINANCIAL SERVICES - INTEREST PAYABLE & SIMILAR CHG,PWLB ANNUITY,U111,PWLB ANNUITY,FINANCIAL SERVICES,FINANCIAL SERVICES
http://statistics.data.gov.uk/id/local-authority/43UM,WOKING BOROUGH COUNCIL,28/03/2019,05/04/2019,0030001497/001,DAVITT JONES BOULD,40370200,4000.00,ASSET MANAGEMENT - 1 CONNAUGHT ROAD OPP PURCHASE,STAMP DUTIES,Q150,STAMP DUTIES,ASSET MANAGEMENT,LEGAL SERVICES
http://statistics.data.gov.uk/id/local-authority/43UM,WOKING BOROUGH COUNCIL,04/04/2019,05/04/2019,0030001503/001,HMRC SHIPLEY,01533400,22655.00,ASSET MANAGEMENT - 20A 21 AND 21A HIGH ST WOKING,STAMP DUTIES,Q150,STAMP DUTIES,ASSET MANAGEMENT,LEGAL SERVICES
http://statistics.data.gov.uk/id/local-authority/43UM,WOKING BOROUGH COUNCIL,05/04/2019,05/04/2019,GPC/00006802,AMZNMKTPLACE,PROCUREMENT CARD,7.49,INDEPENDENT LIVING SERVICES - MOORCROFT,STATIONERY,G620,STATIONERY,RICHARD BUCKENHAM,MISC SPECIALITY RETAIL
http://statistics.data.gov.uk/id/local-authority/43UM,WOKING BOROUGH COUNCIL,20/03/2019,05/04/2019,0000436540/001,ALLSTAR BUSINESS SOLUTIONS LTD,01500600,123.98,INDEPENDENT LIVING SERVICES - MEALS ON WHEELS,PETROL,F200,PETROL,INDEPENDENT LIVING SERVICES,UTILITIES
http://statistics.data.gov.uk/id/local-authority/43UM,WOKING BOROUGH COUNCIL,06/04/2019,06/04/2019,GPC/00006804,FACEBK WY5CSKJLD2,PROCUREMENT CARD,60.00,CORPORATE STRATEGY - ELECTION ID PILOT,ADVERTISING,H400,FACEBOOK VOTER ID AD,DEBBIE HICKMAN,ADVERTISING SERVICES
http://statistics.data.gov.uk/id/local-authority/43UM,WOKING BOROUGH COUNCIL,06/04/2019,06/04/2019,GPC/00006799,ASDA STORES 4823,PROCUREMENT CARD,5.10,H G WELLS - H G WELLS - CATERING,PROVISIONS-FOOD,G440,LEMON AND LIMES,ELEANOR REBECCA WEBB,GROCERY STORES
http://statistics.data.gov.uk/id/local-authority/43UM,WOKING BOROUGH COUNCIL,07/04/2019,07/04/2019,GPC/00006806,HOO*HOOTSUITE INC,PROCUREMENT CARD,94.03,CORPORATE STRATEGY - PUBLIC RELATIONS,GENERAL PUBLIC RELATIONS EXPNS,H915,SOCIAL MEDIA SCHEDULING SOFTWARE,MISS K MAIR,BUSINESS SERVICES - DEFAULT
http://statistics.data.gov.uk/id/local-authority/43UM,WOKING BOROUGH COUNCIL,07/04/2019,07/04/2019,GPC/00006805,W M MORRISON STORE,PROCUREMENT CARD,9.40,INDEPENDENT LIVING SERVICES - MEALS SERVICE - BROCKHILL,PROVISIONS,G410,EASTER BITS BROCKHILL,REBECCA STEVENS,GROCERY STORES
http://statistics.data.gov.uk/id/local-authority/43UM,WOKING BOROUGH COUNCIL,07/04/2019,07/04/2019,GPC/00006803,FACEBK K938TKALD2,PROCUREMENT CARD,60.00,CORPORATE STRATEGY - ELECTION ID PILOT,ADVERTISING,H400,FACEBOOK VOTER ID AD,DEBBIE HICKMAN,ADVERTISING SERVICES
http://statistics.data.gov.uk/id/local-authority/43UM,WOKING BOROUGH COUNCIL,08/04/2019,08/04/2019,GPC/00006809,WWW.SOUTHWESTTRAINS.CO,PROCUREMENT CARD,22.30,REVENUES AND BENEFITS - RESOURCES GENERAL EXPENSES,TRAVEL EXPENSES-OFFICERS,F600,RAIL FARE - MODULE 2 OF CONTRACT MANAGEMENT COURSE,HAZEL CRAIG-WALLER,PASSENGER RAILWAYS
http://statistics.data.gov.uk/id/local-authority/43UM,WOKING BOROUGH COUNCIL,08/04/2019,08/04/2019,GPC/00006815,WAVERLEY BOROUGH COUNC,PROCUREMENT CARD,2.39,NEIGHBOURHOOD SERVICES - REGULATION AND ENFORCEMENT,TRAVEL EXPENSES-OFFICERS,F600,CAR PARKING - WBC CARD USED IN ERROR,JANINE KNIGHTON,GOV'T SERV - DEFAULT
http://statistics.data.gov.uk/id/local-authority/43UM,WOKING BOROUGH COUNCIL,08/04/2019,08/04/2019,GPC/00006813,CONS EXC SURREY,PROCUREMENT CARD,-150.00,ASSET MANAGEMENT - VALUATION SERVICES,PROFESSIONAL FEES,A750,REFUND FOR PAYMENT TAKEN TWICE,IAN M TOMES,MEMBER ORGANISATIONS - DEF
http://statistics.data.gov.uk/id/local-authority/43UM,WOKING BOROUGH COUNCIL,08/04/2019,08/04/2019,GPC/00006825,PRIMARK,PROCUREMENT CARD,15.50,HOUSING SERVICES - SYRIAN REFUGEE FAMILES,PURCHASE OF FURNITURE,Q500,FURNISHING FOR NEW FAMILY HOME,EMAD HANAFY,FAMILY CLOTHING STORES
http://statistics.data.gov.uk/id/local-authority/43UM,WOKING BOROUGH COUNCIL,08/04/2019,08/04/2019,GPC/00006810,WILKO WOKING,PROCUREMENT CARD,5.42,HOUSING SERVICES - SYRIAN REFUGEE FAMILES,PURCHASE OF FURNITURE,Q500,FURNISHING NEW FAMILY HOME,EMAD HANAFY,HOUSEHOLD APPLIANCE STORES
http://statistics.data.gov.uk/id/local-authority/43UM,WOKING BOROUGH COUNCIL,08/04/2019,08/04/2019,GPC/00006816,FACEBK MWKBLKAMD2,PROCUREMENT CARD,60.00,CORPORATE STRATEGY - ELECTION ID PILOT,ADVERTISING,H400,FACEBOOK ADVERT VOTER ID,DEBBIE HICKMAN,ADVERTISING SERVICES
http://statistics.data.gov.uk/id/local-authority/43UM,WOKING BOROUGH COUNCIL,08/04/2019,08/04/2019,GPC/00006811,SURREY HEATH BOROUGH C,PROCUREMENT CARD,1.50,NEIGHBOURHOOD SERVICES - REGULATION AND ENFORCEMENT,TRAVEL EXPENSES-OFFICERS,F600,SURREY HEATH PARKING,G D MCMANUS,GOV'T SERV - DEFAULT
http://statistics.data.gov.uk/id/local-authority/43UM,WOKING BOROUGH COUNCIL,08/04/2019,08/04/2019,GPC/00006807,FOREIGN EXCHANGE FEE,PROCUREMENT CARD,2.74,CORPORATE STRATEGY - PUBLIC RELATIONS,GENERAL PUBLIC RELATIONS EXPNS,H915,FOREIGN EXCHANGE FEE,MISS K MAIR,MERCHANT CATEGORY UNKNOWN
http://statistics.data.gov.uk/id/local-authority/43UM,WOKING BOROUGH COUNCIL,08/04/2019,08/04/2019,GPC/00006814,PLASTIC-ID,PROCUREMENT CARD,59.50,ASSET MANAGEMENT - CIVIC OFFICES,NEW EQUIPMENT,G105,PLASTIC ID HOLDERS,MRS F M WALTHER,STATIONERY/OFFICE SUPPLIES
http://statistics.data.gov.uk/id/local-authority/43UM,WOKING BOROUGH COUNCIL,08/04/2019,08/04/2019,GPC/00006808,CAR PARKS SPH,PROCUREMENT CARD,3.50,HOUSING SERVICES - SYRIAN REFUGEE FAMILES,TRAVEL & SUBSISTANCE,Q657,HOSPITAL PARKING,RASHA FARES,GOV'T SERV - DEFAULT
http://statistics.data.gov.uk/id/local-authority/43UM,WOKING BOROUGH COUNCIL,08/04/2019,08/04/2019,GPC/00006812,AMAZON.CO.UK,PROCUREMENT CARD,238.92,CORPORATE STRATEGY - BOROUGH ELECTIONS,EQUIPMENT,G100,PV LABELS,CHARLOTTE GRIFFITHS,OTHER DIRECT MARKETERS
http://statistics.data.gov.uk/id/local-authority/43UM,WOKING BOROUGH COUNCIL,09/04/2019,09/04/2019,GPC/00006817,SHELTER,PROCUREMENT CARD,108.00,CORPORATE MANAGEMENT GROUP - STAFF TRAINING/GENERAL COSTS,TRAINING - CORPORATE,A910,SHELTER TRAINING FOR KUNLE - TENANTS' FEES,CATHERINE BUTLER,CHARITABLE/SOC SERVICE ORGS
http://statistics.data.gov.uk/id/local-authority/43UM,WOKING BOROUGH COUNCIL,09/04/2019,09/04/2019,GPC/00006827,EPSOM AND EWELL PARKIN,PROCUREMENT CARD,1.50,HOUSING SERVICES - HOME IMPS & BEN AGENCY,TRAVEL EXPENSES-OFFICERS,F600,CAR PARK RECEIPT FOR MEETING IN EPSOM,HELEN KEMPSELL,AUTO PARKING LOTS/GARAGES
http://statistics.data.gov.uk/id/local-authority/43UM,WOKING BOROUGH COUNCIL,09/04/2019,09/04/2019,GPC/00006829,EB *VITAL FACEBOOK SKI,PROCUREMENT CARD,247.36,CORPORATE MANAGEMENT GROUP - STAFF TRAINING/GENERAL COSTS,TRAINING - CORPORATE,A910,FACEBOOK TRAINING SESSION - KATY KAY,MISS K MAIR,BUSINESS SERVICES - DEFAULT
http://statistics.data.gov.uk/id/local-authority/43UM,WOKING BOROUGH COUNCIL,09/04/2019,09/04/2019,GPC/00006836,HIRE SRVS SOUTHERN LTD,PROCUREMENT CARD,135.38,CORPORATE STRATEGY - LEISURE MANAGEMENT CONTRACT,R&M BUILDINGS - CONTRACTORS,D100,BLADES ETC FOR COOLING STRIP OUT,MR C NORTON,EQUIP/FURN RENT/LEASE SERV
http://statistics.data.gov.uk/id/local-authority/43UM,WOKING BOROUGH COUNCIL,09/04/2019,09/04/2019,GPC/00006828,EB *VITAL FACEBOOK SKI,PROCUREMENT CARD,247.36,CORPORATE MANAGEMENT GROUP - STAFF TRAINING/GENERAL COSTS,TRAINING - CORPORATE,A910,FACEBOOK TRAINING - KATE MAIR,MISS K MAIR,BUSINESS SERVICES - DEFAULT
http://statistics.data.gov.uk/id/local-authority/43UM,WOKING BOROUGH COUNCIL,09/04/2019,09/04/2019,GPC/00006818,AMAZON.CO.UK,PROCUREMENT CARD,25.08,ASSET MANAGEMENT - FACILITIES MANAGEMENT,FACILITIES MANAGEMENT REPAIRS,D908,DESK CHARGER COUNCIL CHAMBER,MR D JONES,OTHER DIRECT MARKETERS
http://statistics.data.gov.uk/id/local-authority/43UM,WOKING BOROUGH COUNCIL,09/04/2019,09/04/2019,GPC/00006820,BRITISH HEART FOUNDATI,PROCUREMENT CARD,265.00,HOUSING SERVICES - SYRIAN REFUGEE FAMILES,PURCHASE OF FURNITURE,Q500,FURNISHING NEW FAMILY HOME,RASHA FARES,CHARITABLE/SOC SERVICE ORGS
http://statistics.data.gov.uk/id/local-authority/43UM,WOKING BOROUGH COUNCIL,09/04/2019,09/04/2019,GPC/00006820,BRITISH HEART FOUNDATI,PROCUREMENT CARD,1930.00,HOUSING SERVICES - SYRIAN REFUGEE FAMILES,PURCHASE OF FURNITURE,Q500,FURNISHING NEW FAMILY HOME,RASHA FARES,CHARITABLE/SOC SERVICE ORGS
http://statistics.data.gov.uk/id/local-authority/43UM,WOKING BOROUGH COUNCIL,09/04/2019,09/04/2019,GPC/00006824,BRITISH HEART FOUNDATI,PROCUREMENT CARD,37.50,HOUSING SERVICES - SYRIAN REFUGEE FAMILES,PURCHASE OF FURNITURE,Q500,FURNISHING NEW FAMILY HOME,EMAD HANAFY,CHARITABLE/SOC SERVICE ORGS
http://statistics.data.gov.uk/id/local-authority/43UM,WOKING BOROUGH COUNCIL,09/04/2019,09/04/2019,GPC/00006819,EB *THE LOOKING GLASS,PROCUREMENT CARD,33.16,CORPORATE MANAGEMENT GROUP - STAFF TRAINING/GENERAL COSTS,TRAINING - CORPORATE,A910,2 X EQUALITY EVENT TICKETS,LISA HARRINGTON,BUSINESS SERVICES - DEFAULT
http://statistics.data.gov.uk/id/local-authority/43UM,WOKING BOROUGH COUNCIL,09/04/2019,09/04/2019,GPC/00006826,FACEBK WCCNAKNLD2,PROCUREMENT CARD,53.16,CORPORATE STRATEGY - ELECTION ID PILOT,ADVERTISING,H400,FOB AND VOID FACEBOOK AD,DEBBIE HICKMAN,ADVERTISING SERVICES
http://statistics.data.gov.uk/id/local-authority/43UM,WOKING BOROUGH COUNCIL,09/04/2019,09/04/2019,GPC/00006826,FACEBK WCCNAKNLD2,PROCUREMENT CARD,6.84,CORPORATE STRATEGY - PUBLIC RELATIONS,PROMOTIONS & GRANTS,H467,FOB AND VOID FACEBOOK AD,DEBBIE HICKMAN,ADVERTISING SERVICES
http://statistics.data.gov.uk/id/local-authority/43UM,WOKING BOROUGH COUNCIL,09/04/2019,09/04/2019,GPC/00006821,THAMESWEY HOUSING LTD,PROCUREMENT CARD,2301.50,HOUSING SERVICES - SYRIAN REFUGEE FAMILES,RENT PAYMENTS,Q589,RENT PAYMENT FOR FAMILY,PHILIP OGLESBY,PROFESSIONAL SERVICES - DEF
http://statistics.data.gov.uk/id/local-authority/43UM,WOKING BOROUGH COUNCIL,09/04/2019,09/04/2019,GPC/00006830,TICKETOFFICESALE,PROCUREMENT CARD,5.10,NEIGHBOURHOOD SERVICES - COMMUNITY DEVELOPMENT,TRAVEL EXPENSES-OFFICERS,F600,CONFERENCE -GUILDFORD,ZAFAR IQBAL,PASSENGER RAILWAYS
http://statistics.data.gov.uk/id/local-authority/43UM,WOKING BOROUGH COUNCIL,09/04/2019,09/04/2019,GPC/00006834,SCREWFIX WOKING,PROCUREMENT CARD,41.20,HOUSING SERVICES - HOME IMPS & BEN AGENCY,HANDYPERSON MATERIALS,G201,HANDYPERSON MATERIALS,IAN DEANE,LUMBER/BUILD SUPPLY STORES
http://statistics.data.gov.uk/id/local-authority/43UM,WOKING BOROUGH COUNCIL,09/04/2019,09/04/2019,GPC/00006835,COSTA COFFEE 43037185,PROCUREMENT CARD,4.08,INDEPENDENT LIVING SERVICES - FAMILY SUPPORT PROGRAMME,FAMILY ENABLING (FSP PROJECT),H137,COFFEE WITH FAMILY,JULIE COONEY,FAST FOOD RESTAURANTS
http://statistics.data.gov.uk/id/local-authority/43UM,WOKING BOROUGH COUNCIL,09/04/2019,09/04/2019,GPC/00006831,LAND REGISTRY,PROCUREMENT CARD,6.00,CORPORATE STRATEGY - LEGAL,LAND REGISTRY FEE,H425,LEASE COMMENCEMENT,JACQUI DIXON,GOV'T SERV - DEFAULT
http://statistics.data.gov.uk/id/local-authority/43UM,WOKING BOROUGH COUNCIL,09/04/2019,09/04/2019,GPC/00006847,WWW.AMEY.CO.UK,PROCUREMENT CARD,22.50,HOUSING SERVICES - SYRIAN REFUGEE FAMILES,PURCHASE OF FURNITURE,Q500,GARDEN WASTE BIN,REHAB ABBAS,LUMBER/BUILD SUPPLY STORES
http://statistics.data.gov.uk/id/local-authority/43UM,WOKING BOROUGH COUNCIL,09/04/2019,09/04/2019,GPC/00006823,WILKO WOKING,PROCUREMENT CARD,29.50,INDEPENDENT LIVING SERVICES - FAMILY SUPPORT PROGRAMME,FAMILY ENABLING (FSP PROJECT),H137,TOILETRY BOX,SARAH WRIGHT,HOUSEHOLD APPLIANCE STORES
http://statistics.data.gov.uk/id/local-authority/43UM,WOKING BOROUGH COUNCIL,09/04/2019,09/04/2019,GPC/00006822,AIRHOP LTD,PROCUREMENT CARD,4.50,INDEPENDENT LIVING SERVICES - FAMILY SUPPORT PROGRAMME,FAMILY ENABLING (FSP PROJECT),H137,FAMILY VISIT,SARAH WRIGHT,AMUSEMENT/REC SERV - DEF
http://statistics.data.gov.uk/id/local-authority/43UM,WOKING BOROUGH COUNCIL,09/04/2019,09/04/2019,GPC/00006832,LAND REGISTRY,PROCUREMENT CARD,6.00,CORPORATE STRATEGY - LEGAL,LAND REGISTRY FEE,H425,LEASE,JACQUI DIXON,GOV'T SERV - DEFAULT
http://statistics.data.gov.uk/id/local-authority/43UM,WOKING BOROUGH COUNCIL,09/04/2019,09/04/2019,GPC/00006833,LAND REGISTRY,PROCUREMENT CARD,6.00,CORPORATE STRATEGY - LEGAL,LAND REGISTRY FEE,H425,LEASE,JACQUI DIXON,GOV'T SERV - DEFAULT
http://statistics.data.gov.uk/id/local-authority/43UM,WOKING BOROUGH COUNCIL,10/04/2019,10/04/2019,GPC/00006839,WOKING 2,PROCUREMENT CARD,100.00,HOUSING SERVICES - SYRIAN REFUGEE FAMILES,CONTRIBUTION,Q623,CONTRIBUTION TO FAMILY RETURN TAXI TO HOSPITAL,RASHA FARES,FINANCIAL INST/AUTO CASH
http://statistics.data.gov.uk/id/local-authority/43UM,WOKING BOROUGH COUNCIL,10/04/2019,10/04/2019,GPC/00006839,WOKING 2,PROCUREMENT CARD,20.00,HOUSING SERVICES - SYRIAN REFUGEE FAMILES,TRAVEL & SUBSISTANCE,Q657,CONTRIBUTION TO FAMILY RETURN TAXI TO HOSPITAL,RASHA FARES,FINANCIAL INST/AUTO CASH
http://statistics.data.gov.uk/id/local-authority/43UM,WOKING BOROUGH COUNCIL,10/04/2019,10/04/2019,GPC/00006837,RINGGO,PROCUREMENT CARD,3.66,HOUSING SERVICES - HOMELINK,TRAVEL EXPENSES-OFFICERS,F600,PARKING COST ST. PETERS HOSPITAL FOR HOMESAFE,GARY CORDERY,AUTO PARKING LOTS/GARAGES
http://statistics.data.gov.uk/id/local-authority/43UM,WOKING BOROUGH COUNCIL,10/04/2019,10/04/2019,GPC/00006853,VERIFONE TAXI/PRIVATE,PROCUREMENT CARD,11.67,REVENUES AND BENEFITS - RESOURCES GENERAL EXPENSES,TRAVEL EXPENSES-OFFICERS,F600,TAXI JOURNEY FOR CONTRACT MANAGEMENT COURSE,HAZEL CRAIG-WALLER,TAXICABS/LIMOUSINES
http://statistics.data.gov.uk/id/local-authority/43UM,WOKING BOROUGH COUNCIL,10/04/2019,10/04/2019,GPC/00006844,PP*JOANNECOTTL,PROCUREMENT CARD,16.67,REVENUES AND BENEFITS - RESOURCES GENERAL EXPENSES,TRAVEL EXPENSES-OFFICERS,F600,TAXI JOURNEY FOR CONTRACT MANAGEMENT COURSE,HAZEL CRAIG-WALLER,TAXICABS/LIMOUSINES
http://statistics.data.gov.uk/id/local-authority/43UM,WOKING BOROUGH COUNCIL,10/04/2019,10/04/2019,GPC/00006838,ST JOHN AMBULANCE,PROCUREMENT CARD,270.00,CORPORATE MANAGEMENT GROUP - STAFF TRAINING/GENERAL COSTS,TRAINING - CORPORATE,A910,2 X EMERGENCY FIRST AID AT WORK COURSES,LISA HARRINGTON,CHARITABLE/SOC SERVICE ORGS
http://statistics.data.gov.uk/id/local-authority/43UM,WOKING BOROUGH COUNCIL,10/04/2019,10/04/2019,GPC/00006849,TRAINLINE,PROCUREMENT CARD,44.85,ASSET MANAGEMENT - VALUATION SERVICES,TRAVEL EXPENSES-OFFICERS,F600,LONDON CPD TRAIN TICKETS (GODALMING),H C PEARSON,PASSENGER RAILWAYS
http://statistics.data.gov.uk/id/local-authority/43UM,WOKING BOROUGH COUNCIL,10/04/2019,10/04/2019,GPC/00006845,DORTECH DIRECT,PROCUREMENT CARD,46.82,ASSET MANAGEMENT - FACILITIES MANAGEMENT,FACILITIES MANAGEMENT REPAIRS,D908,MATERIALS FOR ROOF REPAIR HGWELLS,MR R D SMITH,CONSTRUCTION MATERIALS - DEF
http://statistics.data.gov.uk/id/local-authority/43UM,WOKING BOROUGH COUNCIL,10/04/2019,10/04/2019,GPC/00006841,WILKO WOKING,PROCUREMENT CARD,4.58,HOUSING SERVICES - HOUSING OPTIONS,EQUIPMENT,G100,EMERGENCY CURTAIN RAIL FOR TENANT,JANICE GOONERY,HOUSEHOLD APPLIANCE STORES
http://statistics.data.gov.uk/id/local-authority/43UM,WOKING BOROUGH COUNCIL,10/04/2019,10/04/2019,GPC/00006840,SELFSERVE TICKET,PROCUREMENT CARD,5.10,NEIGHBOURHOOD SERVICES - ARTS DEVELOPMENT,PAYMENTS TO PROMOTERS,H640,TRAVEL FOR APS PROJECT TRAINING,ROSE E L BLACKLEY,PASSENGER RAILWAYS
http://statistics.data.gov.uk/id/local-authority/43UM,WOKING BOROUGH COUNCIL,15/03/2019,10/04/2019,0000437079/006,SURREY HEATH BOROUGH COUNCIL,00898100,4475.48,NEIGHBOURHOOD SERVICES - REFUSE COLLECTION,PYMNT TO CONTRACTOR CONTACTCTR,J624,PYMNT TO CONTRACTOR CONTACTCTR,NEIGHBOURHOOD SERVICES,WORKS (CONSTRUCTION REPAIR MAINTENANCE)
http://statistics.data.gov.uk/id/local-authority/43UM,WOKING BOROUGH COUNCIL,15/03/2019,10/04/2019,0000437079/007,SURREY HEATH BOROUGH COUNCIL,00898100,35360.81,NEIGHBOURHOOD SERVICES - REFUSE COLLECTION,PYMNT TO CONTRACTOR MANAGE FEE,J625,PYMNT TO CONTRACTOR MANAGE FEE,NEIGHBOURHOOD SERVICES,WORKS (CONSTRUCTION REPAIR MAINTENANCE)
http://statistics.data.gov.uk/id/local-authority/43UM,WOKING BOROUGH COUNCIL,15/03/2019,10/04/2019,0000437079/002,SURREY HEATH BOROUGH COUNCIL,00898100,70133.07,NEIGHBOURHOOD SERVICES - WHEELED BIN COLLECTION,PYMNT TO CONTRACTOR CORE COLLE,J627,PYMNT TO CONTRACTOR CORE COLLE,NEIGHBOURHOOD SERVICES,WORKS (CONSTRUCTION REPAIR MAINTENANCE)
http://statistics.data.gov.uk/id/local-authority/43UM,WOKING BOROUGH COUNCIL,15/03/2019,10/04/2019,0000437079/003,SURREY HEATH BOROUGH COUNCIL,00898100,771.87,NEIGHBOURHOOD SERVICES - RECYCLING INIT TEXTILES,PYMNT TO CONTRACTOR CORE COLLE,J627,PYMNT TO CONTRACTOR CORE COLLE,NEIGHBOURHOOD SERVICES,WORKS (CONSTRUCTION REPAIR MAINTENANCE)
http://statistics.data.gov.uk/id/local-authority/43UM,WOKING BOROUGH COUNCIL,15/03/2019,10/04/2019,0000437079/005,SURREY HEATH BOROUGH COUNCIL,00898100,45034.06,NEIGHBOURHOOD SERVICES - FOOD WASTE SERVICE,PYMNT TO CONTRACTOR CORE COLLE,J627,PYMNT TO CONTRACTOR CORE COLLE,NEIGHBOURHOOD SERVICES,WORKS (CONSTRUCTION REPAIR MAINTENANCE)
http://statistics.data.gov.uk/id/local-authority/43UM,WOKING BOROUGH COUNCIL,15/03/2019,10/04/2019,0000437079/004,SURREY HEATH BOROUGH COUNCIL,00898100,665.35,NEIGHBOURHOOD SERVICES - RECYCLING INIT WEEE,PYMNT TO CONTRACTOR CORE COLLE,J627,PYMNT TO CONTRACTOR CORE COLLE,NEIGHBOURHOOD SERVICES,WORKS (CONSTRUCTION REPAIR MAINTENANCE)
http://statistics.data.gov.uk/id/local-authority/43UM,WOKING BOROUGH COUNCIL,10/03/2019,10/04/2019,0000436350/001,BRISTOW & SUTOR,40257600,157.27,REVENUES AND BENEFITS - RENT ALLOWANCES,DEBT COLLECTION AGENCY COMMISS,H910,DEBT COLLECTION AGENCY COMMISS,REVENUES AND BENEFITS,FINANCIAL SERVICES
http://statistics.data.gov.uk/id/local-authority/43UM,WOKING BOROUGH COUNCIL,10/03/2019,10/04/2019,0000436271/001,BRISTOW & SUTOR,40257600,1.50,HOUSING SERVICES - HOUSING OPTIONS,DEBT COLLECTION AGENCY COMMISS,H910,DEBT COLLECTION AGENCY COMMISS,HOUSING SERVICES,FINANCIAL SERVICES
http://statistics.data.gov.uk/id/local-authority/43UM,WOKING BOROUGH COUNCIL,10/03/2019,10/04/2019,0000436271/002,BRISTOW & SUTOR,40257600,7.50,HOUSING SERVICES - HOUSING OPTIONS,DEBT COLLECTION AGENCY COMMISS,H910,DEBT COLLECTION AGENCY COMMISS,HOUSING SERVICES,FINANCIAL SERVICES
http://statistics.data.gov.uk/id/local-authority/43UM,WOKING BOROUGH COUNCIL,10/03/2019,10/04/2019,0000436271/003,BRISTOW & SUTOR,40257600,3.81,HOUSING SERVICES - HOUSING OPTIONS,DEBT COLLECTION AGENCY COMMISS,H910,DEBT COLLECTION AGENCY COMMISS,HOUSING SERVICES,FINANCIAL SERVICES
http://statistics.data.gov.uk/id/local-authority/43UM,WOKING BOROUGH COUNCIL,14/03/2019,10/04/2019,0000436221/001,HARPERS GROUP (WOKING) LTD,00017800,3500.00,ASSET MANAGEMENT - CIVIC OFFICES,VIDEO EQUIPMENT - MAINTENANCE,G163,VIDEO EQUIPMENT - MAINTENANCE,ASSET MANAGEMENT,WORKS (CONSTRUCTION REPAIR MAINTENANCE)
http://statistics.data.gov.uk/id/local-authority/43UM,WOKING BOROUGH COUNCIL,17/03/2019,10/04/2019,0000436378/001,LEA'S CLEANING SERVICE LTD,01678300,170.00,ASSET MANAGEMENT - FACILITIES MANAGEMENT,FACILITIES MANAGEMENT REPAIRS,D908,FACILITIES MANAGEMENT REPAIRS,ASSET MANAGEMENT,WORKS (CONSTRUCTION REPAIR MAINTENANCE)
http://statistics.data.gov.uk/id/local-authority/43UM,WOKING BOROUGH COUNCIL,17/03/2019,10/04/2019,0000436379/001,LEA'S CLEANING SERVICE LTD,01678300,140.00,ASSET MANAGEMENT - FACILITIES MANAGEMENT,FACILITIES MANAGEMENT REPAIRS,D908,FACILITIES MANAGEMENT REPAIRS,ASSET MANAGEMENT,WORKS (CONSTRUCTION REPAIR MAINTENANCE)
http://statistics.data.gov.uk/id/local-authority/43UM,WOKING BOROUGH COUNCIL,15/03/2019,10/04/2019,0000436492/002,KENT COUNTY COUNCIL (KCS),00050800,3.07,INFORMATION TECHNOLOGY - I.T.S. REPROGRAPHICS,REPROGRAPHIC EQP-COPY CHARGES,G158,REPROGRAPHIC EQP-COPY CHARGES,INFORMATION TECHNOLOGY,UTILITIES
http://statistics.data.gov.uk/id/local-authority/43UM,WOKING BOROUGH COUNCIL,15/03/2019,10/04/2019,0000436493/002,KENT COUNTY COUNCIL (KCS),00050800,21.72,INFORMATION TECHNOLOGY - I.T.S. REPROGRAPHICS,REPROGRAPHIC EQP-COPY CHARGES,G158,REPROGRAPHIC EQP-COPY CHARGES,INFORMATION TECHNOLOGY,UTILITIES
http://statistics.data.gov.uk/id/local-authority/43UM,WOKING BOROUGH COUNCIL,15/03/2019,10/04/2019,0000436494/002,KENT COUNTY COUNCIL (KCS),00050800,40.28,INFORMATION TECHNOLOGY - I.T.S. REPROGRAPHICS,REPROGRAPHIC EQP-COPY CHARGES,G158,REPROGRAPHIC EQP-COPY CHARGES,INFORMATION TECHNOLOGY,UTILITIES
http://statistics.data.gov.uk/id/local-authority/43UM,WOKING BOROUGH COUNCIL,15/03/2019,10/04/2019,0000436495/002,KENT COUNTY COUNCIL (KCS),00050800,4.72,INFORMATION TECHNOLOGY - I.T.S. REPROGRAPHICS,REPROGRAPHIC EQP-COPY CHARGES,G158,REPROGRAPHIC EQP-COPY CHARGES,INFORMATION TECHNOLOGY,UTILITIES
http://statistics.data.gov.uk/id/local-authority/43UM,WOKING BOROUGH COUNCIL,10/04/2019,10/04/2019,GPC/00006848,TRAINLINE,PROCUREMENT CARD,139.84,ASSET MANAGEMENT - VALUATION SERVICES,TRAVEL EXPENSES-OFFICERS,F600,LONDON CPD TOUR TRAIN TICKETS,H C PEARSON,PASSENGER RAILWAYS
http://statistics.data.gov.uk/id/local-authority/43UM,WOKING BOROUGH COUNCIL,14/03/2019,10/04/2019,0000436415/001,PHOENIX SOFTWARE LIMITED,40241100,275.80,INFORMATION TECHNOLOGY - I.T.S. ICT,PC & SERVER SYSTEMS SOFTWARE,G193,PC & SERVER SYSTEMS SOFTWARE,INFORMATION TECHNOLOGY,INFORMATION COMMUNICATION TECHNOLOGY
http://statistics.data.gov.uk/id/local-authority/43UM,WOKING BOROUGH COUNCIL,22/02/2019,10/04/2019,0000437143/001,MIRIAM DA COSTA MACHADO,40680600,29.28,CORPORATE STRATEGY - WAVS,INTERPRETATION & TRANSLATION,H636,INTERPRETATION & TRANSLATION,CORPORATE STRATEGY,CONSULTANCY
http://statistics.data.gov.uk/id/local-authority/43UM,WOKING BOROUGH COUNCIL,05/03/2019,10/04/2019,0000437150/001,JENNIFER PERRI-DAMIANO,40688000,40.00,CORPORATE STRATEGY - WAVS,INTERPRETATION & TRANSLATION,H636,INTERPRETATION & TRANSLATION,CORPORATE STRATEGY,CONSULTANCY
http://statistics.data.gov.uk/id/local-authority/43UM,WOKING BOROUGH COUNCIL,01/03/2019,10/04/2019,0000437141/001,GEORGE AZARIAH-MORENO,40710300,38.00,CORPORATE STRATEGY - WAVS,INTERPRETATION & TRANSLATION,H636,INTERPRETATION & TRANSLATION,CORPORATE STRATEGY,CONSULTANCY
http://statistics.data.gov.uk/id/local-authority/43UM,WOKING BOROUGH COUNCIL,01/03/2019,10/04/2019,0000437164/001,MARIA DANIELA OANCEA,40710700,38.00,CORPORATE STRATEGY - WAVS,INTERPRETATION & TRANSLATION,H636,INTERPRETATION & TRANSLATION,CORPORATE STRATEGY,HUMAN RESOURCES
http://statistics.data.gov.uk/id/local-authority/43UM,WOKING BOROUGH COUNCIL,01/03/2019,10/04/2019,0000437149/001,GRAZYNA ROZWADOWSKA,40668900,38.00,CORPORATE STRATEGY - WAVS,INTERPRETATION & TRANSLATION,H636,INTERPRETATION & TRANSLATION,CORPORATE STRATEGY,CONSULTANCY
http://statistics.data.gov.uk/id/local-authority/43UM,WOKING BOROUGH COUNCIL,14/03/2019,10/04/2019,0000436445/001,ANDRZEJ ZAKRZEWSKI,40677700,32.80,CORPORATE STRATEGY - WAVS,INTERPRETATION & TRANSLATION,H636,INTERPRETATION & TRANSLATION,CORPORATE STRATEGY,CONSULTANCY
http://statistics.data.gov.uk/id/local-authority/43UM,WOKING BOROUGH COUNCIL,14/03/2019,10/04/2019,0000436438/001,YANGCHHEN YESHI,40674200,669.70,CORPORATE STRATEGY - WAVS,INTERPRETATION & TRANSLATION,H636,INTERPRETATION & TRANSLATION,CORPORATE STRATEGY,CONSULTANCY
http://statistics.data.gov.uk/id/local-authority/43UM,WOKING BOROUGH COUNCIL,01/03/2019,10/04/2019,0000437159/001,MARIA CHAMBERS,40672100,40.00,CORPORATE STRATEGY - WAVS,INTERPRETATION & TRANSLATION,H636,INTERPRETATION & TRANSLATION,CORPORATE STRATEGY,CONSULTANCY
http://statistics.data.gov.uk/id/local-authority/43UM,WOKING BOROUGH COUNCIL,01/03/2019,10/04/2019,0000437161/001,MINAKSHI GHOSH,40714800,38.00,CORPORATE STRATEGY - WAVS,INTERPRETATION & TRANSLATION,H636,INTERPRETATION & TRANSLATION,CORPORATE STRATEGY,HUMAN RESOURCES
http://statistics.data.gov.uk/id/local-authority/43UM,WOKING BOROUGH COUNCIL,01/03/2019,10/04/2019,0000437140/001,KAUSER MASOOD,40686100,38.00,CORPORATE STRATEGY - WAVS,INTERPRETATION & TRANSLATION,H636,INTERPRETATION & TRANSLATION,CORPORATE STRATEGY,CONSULTANCY
http://statistics.data.gov.uk/id/local-authority/43UM,WOKING BOROUGH COUNCIL,02/07/2018,10/04/2019,0000436527/001,RIBA 1834 LTD,40799900,732.00,INFORMATION TECHNOLOGY - I.T.S. ICT,PC & SERVER SYSTEMS SOFTWARE,G193,PC & SERVER SYSTEMS SOFTWARE,INFORMATION TECHNOLOGY,FINANCIAL SERVICES
http://statistics.data.gov.uk/id/local-authority/43UM,WOKING BOROUGH COUNCIL,18/03/2019,10/04/2019,0000436474/001,MARTA SMITH,40662800,98.40,CORPORATE STRATEGY - WAVS,INTERPRETATION & TRANSLATION,H636,INTERPRETATION & TRANSLATION,CORPORATE STRATEGY,CONSULTANCY
http://statistics.data.gov.uk/id/local-authority/43UM,WOKING BOROUGH COUNCIL,13/03/2019,10/04/2019,0000436412/001,ACORN PARTITIONS & STORAGE SYSTEMS LTD,40623400,52725.00,ASSET MANAGEMENT - WOLSEY PLACE,R&M BUILDINGS - CONTRACTORS,D100,R&M BUILDINGS - CONTRACTORS,ASSET MANAGEMENT,WORKS (CONSTRUCTION REPAIR MAINTENANCE)
http://statistics.data.gov.uk/id/local-authority/43UM,WOKING BOROUGH COUNCIL,15/03/2019,10/04/2019,0000436297/001,SWITCHSURE FINANCE LIMITED,40078100,24273.00,HOUSING SERVICES - NTL,R&M BUILDINGS - CONTRACTORS,D100,R&M BUILDINGS - CONTRACTORS,HOUSING SERVICES,WORKS (CONSTRUCTION REPAIR MAINTENANCE)
http://statistics.data.gov.uk/id/local-authority/43UM,WOKING BOROUGH COUNCIL,14/03/2019,10/04/2019,0000436348/001,VISION SCAFFOLDING LTD,40523700,750.00,CORPORATE STRATEGY - LEISURE MANAGEMENT CONTRACT,R&M BUILDINGS - CONTRACTORS,D100,R&M BUILDINGS - CONTRACTORS,CORPORATE STRATEGY,BUILDING CONSTRUCTION MATERIALS
http://statistics.data.gov.uk/id/local-authority/43UM,WOKING BOROUGH COUNCIL,17/01/2019,10/04/2019,0000436944/001,MORRIS JOINT-LINE LTD,40496900,2950.00,ASSET MANAGEMENT - WOLSEY PLACE,R&M BUILDINGS - CONTRACTORS,D100,R&M BUILDINGS - CONTRACTORS,ASSET MANAGEMENT,WORKS (CONSTRUCTION REPAIR MAINTENANCE)
http://statistics.data.gov.uk/id/local-authority/43UM,WOKING BOROUGH COUNCIL,18/03/2019,10/04/2019,0000436557/001,PROJECT114 LTD,40370300,7040.00,HOUSING SERVICES - HOUSING OPTIONS,BED & BREAKFAST EXPENDITURE,H786,BED & BREAKFAST EXPENDITURE,HOUSING SERVICES,HOUSING MANAGEMENT
http://statistics.data.gov.uk/id/local-authority/43UM,WOKING BOROUGH COUNCIL,18/03/2019,10/04/2019,0000436558/001,PROJECT114 LTD,40370300,420.00,HOUSING SERVICES - HOUSING OPTIONS,BED & BREAKFAST EXPENDITURE,H786,BED & BREAKFAST EXPENDITURE,HOUSING SERVICES,HOUSING MANAGEMENT
http://statistics.data.gov.uk/id/local-authority/43UM,WOKING BOROUGH COUNCIL,18/03/2019,10/04/2019,0000436559/001,PROJECT114 LTD,40370300,420.00,HOUSING SERVICES - HOUSING OPTIONS,BED & BREAKFAST EXPENDITURE,H786,BED & BREAKFAST EXPENDITURE,HOUSING SERVICES,HOUSING MANAGEMENT
http://statistics.data.gov.uk/id/local-authority/43UM,WOKING BOROUGH COUNCIL,18/03/2019,10/04/2019,0000436685/001,MARTIN CONWAY,01025900,75.00,HOUSING SERVICES - HOUSING OPTIONS,BED & BREAKFAST EXPENDITURE,H786,BED & BREAKFAST EXPENDITURE,HOUSING SERVICES,HOUSING MANAGEMENT
http://statistics.data.gov.uk/id/local-authority/43UM,WOKING BOROUGH COUNCIL,18/03/2019,10/04/2019,0000436686/001,MARTIN CONWAY,01025900,455.00,HOUSING SERVICES - HOUSING OPTIONS,BED & BREAKFAST EXPENDITURE,H786,BED & BREAKFAST EXPENDITURE,HOUSING SERVICES,HOUSING MANAGEMENT
http://statistics.data.gov.uk/id/local-authority/43UM,WOKING BOROUGH COUNCIL,18/03/2019,10/04/2019,0000436687/001,MARTIN CONWAY,01025900,455.00,HOUSING SERVICES - HOUSING OPTIONS,BED & BREAKFAST EXPENDITURE,H786,BED & BREAKFAST EXPENDITURE,HOUSING SERVICES,HOUSING MANAGEMENT
http://statistics.data.gov.uk/id/local-authority/43UM,WOKING BOROUGH COUNCIL,18/03/2019,10/04/2019,0000436688/001,MARTIN CONWAY,01025900,490.00,HOUSING SERVICES - HOUSING OPTIONS,BED & BREAKFAST EXPENDITURE,H786,BED & BREAKFAST EXPENDITURE,HOUSING SERVICES,HOUSING MANAGEMENT
http://statistics.data.gov.uk/id/local-authority/43UM,WOKING BOROUGH COUNCIL,18/03/2019,10/04/2019,0000436689/001,MARTIN CONWAY,01025900,490.00,HOUSING SERVICES - HOUSING OPTIONS,BED & BREAKFAST EXPENDITURE,H786,BED & BREAKFAST EXPENDITURE,HOUSING SERVICES,HOUSING MANAGEMENT
http://statistics.data.gov.uk/id/local-authority/43UM,WOKING BOROUGH COUNCIL,18/03/2019,10/04/2019,0000436690/001,MARTIN CONWAY,01025900,385.00,HOUSING SERVICES - HOUSING OPTIONS,BED & BREAKFAST EXPENDITURE,H786,BED & BREAKFAST EXPENDITURE,HOUSING SERVICES,HOUSING MANAGEMENT
http://statistics.data.gov.uk/id/local-authority/43UM,WOKING BOROUGH COUNCIL,18/03/2019,10/04/2019,0000436691/001,MARTIN CONWAY,01025900,180.00,HOUSING SERVICES - HOUSING OPTIONS,BED & BREAKFAST EXPENDITURE,H786,BED & BREAKFAST EXPENDITURE,HOUSING SERVICES,HOUSING MANAGEMENT
http://statistics.data.gov.uk/id/local-authority/43UM,WOKING BOROUGH COUNCIL,18/03/2019,10/04/2019,0000436692/001,MARTIN CONWAY,01025900,455.00,HOUSING SERVICES - HOUSING OPTIONS,BED & BREAKFAST EXPENDITURE,H786,BED & BREAKFAST EXPENDITURE,HOUSING SERVICES,HOUSING MANAGEMENT
http://statistics.data.gov.uk/id/local-authority/43UM,WOKING BOROUGH COUNCIL,18/03/2019,10/04/2019,0000436693/001,MARTIN CONWAY,01025900,595.00,HOUSING SERVICES - HOUSING OPTIONS,BED & BREAKFAST EXPENDITURE,H786,BED & BREAKFAST EXPENDITURE,HOUSING SERVICES,HOUSING MANAGEMENT
http://statistics.data.gov.uk/id/local-authority/43UM,WOKING BOROUGH COUNCIL,18/03/2019,10/04/2019,0000436694/001,MARTIN CONWAY,01025900,595.00,HOUSING SERVICES - HOUSING OPTIONS,BED & BREAKFAST EXPENDITURE,H786,BED & BREAKFAST EXPENDITURE,HOUSING SERVICES,HOUSING MANAGEMENT
http://statistics.data.gov.uk/id/local-authority/43UM,WOKING BOROUGH COUNCIL,18/03/2019,10/04/2019,0000436695/001,MARTIN CONWAY,01025900,630.00,HOUSING SERVICES - HOUSING OPTIONS,BED & BREAKFAST EXPENDITURE,H786,BED & BREAKFAST EXPENDITURE,HOUSING SERVICES,HOUSING MANAGEMENT
http://statistics.data.gov.uk/id/local-authority/43UM,WOKING BOROUGH COUNCIL,13/03/2019,10/04/2019,0000436154/001,ARCOM IT LTD,40352600,470.00,ASSET MANAGEMENT - WOLSEY PLACE,R&M BUILDINGS - CONTRACTORS,D100,R&M BUILDINGS - CONTRACTORS,ASSET MANAGEMENT,UTILITIES
http://statistics.data.gov.uk/id/local-authority/43UM,WOKING BOROUGH COUNCIL,13/03/2019,10/04/2019,0000436156/001,ARCOM IT LTD,40352600,500.00,ASSET MANAGEMENT - WOLSEY PLACE,R&M BUILDINGS - CONTRACTORS,D100,R&M BUILDINGS - CONTRACTORS,ASSET MANAGEMENT,UTILITIES
http://statistics.data.gov.uk/id/local-authority/43UM,WOKING BOROUGH COUNCIL,25/02/2019,10/04/2019,0000436959/001,MR C CORRIGAN & MRS H AMIRY,01717100,10434.00,HOUSING SERVICES - PRIVATE SECTOR LEASING SCHEME,LEASE PAYMENTS TO LANDLORD,H787,LEASE PAYMENTS TO LANDLORD,HOUSING SERVICES,HOUSING MANAGEMENT
http://statistics.data.gov.uk/id/local-authority/43UM,WOKING BOROUGH COUNCIL,25/02/2019,10/04/2019,0000436960/001,MR C CORRIGAN & MRS H AMIRY,01717100,12920.00,HOUSING SERVICES - PRIVATE SECTOR LEASING SCHEME,LEASE PAYMENTS TO LANDLORD,H787,LEASE PAYMENTS TO LANDLORD,HOUSING SERVICES,HOUSING MANAGEMENT
http://statistics.data.gov.uk/id/local-authority/43UM,WOKING BOROUGH COUNCIL,28/02/2019,10/04/2019,0000436957/001,THAMESWEY HOUSING LIMITED,01693200,12920.00,HOUSING SERVICES - PRIVATE SECTOR LEASING SCHEME,LEASE PAYMENTS TO LANDLORD,H787,LEASE PAYMENTS TO LANDLORD,HOUSING SERVICES,FINANCIAL SERVICES
http://statistics.data.gov.uk/id/local-authority/43UM,WOKING BOROUGH COUNCIL,28/02/2019,10/04/2019,0000436958/001,THAMESWEY HOUSING LIMITED,01693200,12920.00,HOUSING SERVICES - PRIVATE SECTOR LEASING SCHEME,LEASE PAYMENTS TO LANDLORD,H787,LEASE PAYMENTS TO LANDLORD,HOUSING SERVICES,FINANCIAL SERVICES
http://statistics.data.gov.uk/id/local-authority/43UM,WOKING BOROUGH COUNCIL,10/04/2019,10/04/2019,GPC/00006851,WOKING TOWNGTE 1,PROCUREMENT CARD,300.00,HOUSING SERVICES - SYRIAN REFUGEE FAMILES,CONTRIBUTION,Q623,CONTRIBUTION TO NEW FAMILY,EMAD HANAFY,FINANCIAL INST/AUTO CASH
http://statistics.data.gov.uk/id/local-authority/43UM,WOKING BOROUGH COUNCIL,19/03/2019,10/04/2019,0000436612/001,CASH CONTROL MACHINES (FLINTEX LTD),00856400,80.00,INDEPENDENT LIVING SERVICES - ST MARY'S DAY CENTRE,FIXTURES & FITTINGS - NEW,D800,FIXTURES & FITTINGS - NEW,INDEPENDENT LIVING SERVICES,INFORMATION COMMUNICATION TECHNOLOGY
http://statistics.data.gov.uk/id/local-authority/43UM,WOKING BOROUGH COUNCIL,15/03/2019,10/04/2019,0000437079/001,SURREY HEATH BOROUGH COUNCIL,00898100,5735.42,NEIGHBOURHOOD SERVICES - GARDEN WASTE COLLECTION,PYMNT TO CONTRACTOR ADMIN,J626,PYMNT TO CONTRACTOR ADMIN,NEIGHBOURHOOD SERVICES,WORKS (CONSTRUCTION REPAIR MAINTENANCE)
http://statistics.data.gov.uk/id/local-authority/43UM,WOKING BOROUGH COUNCIL,13/03/2019,10/04/2019,0000436303/001,SAFEGUARD COACHES LIMITED,00888300,2836.00,CORPORATE MANAGEMENT GROUP - JUNIOR CITIZEN SCHEME,PAYMENTS TO ORGANISATIONS,X800,PAYMENTS TO ORGANISATIONS,CORPORATE MANAGEMENT GROUP,PUBLIC TRANSPORT
http://statistics.data.gov.uk/id/local-authority/43UM,WOKING BOROUGH COUNCIL,15/03/2019,10/04/2019,0000436752/001,FRIENDS OF WOKING PALACE,01431400,2528.00,ASSET MANAGEMENT - WOKING OLD PALACE MAIN,GROUNDS MAINT-CONTRACTORS,D200,GROUNDS MAINT-CONTRACTORS,ASSET MANAGEMENT,WORKS (CONSTRUCTION REPAIR MAINTENANCE)
http://statistics.data.gov.uk/id/local-authority/43UM,WOKING BOROUGH COUNCIL,21/11/2018,10/04/2019,0000436753/001,FRIENDS OF WOKING PALACE,01431400,266.00,ASSET MANAGEMENT - WOKING OLD PALACE MAIN,GROUNDS MAINT-CONTRACTORS,D200,GROUNDS MAINT-CONTRACTORS,ASSET MANAGEMENT,WORKS (CONSTRUCTION REPAIR MAINTENANCE)
http://statistics.data.gov.uk/id/local-authority/43UM,WOKING BOROUGH COUNCIL,16/11/2018,10/04/2019,0000436754/001,FRIENDS OF WOKING PALACE,01431400,261.26,ASSET MANAGEMENT - WOKING OLD PALACE MAIN,GROUNDS MAINT-CONTRACTORS,D200,GROUNDS MAINT-CONTRACTORS,ASSET MANAGEMENT,WORKS (CONSTRUCTION REPAIR MAINTENANCE)
http://statistics.data.gov.uk/id/local-authority/43UM,WOKING BOROUGH COUNCIL,16/11/2018,10/04/2019,0000436755/001,FRIENDS OF WOKING PALACE,01431400,260.07,ASSET MANAGEMENT - WOKING OLD PALACE MAIN,GROUNDS MAINT-CONTRACTORS,D200,GROUNDS MAINT-CONTRACTORS,ASSET MANAGEMENT,WORKS (CONSTRUCTION REPAIR MAINTENANCE)
http://statistics.data.gov.uk/id/local-authority/43UM,WOKING BOROUGH COUNCIL,31/03/2019,10/04/2019,0000437103/007,THAMESWEY ENERGY LIMITED,01142300,8026.71,ASSET MANAGEMENT - TOWN CENTRE LEISURE,TEL ENERGY SERVICE CHARGE,D180,TEL ENERGY SERVICE CHARGE,ASSET MANAGEMENT,UTILITIES
http://statistics.data.gov.uk/id/local-authority/43UM,WOKING BOROUGH COUNCIL,31/03/2019,10/04/2019,0000437103/006,THAMESWEY ENERGY LIMITED,01142300,1236.24,ASSET MANAGEMENT - CIVIC OFFICES,TEL ENERGY SERVICE CHARGE,D180,TEL ENERGY SERVICE CHARGE,ASSET MANAGEMENT,UTILITIES
http://statistics.data.gov.uk/id/local-authority/43UM,WOKING BOROUGH COUNCIL,31/03/2019,10/04/2019,0000437103/001,THAMESWEY ENERGY LIMITED,01142300,3005.28,INDEPENDENT LIVING SERVICES - MEALS SERVICE - BROCKHILL,TEL ENERGY SERVICE CHARGE,D180,TEL ENERGY SERVICE CHARGE,INDEPENDENT LIVING SERVICES,UTILITIES
http://statistics.data.gov.uk/id/local-authority/43UM,WOKING BOROUGH COUNCIL,31/01/2019,10/04/2019,0000434881/001,THAMESWEY ENERGY LIMITED,01142300,94487.13,HOUSING SERVICES - ENERGY,TEL ENERGY SERVICE CHARGE,D180,TEL ENERGY SERVICE CHARGE,HOUSING SERVICES,UTILITIES
http://statistics.data.gov.uk/id/local-authority/43UM,WOKING BOROUGH COUNCIL,31/03/2019,10/04/2019,0000436913/001,THAMESWEY ENERGY LIMITED,01142300,-94487.13,HOUSING SERVICES - ENERGY,TEL ENERGY SERVICE CHARGE,D180,TEL ENERGY SERVICE CHARGE,HOUSING SERVICES,UTILITIES
http://statistics.data.gov.uk/id/local-authority/43UM,WOKING BOROUGH COUNCIL,31/03/2019,10/04/2019,0000437103/003,THAMESWEY ENERGY LIMITED,01142300,3196.55,HOUSING SERVICES - ENERGY,TEL ENERGY SERVICE CHARGE,D180,TEL ENERGY SERVICE CHARGE,HOUSING SERVICES,UTILITIES
http://statistics.data.gov.uk/id/local-authority/43UM,WOKING BOROUGH COUNCIL,31/03/2019,10/04/2019,0000437103/005,THAMESWEY ENERGY LIMITED,01142300,3436.43,HOUSING SERVICES - ENERGY,TEL ENERGY SERVICE CHARGE,D180,TEL ENERGY SERVICE CHARGE,HOUSING SERVICES,UTILITIES
http://statistics.data.gov.uk/id/local-authority/43UM,WOKING BOROUGH COUNCIL,31/03/2019,10/04/2019,0000437105/003,THAMESWEY ENERGY LIMITED,01142300,47597.72,HOUSING SERVICES - ENERGY,TEL ENERGY SERVICE CHARGE,D180,TEL ENERGY SERVICE CHARGE,HOUSING SERVICES,UTILITIES
http://statistics.data.gov.uk/id/local-authority/43UM,WOKING BOROUGH COUNCIL,31/03/2019,10/04/2019,0000437103/004,THAMESWEY ENERGY LIMITED,01142300,3852.71,CORPORATE STRATEGY - LEISURE MANAGEMENT CONTRACT,TEL ENERGY SERVICE CHARGE,D180,TEL ENERGY SERVICE CHARGE,CORPORATE STRATEGY,UTILITIES
http://statistics.data.gov.uk/id/local-authority/43UM,WOKING BOROUGH COUNCIL,31/03/2019,10/04/2019,0000437103/008,THAMESWEY ENERGY LIMITED,01142300,10659.21,CORPORATE STRATEGY - LEISURE MANAGEMENT CONTRACT,TEL ENERGY SERVICE CHARGE,D180,TEL ENERGY SERVICE CHARGE,CORPORATE STRATEGY,UTILITIES
http://statistics.data.gov.uk/id/local-authority/43UM,WOKING BOROUGH COUNCIL,31/03/2019,10/04/2019,0000437103/009,THAMESWEY ENERGY LIMITED,01142300,9175.13,CORPORATE STRATEGY - LEISURE MANAGEMENT CONTRACT,TEL ENERGY SERVICE CHARGE,D180,TEL ENERGY SERVICE CHARGE,CORPORATE STRATEGY,UTILITIES
http://statistics.data.gov.uk/id/local-authority/43UM,WOKING BOROUGH COUNCIL,31/03/2019,10/04/2019,0000437105/002,THAMESWEY ENERGY LIMITED,01142300,24159.45,CORPORATE STRATEGY - LEISURE MANAGEMENT CONTRACT,TEL ENERGY SERVICE CHARGE,D180,TEL ENERGY SERVICE CHARGE,CORPORATE STRATEGY,UTILITIES
http://statistics.data.gov.uk/id/local-authority/43UM,WOKING BOROUGH COUNCIL,31/03/2019,10/04/2019,0000437105/001,THAMESWEY ENERGY LIMITED,01142300,360.60,NEIGHBOURHOOD SERVICES - PARKS-GENERAL,TEL ENERGY SERVICE CHARGE,D180,TEL ENERGY SERVICE CHARGE,NEIGHBOURHOOD SERVICES,UTILITIES
http://statistics.data.gov.uk/id/local-authority/43UM,WOKING BOROUGH COUNCIL,31/03/2019,10/04/2019,0000437103/002,THAMESWEY ENERGY LIMITED,01142300,4083.08,NEIGHBOURHOOD SERVICES - CAR PARKS ADMIN&OPERATIONAL EX,TEL ENERGY SERVICE CHARGE,D180,TEL ENERGY SERVICE CHARGE,NEIGHBOURHOOD SERVICES,UTILITIES
http://statistics.data.gov.uk/id/local-authority/43UM,WOKING BOROUGH COUNCIL,10/04/2019,10/04/2019,GPC/00006850,FACEBK RJUGVKJLD2,PROCUREMENT CARD,52.61,CORPORATE STRATEGY - ELECTION ID PILOT,ADVERTISING,H400,VOID AND FOB ADS FACEBOOK,DEBBIE HICKMAN,ADVERTISING SERVICES
http://statistics.data.gov.uk/id/local-authority/43UM,WOKING BOROUGH COUNCIL,10/04/2019,10/04/2019,GPC/00006850,FACEBK RJUGVKJLD2,PROCUREMENT CARD,7.39,CORPORATE STRATEGY - PUBLIC RELATIONS,PROMOTIONS & GRANTS,H467,VOID AND FOB ADS FACEBOOK,DEBBIE HICKMAN,ADVERTISING SERVICES
http://statistics.data.gov.uk/id/local-authority/43UM,WOKING BOROUGH COUNCIL,18/03/2019,10/04/2019,0000436440/001,WHISTL UK LIMITED,00367900,153.45,CORPORATE STRATEGY - POSTAGE,POSTAGE - STANDARD TARIFF,G700,POSTAGE - STANDARD TARIFF,CORPORATE STRATEGY,MAIL SERVICES
http://statistics.data.gov.uk/id/local-authority/43UM,WOKING BOROUGH COUNCIL,18/03/2019,10/04/2019,0000436441/001,WHISTL UK LIMITED,00367900,1738.83,CORPORATE STRATEGY - POSTAGE,POSTAGE - STANDARD TARIFF,G700,POSTAGE - STANDARD TARIFF,CORPORATE STRATEGY,MAIL SERVICES
http://statistics.data.gov.uk/id/local-authority/43UM,WOKING BOROUGH COUNCIL,15/03/2019,10/04/2019,0000436478/001,AMEY LG LIMITED,40750500,700.22,NEIGHBOURHOOD SERVICES - STREET FURNITURE,GROUNDS MAINT-CONTRACTORS,D200,GROUNDS MAINT-CONTRACTORS,NEIGHBOURHOOD SERVICES,ENVIRONMENTAL SERVICES
http://statistics.data.gov.uk/id/local-authority/43UM,WOKING BOROUGH COUNCIL,26/03/2019,10/04/2019,0000436794/001,CLAIRE M PERRIER,40672600,4.00,CORPORATE MANAGEMENT GROUP - STAFF TRAINING/GENERAL COSTS,TRAVEL EXPENSES-OFFICERS,F600,TRAVEL EXPENSES-OFFICERS,CORPORATE MANAGEMENT GROUP,FINANCIAL SERVICES
http://statistics.data.gov.uk/id/local-authority/43UM,WOKING BOROUGH COUNCIL,27/03/2019,10/04/2019,0000436764/001,LAYLA SIDAOUI,40801500,12.00,HOUSING SERVICES - HOUSING STANDARDS & LICENSING,TRAVEL EXPENSES-OFFICERS,F600,TRAVEL EXPENSES-OFFICERS,HOUSING SERVICES,FINANCIAL SERVICES
http://statistics.data.gov.uk/id/local-authority/43UM,WOKING BOROUGH COUNCIL,27/03/2019,10/04/2019,0000436977/001,DENIS GUNN,40802200,90.00,CORPORATE STRATEGY - CIVIC EXPENSES,MAYORS ALLOWANCE-CURRENT,H250,MAYORS ALLOWANCE-CURRENT,CORPORATE STRATEGY,ARTS & LEISURE SERVICES
http://statistics.data.gov.uk/id/local-authority/43UM,WOKING BOROUGH COUNCIL,19/03/2019,10/04/2019,0000436453/001,SIEMENS FINANCIAL SERVICES LIMITED,00366900,388.05,H G WELLS - H G WELLS - FUNCTION ROOMS,LEASING COSTS-EQUIPMENT,G110,LEASING COSTS-EQUIPMENT,H G WELLS,FINANCIAL SERVICES
http://statistics.data.gov.uk/id/local-authority/43UM,WOKING BOROUGH COUNCIL,10/04/2019,10/04/2019,GPC/00006842,WWW.BANNERUK.COM,PROCUREMENT CARD,0.45,ASSET MANAGEMENT - CIVIC OFFICES,STATIONERY,G620,CIVIC OFFICE STATIONERY,SANDRA ARCHER,STATIONERY/OFFICE SUPPLIES
http://statistics.data.gov.uk/id/local-authority/43UM,WOKING BOROUGH COUNCIL,10/04/2019,10/04/2019,GPC/00006842,WWW.BANNERUK.COM,PROCUREMENT CARD,0.72,ASSET MANAGEMENT - CIVIC OFFICES,STATIONERY,G620,CIVIC OFFICE STATIONERY,SANDRA ARCHER,STATIONERY/OFFICE SUPPLIES
http://statistics.data.gov.uk/id/local-authority/43UM,WOKING BOROUGH COUNCIL,10/04/2019,10/04/2019,GPC/00006842,WWW.BANNERUK.COM,PROCUREMENT CARD,0.88,ASSET MANAGEMENT - CIVIC OFFICES,STATIONERY,G620,CIVIC OFFICE STATIONERY,SANDRA ARCHER,STATIONERY/OFFICE SUPPLIES
http://statistics.data.gov.uk/id/local-authority/43UM,WOKING BOROUGH COUNCIL,10/04/2019,10/04/2019,GPC/00006842,WWW.BANNERUK.COM,PROCUREMENT CARD,0.93,ASSET MANAGEMENT - CIVIC OFFICES,STATIONERY,G620,CIVIC OFFICE STATIONERY,SANDRA ARCHER,STATIONERY/OFFICE SUPPLIES
http://statistics.data.gov.uk/id/local-authority/43UM,WOKING BOROUGH COUNCIL,10/04/2019,10/04/2019,GPC/00006842,WWW.BANNERUK.COM,PROCUREMENT CARD,1.08,ASSET MANAGEMENT - CIVIC OFFICES,STATIONERY,G620,CIVIC OFFICE STATIONERY,SANDRA ARCHER,STATIONERY/OFFICE SUPPLIES
http://statistics.data.gov.uk/id/local-authority/43UM,WOKING BOROUGH COUNCIL,10/04/2019,10/04/2019,GPC/00006842,WWW.BANNERUK.COM,PROCUREMENT CARD,1.08,ASSET MANAGEMENT - CIVIC OFFICES,STATIONERY,G620,CIVIC OFFICE STATIONERY,SANDRA ARCHER,STATIONERY/OFFICE SUPPLIES
http://statistics.data.gov.uk/id/local-authority/43UM,WOKING BOROUGH COUNCIL,10/04/2019,10/04/2019,GPC/00006842,WWW.BANNERUK.COM,PROCUREMENT CARD,1.08,ASSET MANAGEMENT - CIVIC OFFICES,STATIONERY,G620,CIVIC OFFICE STATIONERY,SANDRA ARCHER,STATIONERY/OFFICE SUPPLIES
http://statistics.data.gov.uk/id/local-authority/43UM,WOKING BOROUGH COUNCIL,10/04/2019,10/04/2019,GPC/00006842,WWW.BANNERUK.COM,PROCUREMENT CARD,1.12,ASSET MANAGEMENT - CIVIC OFFICES,STATIONERY,G620,CIVIC OFFICE STATIONERY,SANDRA ARCHER,STATIONERY/OFFICE SUPPLIES
http://statistics.data.gov.uk/id/local-authority/43UM,WOKING BOROUGH COUNCIL,10/04/2019,10/04/2019,GPC/00006842,WWW.BANNERUK.COM,PROCUREMENT CARD,1.26,ASSET MANAGEMENT - CIVIC OFFICES,STATIONERY,G620,CIVIC OFFICE STATIONERY,SANDRA ARCHER,STATIONERY/OFFICE SUPPLIES
http://statistics.data.gov.uk/id/local-authority/43UM,WOKING BOROUGH COUNCIL,10/04/2019,10/04/2019,GPC/00006842,WWW.BANNERUK.COM,PROCUREMENT CARD,1.36,ASSET MANAGEMENT - CIVIC OFFICES,STATIONERY,G620,CIVIC OFFICE STATIONERY,SANDRA ARCHER,STATIONERY/OFFICE SUPPLIES
http://statistics.data.gov.uk/id/local-authority/43UM,WOKING BOROUGH COUNCIL,10/04/2019,10/04/2019,GPC/00006842,WWW.BANNERUK.COM,PROCUREMENT CARD,1.58,ASSET MANAGEMENT - CIVIC OFFICES,STATIONERY,G620,CIVIC OFFICE STATIONERY,SANDRA ARCHER,STATIONERY/OFFICE SUPPLIES
http://statistics.data.gov.uk/id/local-authority/43UM,WOKING BOROUGH COUNCIL,10/04/2019,10/04/2019,GPC/00006842,WWW.BANNERUK.COM,PROCUREMENT CARD,2.34,ASSET MANAGEMENT - CIVIC OFFICES,STATIONERY,G620,CIVIC OFFICE STATIONERY,SANDRA ARCHER,STATIONERY/OFFICE SUPPLIES
http://statistics.data.gov.uk/id/local-authority/43UM,WOKING BOROUGH COUNCIL,10/04/2019,10/04/2019,GPC/00006842,WWW.BANNERUK.COM,PROCUREMENT CARD,3.05,ASSET MANAGEMENT - CIVIC OFFICES,STATIONERY,G620,CIVIC OFFICE STATIONERY,SANDRA ARCHER,STATIONERY/OFFICE SUPPLIES
http://statistics.data.gov.uk/id/local-authority/43UM,WOKING BOROUGH COUNCIL,10/04/2019,10/04/2019,GPC/00006842,WWW.BANNERUK.COM,PROCUREMENT CARD,3.18,ASSET MANAGEMENT - CIVIC OFFICES,STATIONERY,G620,CIVIC OFFICE STATIONERY,SANDRA ARCHER,STATIONERY/OFFICE SUPPLIES
http://statistics.data.gov.uk/id/local-authority/43UM,WOKING BOROUGH COUNCIL,10/04/2019,10/04/2019,GPC/00006842,WWW.BANNERUK.COM,PROCUREMENT CARD,3.60,ASSET MANAGEMENT - CIVIC OFFICES,STATIONERY,G620,CIVIC OFFICE STATIONERY,SANDRA ARCHER,STATIONERY/OFFICE SUPPLIES
http://statistics.data.gov.uk/id/local-authority/43UM,WOKING BOROUGH COUNCIL,10/04/2019,10/04/2019,GPC/00006842,WWW.BANNERUK.COM,PROCUREMENT CARD,4.30,ASSET MANAGEMENT - CIVIC OFFICES,STATIONERY,G620,CIVIC OFFICE STATIONERY,SANDRA ARCHER,STATIONERY/OFFICE SUPPLIES
http://statistics.data.gov.uk/id/local-authority/43UM,WOKING BOROUGH COUNCIL,10/04/2019,10/04/2019,GPC/00006842,WWW.BANNERUK.COM,PROCUREMENT CARD,4.41,ASSET MANAGEMENT - CIVIC OFFICES,STATIONERY,G620,CIVIC OFFICE STATIONERY,SANDRA ARCHER,STATIONERY/OFFICE SUPPLIES
http://statistics.data.gov.uk/id/local-authority/43UM,WOKING BOROUGH COUNCIL,10/04/2019,10/04/2019,GPC/00006842,WWW.BANNERUK.COM,PROCUREMENT CARD,4.62,ASSET MANAGEMENT - CIVIC OFFICES,STATIONERY,G620,CIVIC OFFICE STATIONERY,SANDRA ARCHER,STATIONERY/OFFICE SUPPLIES
http://statistics.data.gov.uk/id/local-authority/43UM,WOKING BOROUGH COUNCIL,10/04/2019,10/04/2019,GPC/00006842,WWW.BANNERUK.COM,PROCUREMENT CARD,5.35,ASSET MANAGEMENT - CIVIC OFFICES,STATIONERY,G620,CIVIC OFFICE STATIONERY,SANDRA ARCHER,STATIONERY/OFFICE SUPPLIES
http://statistics.data.gov.uk/id/local-authority/43UM,WOKING BOROUGH COUNCIL,10/04/2019,10/04/2019,GPC/00006842,WWW.BANNERUK.COM,PROCUREMENT CARD,5.73,ASSET MANAGEMENT - CIVIC OFFICES,STATIONERY,G620,CIVIC OFFICE STATIONERY,SANDRA ARCHER,STATIONERY/OFFICE SUPPLIES
http://statistics.data.gov.uk/id/local-authority/43UM,WOKING BOROUGH COUNCIL,10/04/2019,10/04/2019,GPC/00006842,WWW.BANNERUK.COM,PROCUREMENT CARD,7.30,ASSET MANAGEMENT - CIVIC OFFICES,STATIONERY,G620,CIVIC OFFICE STATIONERY,SANDRA ARCHER,STATIONERY/OFFICE SUPPLIES
http://statistics.data.gov.uk/id/local-authority/43UM,WOKING BOROUGH COUNCIL,10/04/2019,10/04/2019,GPC/00006842,WWW.BANNERUK.COM,PROCUREMENT CARD,9.70,ASSET MANAGEMENT - CIVIC OFFICES,STATIONERY,G620,CIVIC OFFICE STATIONERY,SANDRA ARCHER,STATIONERY/OFFICE SUPPLIES
http://statistics.data.gov.uk/id/local-authority/43UM,WOKING BOROUGH COUNCIL,10/04/2019,10/04/2019,GPC/00006842,WWW.BANNERUK.COM,PROCUREMENT CARD,10.20,ASSET MANAGEMENT - CIVIC OFFICES,STATIONERY,G620,CIVIC OFFICE STATIONERY,SANDRA ARCHER,STATIONERY/OFFICE SUPPLIES
http://statistics.data.gov.uk/id/local-authority/43UM,WOKING BOROUGH COUNCIL,10/04/2019,10/04/2019,GPC/00006842,WWW.BANNERUK.COM,PROCUREMENT CARD,11.46,ASSET MANAGEMENT - CIVIC OFFICES,STATIONERY,G620,CIVIC OFFICE STATIONERY,SANDRA ARCHER,STATIONERY/OFFICE SUPPLIES
http://statistics.data.gov.uk/id/local-authority/43UM,WOKING BOROUGH COUNCIL,10/04/2019,10/04/2019,GPC/00006842,WWW.BANNERUK.COM,PROCUREMENT CARD,24.12,ASSET MANAGEMENT - CIVIC OFFICES,STATIONERY,G620,CIVIC OFFICE STATIONERY,SANDRA ARCHER,STATIONERY/OFFICE SUPPLIES
http://statistics.data.gov.uk/id/local-authority/43UM,WOKING BOROUGH COUNCIL,10/04/2019,10/04/2019,GPC/00006842,WWW.BANNERUK.COM,PROCUREMENT CARD,32.08,ASSET MANAGEMENT - CIVIC OFFICES,STATIONERY,G620,CIVIC OFFICE STATIONERY,SANDRA ARCHER,STATIONERY/OFFICE SUPPLIES
http://statistics.data.gov.uk/id/local-authority/43UM,WOKING BOROUGH COUNCIL,10/04/2019,10/04/2019,GPC/00006842,WWW.BANNERUK.COM,PROCUREMENT CARD,35.10,ASSET MANAGEMENT - CIVIC OFFICES,STATIONERY,G620,CIVIC OFFICE STATIONERY,SANDRA ARCHER,STATIONERY/OFFICE SUPPLIES
http://statistics.data.gov.uk/id/local-authority/43UM,WOKING BOROUGH COUNCIL,10/04/2019,10/04/2019,GPC/00006842,WWW.BANNERUK.COM,PROCUREMENT CARD,2.48,INDEPENDENT LIVING SERVICES - MEALS ON WHEELS,STATIONERY,G620,CIVIC OFFICE STATIONERY,SANDRA ARCHER,STATIONERY/OFFICE SUPPLIES
http://statistics.data.gov.uk/id/local-authority/43UM,WOKING BOROUGH COUNCIL,10/04/2019,10/04/2019,GPC/00006842,WWW.BANNERUK.COM,PROCUREMENT CARD,3.65,INDEPENDENT LIVING SERVICES - MEALS ON WHEELS,STATIONERY,G620,CIVIC OFFICE STATIONERY,SANDRA ARCHER,STATIONERY/OFFICE SUPPLIES
http://statistics.data.gov.uk/id/local-authority/43UM,WOKING BOROUGH COUNCIL,10/04/2019,10/04/2019,GPC/00006842,WWW.BANNERUK.COM,PROCUREMENT CARD,10.18,INDEPENDENT LIVING SERVICES - MEALS ON WHEELS,STATIONERY,G620,CIVIC OFFICE STATIONERY,SANDRA ARCHER,STATIONERY/OFFICE SUPPLIES
http://statistics.data.gov.uk/id/local-authority/43UM,WOKING BOROUGH COUNCIL,13/03/2019,10/04/2019,0000436829/001,CROYDON COUNCIL,01650500,3690.00,FINANCIAL SERVICES - AUDIT,INTERNAL AUDIT CONTRACT,J660,INTERNAL AUDIT CONTRACT,FINANCIAL SERVICES,HUMAN RESOURCES
http://statistics.data.gov.uk/id/local-authority/43UM,WOKING BOROUGH COUNCIL,13/03/2019,10/04/2019,0000436830/001,CROYDON COUNCIL,01650500,9618.00,FINANCIAL SERVICES - AUDIT,INTERNAL AUDIT CONTRACT,J660,INTERNAL AUDIT CONTRACT,FINANCIAL SERVICES,HUMAN RESOURCES
http://statistics.data.gov.uk/id/local-authority/43UM,WOKING BOROUGH COUNCIL,13/03/2019,10/04/2019,0000436832/001,CROYDON COUNCIL,01650500,4612.50,FINANCIAL SERVICES - AUDIT,INTERNAL AUDIT CONTRACT,J660,INTERNAL AUDIT CONTRACT,FINANCIAL SERVICES,HUMAN RESOURCES
http://statistics.data.gov.uk/id/local-authority/43UM,WOKING BOROUGH COUNCIL,19/03/2019,10/04/2019,0000436828/001,SOUTHERN BUILDING CONTROL PARTNERSHIP,40723000,256.67,PLANNING SERVICES - BUILDING REGULATIONS,PAYMENTS TO OTHER LA'S,H695,PAYMENTS TO OTHER LA'S,PLANNING SERVICES,WORKS (CONSTRUCTION REPAIR MAINTENANCE)
http://statistics.data.gov.uk/id/local-authority/43UM,WOKING BOROUGH COUNCIL,18/03/2019,10/04/2019,0000436404/001,MEDIA & COMMUNICATIONS LTD T/A BEST4SYST,40726000,180.00,INFORMATION TECHNOLOGY - ICT GENERAL REPLACEMENT 2018/19,REPLACEMENT EQUIPMENT,Q010,REPLACEMENT EQUIPMENT,INFORMATION TECHNOLOGY,INFORMATION COMMUNICATION TECHNOLOGY
http://statistics.data.gov.uk/id/local-authority/43UM,WOKING BOROUGH COUNCIL,15/03/2019,10/04/2019,0000436492/001,KENT COUNTY COUNCIL (KCS),00050800,22.80,INFORMATION TECHNOLOGY - ICT GENERAL REPLACEMENT 14/15,REPLACEMENT EQUIPMENT,Q010,REPLACEMENT EQUIPMENT,INFORMATION TECHNOLOGY,UTILITIES
http://statistics.data.gov.uk/id/local-authority/43UM,WOKING BOROUGH COUNCIL,15/03/2019,10/04/2019,0000436493/001,KENT COUNTY COUNCIL (KCS),00050800,22.80,INFORMATION TECHNOLOGY - ICT GENERAL REPLACEMENT 14/15,REPLACEMENT EQUIPMENT,Q010,REPLACEMENT EQUIPMENT,INFORMATION TECHNOLOGY,UTILITIES
http://statistics.data.gov.uk/id/local-authority/43UM,WOKING BOROUGH COUNCIL,15/03/2019,10/04/2019,0000436494/001,KENT COUNTY COUNCIL (KCS),00050800,22.80,INFORMATION TECHNOLOGY - ICT GENERAL REPLACEMENT 14/15,REPLACEMENT EQUIPMENT,Q010,REPLACEMENT EQUIPMENT,INFORMATION TECHNOLOGY,UTILITIES
http://statistics.data.gov.uk/id/local-authority/43UM,WOKING BOROUGH COUNCIL,15/03/2019,10/04/2019,0000436495/001,KENT COUNTY COUNCIL (KCS),00050800,22.80,INFORMATION TECHNOLOGY - ICT GENERAL REPLACEMENT 14/15,REPLACEMENT EQUIPMENT,Q010,REPLACEMENT EQUIPMENT,INFORMATION TECHNOLOGY,UTILITIES
http://statistics.data.gov.uk/id/local-authority/43UM,WOKING BOROUGH COUNCIL,18/03/2019,10/04/2019,0000436330/001,KORN FERRY (UK) LIMITED,40620000,277.46,CORPORATE MANAGEMENT GROUP - STAFF TRAINING/GENERAL COSTS,TRAINING - MANAGEMENT,A920,TRAINING - MANAGEMENT,CORPORATE MANAGEMENT GROUP,HUMAN RESOURCES
http://statistics.data.gov.uk/id/local-authority/43UM,WOKING BOROUGH COUNCIL,18/03/2019,10/04/2019,0000436332/001,KORN FERRY (UK) LIMITED,40620000,94.83,CORPORATE MANAGEMENT GROUP - STAFF TRAINING/GENERAL COSTS,TRAINING - MANAGEMENT,A920,TRAINING - MANAGEMENT,CORPORATE MANAGEMENT GROUP,HUMAN RESOURCES
http://statistics.data.gov.uk/id/local-authority/43UM,WOKING BOROUGH COUNCIL,18/03/2019,10/04/2019,0000436434/001,CIPFA BUSINESS LIMITED,00316100,2690.00,CORPORATE MANAGEMENT GROUP - STAFF TRAINING/GENERAL COSTS,TRAINING - POST ENTRY,A903,TRAINING - POST ENTRY,CORPORATE MANAGEMENT GROUP,CONSULTANCY
http://statistics.data.gov.uk/id/local-authority/43UM,WOKING BOROUGH COUNCIL,18/03/2019,10/04/2019,0000436406/001,AKW MEDI-CARE LIMITED,01281500,1061.02,HOUSING SERVICES - HOME IMPS & BEN AGENCY,HANDYPERSON MATERIALS,G201,HANDYPERSON MATERIALS,HOUSING SERVICES,HEALTHCARE
http://statistics.data.gov.uk/id/local-authority/43UM,WOKING BOROUGH COUNCIL,13/03/2019,10/04/2019,0000436225/001,GIBBS & DANDY,40335300,28.04,HOUSING SERVICES - HOME IMPS & BEN AGENCY,HANDYPERSON MATERIALS,G201,HANDYPERSON MATERIALS,HOUSING SERVICES,BUILDING CONSTRUCTION MATERIALS
http://statistics.data.gov.uk/id/local-authority/43UM,WOKING BOROUGH COUNCIL,28/02/2019,10/04/2019,0000436781/001,GALAXY CARS,01385200,2161.00,CORPORATE STRATEGY - MAYORS CAR AND DRIVER,VEHICLE AD HOC HIRING,F410,VEHICLE AD HOC HIRING,CORPORATE STRATEGY,VEHICLE MANAGEMENT
http://statistics.data.gov.uk/id/local-authority/43UM,WOKING BOROUGH COUNCIL,13/03/2019,10/04/2019,0000436188/001,CHASE INVENTORY SERVICES LIMITED,40239800,85.00,HOUSING SERVICES - TENANCY SUPPORT SCHEME,PROPERTY INSPECTIONS,H772,PROPERTY INSPECTIONS,HOUSING SERVICES,CONSULTANCY
http://statistics.data.gov.uk/id/local-authority/43UM,WOKING BOROUGH COUNCIL,13/03/2019,10/04/2019,0000436349/001,CHASE INVENTORY SERVICES LIMITED,40239800,115.00,HOUSING SERVICES - TENANCY SUPPORT SCHEME,PROPERTY INSPECTIONS,H772,PROPERTY INSPECTIONS,HOUSING SERVICES,CONSULTANCY
http://statistics.data.gov.uk/id/local-authority/43UM,WOKING BOROUGH COUNCIL,18/03/2019,10/04/2019,0000436536/001,TREVOR ROBERTS ASSOCIATES LTD,00655200,300.00,CORPORATE MANAGEMENT GROUP - STAFF TRAINING/GENERAL COSTS,TRAINING - CORPORATE,A910,TRAINING - CORPORATE,CORPORATE MANAGEMENT GROUP,HUMAN RESOURCES
http://statistics.data.gov.uk/id/local-authority/43UM,WOKING BOROUGH COUNCIL,19/03/2019,10/04/2019,0000436833/001,TREVOR ROBERTS ASSOCIATES LTD,00655200,300.00,CORPORATE MANAGEMENT GROUP - STAFF TRAINING/GENERAL COSTS,TRAINING - CORPORATE,A910,TRAINING - CORPORATE,CORPORATE MANAGEMENT GROUP,HUMAN RESOURCES
http://statistics.data.gov.uk/id/local-authority/43UM,WOKING BOROUGH COUNCIL,10/04/2019,10/04/2019,GPC/00006859,BROMSGROVE REDDITCH TROPH,PROCUREMENT CARD,171.00,CORPORATE STRATEGY - CIVIC EXPENSES,GIFTS,H655,CIVIC EXPENSES GIFTS,SAMANTHA PREVETT,MISC SPECIALITY RETAIL
http://statistics.data.gov.uk/id/local-authority/43UM,WOKING BOROUGH COUNCIL,15/03/2019,10/04/2019,0000436311/001,HEADLINE DESIGN & PRINT,00016900,25.00,NEIGHBOURHOOD SERVICES - CAR PARKS ADMIN&OPERATIONAL EX,NOTICE BOARD / SIGNS,G140,NOTICE BOARD / SIGNS,NEIGHBOURHOOD SERVICES,FINANCIAL SERVICES
http://statistics.data.gov.uk/id/local-authority/43UM,WOKING BOROUGH COUNCIL,28/02/2019,10/04/2019,0000437137/001,THE PRINT CONSULTANCY,40665900,240.00,NEIGHBOURHOOD SERVICES - CAR PARKS ADMIN&OPERATIONAL EX,NOTICE BOARD / SIGNS,G140,NOTICE BOARD / SIGNS,NEIGHBOURHOOD SERVICES,CONSULTANCY
http://statistics.data.gov.uk/id/local-authority/43UM,WOKING BOROUGH COUNCIL,13/03/2019,10/04/2019,0000436375/001,CASTLE WATER LIMITED,40650200,215.37,ASSET MANAGEMENT - CIVIC OFFICES,DRAIN/WATER SERVICES,D715,DRAIN/WATER SERVICES,ASSET MANAGEMENT,UTILITIES
http://statistics.data.gov.uk/id/local-authority/43UM,WOKING BOROUGH COUNCIL,13/03/2019,10/04/2019,0000436371/001,CASTLE WATER LIMITED,40650200,296.91,NEIGHBOURHOOD SERVICES - MUSLIM BURIAL GRND PEACE GARDE,DRAIN/WATER SERVICES,D715,DRAIN/WATER SERVICES,NEIGHBOURHOOD SERVICES,UTILITIES
http://statistics.data.gov.uk/id/local-authority/43UM,WOKING BOROUGH COUNCIL,13/03/2019,10/04/2019,0000436178/001,CASTLE WATER LIMITED,40650200,121.10,ASSET MANAGEMENT - PUBLIC CONVENIENCES,DRAIN/WATER SERVICES,D715,DRAIN/WATER SERVICES,ASSET MANAGEMENT,UTILITIES
http://statistics.data.gov.uk/id/local-authority/43UM,WOKING BOROUGH COUNCIL,13/03/2019,10/04/2019,0000436528/001,CASTLE WATER LIMITED,40650200,22.55,ASSET MANAGEMENT - PUBLIC CONVENIENCES,DRAIN/WATER SERVICES,D715,DRAIN/WATER SERVICES,ASSET MANAGEMENT,UTILITIES
